Organisation Name,Organisation Code,Unique Ref No,Effective Date,Directorate  where expenditure incurred,Supplier Name,Payment Date,Net Amount,Purpose of Spend,Procurement Classification (Higher Level),Procurement Classification (Lower Level),Capital/Revenue
Walsall Council,http://opendatacommunities.org/id/metropolitan-district-council/walsall,WC90-01,31/03/2018,Childrens,247 CARS (WILLENHALL) LIMITED,26/03/2018,510.00,60500-GENERAL MATERIALS,PUPIL REFERAL UNIT EXCLUSIONS,Supplies & Services,Revenue
Walsall Council,http://opendatacommunities.org/id/metropolitan-district-council/walsall,WC90-02,31/03/2018,Childrens,247 CARS (WILLENHALL) LIMITED,26/03/2018,945.00,60500-GENERAL MATERIALS,PUPIL REFERAL UNIT EXCLUSIONS,Supplies & Services,Revenue
Walsall Council,http://opendatacommunities.org/id/metropolitan-district-council/walsall,WC90-03,31/03/2018,Childrens,247 CARS (WILLENHALL) LIMITED,27/03/2018,"3,815.00",52000-WITH DRIVER-HIRE OF VEHICLES,HOME TO SCHOOL TRANSPORT,Transport,Revenue
Walsall Council,http://opendatacommunities.org/id/metropolitan-district-council/walsall,WC90-04,31/03/2018,Childrens,247 CARS (WILLENHALL) LIMITED,27/03/2018,"5,520.00",52000-WITH DRIVER-HIRE OF VEHICLES,HOME TO SCHOOL TRANSPORT,Transport,Revenue
Walsall Council,http://opendatacommunities.org/id/metropolitan-district-council/walsall,WC90-05,31/03/2018,Resources and Transformation,4 SIGHT EYECARE CENTRE 002,02/03/2018,266.67,63000-PROFESSIONAL FEES AND SERVICES,HR DIRECT SERVICES,Supplies & Services,Revenue
Walsall Council,http://opendatacommunities.org/id/metropolitan-district-council/walsall,WC90-06,31/03/2018,Adult Social Care,5 CARE SERVICES LTD,05/03/2018,"41,524.40",73372-DOMICILIARY CARE,OP PACKAGE/PLACEMENT COSTS,Third Party Payments,Revenue
Walsall Council,http://opendatacommunities.org/id/metropolitan-district-council/walsall,WC90-07,31/03/2018,Adult Social Care,5 CARE SERVICES LTD,26/03/2018,"43,811.43",73372-DOMICILIARY CARE,OP PACKAGE/PLACEMENT COSTS,Third Party Payments,Revenue
Walsall Council,http://opendatacommunities.org/id/metropolitan-district-council/walsall,WC90-08,31/03/2018,Adult Social Care,A & A CLEANING ANGELS,01/03/2018,350.00,60539-CLEANING MATERIALS,COMMUNITY INTERMEDIATE CARE,Supplies & Services,Revenue
Walsall Council,http://opendatacommunities.org/id/metropolitan-district-council/walsall,WC90-09,31/03/2018,Economy & Environment,A & P CHAMBERS LTD,22/03/2018,"1,235.00",63253-PAYMENT TO CONTRACTOR,NUTRITION & OBESITY - ADULTS,Third Party Payments,Revenue
Walsall Council,http://opendatacommunities.org/id/metropolitan-district-council/walsall,WC90-10,31/03/2018,Economy & Environment,A F BLAKEMORE & SON LTD,09/03/2018,231.53,61008-CONFECTIONERY/SNACKS-PROVISIONS,DARLASTON LEISURE CENTRE,Supplies & Services,Revenue
Walsall Council,http://opendatacommunities.org/id/metropolitan-district-council/walsall,WC90-11,31/03/2018,Economy & Environment,A F BLAKEMORE & SON LTD,12/03/2018,237.62,61018-DRINKS-PROVISIONS,OAK PARK,Supplies & Services,Revenue
Walsall Council,http://opendatacommunities.org/id/metropolitan-district-council/walsall,WC90-12,31/03/2018,Economy & Environment,A F BLAKEMORE & SON LTD,09/03/2018,260.48,61018-DRINKS-PROVISIONS,DARLASTON LEISURE CENTRE,Supplies & Services,Revenue
Walsall Council,http://opendatacommunities.org/id/metropolitan-district-council/walsall,WC90-13,31/03/2018,Adult Social Care,A F BLAKEMORE & SON LTD,12/03/2018,319.80,61016-FOOD AND BEVERAGES-PROVISIONS,GOSCOTE,Supplies & Services,Revenue
Walsall Council,http://opendatacommunities.org/id/metropolitan-district-council/walsall,WC90-14,31/03/2018,Economy & Environment,A F BLAKEMORE & SON LTD,07/03/2018,322.10,61009-BEVERAGES-PROVISIONS,FOREST ARTS CENTRE,Supplies & Services,Revenue
Walsall Council,http://opendatacommunities.org/id/metropolitan-district-council/walsall,WC90-15,31/03/2018,Economy & Environment,A F BLAKEMORE & SON LTD,02/03/2018,340.45,61018-DRINKS-PROVISIONS,OAK PARK,Supplies & Services,Revenue
Walsall Council,http://opendatacommunities.org/id/metropolitan-district-council/walsall,WC90-16,31/03/2018,Economy & Environment,A F BLAKEMORE & SON LTD,19/03/2018,384.18,61018-DRINKS-PROVISIONS,OAK PARK,Supplies & Services,Revenue
Walsall Council,http://opendatacommunities.org/id/metropolitan-district-council/walsall,WC90-17,31/03/2018,Resources and Transformation,A F BLAKEMORE & SON LTD,07/03/2018,392.73,61016-FOOD AND BEVERAGES-PROVISIONS,WALSALL TOWN HALL,Supplies & Services,Revenue
Walsall Council,http://opendatacommunities.org/id/metropolitan-district-council/walsall,WC90-18,31/03/2018,Economy & Environment,A F BLAKEMORE & SON LTD,27/03/2018,407.09,61002-DRY FOODS-PROVISIONS,BLOXWICH LEISURE CENTRE,Supplies & Services,Revenue
Walsall Council,http://opendatacommunities.org/id/metropolitan-district-council/walsall,WC90-19,31/03/2018,Adult Social Care,A F BLAKEMORE & SON LTD,20/03/2018,515.52,61016-FOOD AND BEVERAGES-PROVISIONS,HOLLYBANK,Supplies & Services,Revenue
Walsall Council,http://opendatacommunities.org/id/metropolitan-district-council/walsall,WC90-20,31/03/2018,Adult Social Care,A F BLAKEMORE & SON LTD,07/03/2018,523.75,61016-FOOD AND BEVERAGES-PROVISIONS,HOLLYBANK,Supplies & Services,Revenue
Walsall Council,http://opendatacommunities.org/id/metropolitan-district-council/walsall,WC90-21,31/03/2018,Economy & Environment,A F BLAKEMORE & SON LTD,12/03/2018,595.98,61018-DRINKS-PROVISIONS,OAK PARK,Supplies & Services,Revenue
Walsall Council,http://opendatacommunities.org/id/metropolitan-district-council/walsall,WC90-22,31/03/2018,Adult Social Care,A F BLAKEMORE & SON LTD,22/03/2018,837.83,61016-FOOD AND BEVERAGES-PROVISIONS,HOLLYBANK,Supplies & Services,Revenue
Walsall Council,http://opendatacommunities.org/id/metropolitan-district-council/walsall,WC90-23,31/03/2018,Adult Social Care,A F BLAKEMORE & SON LTD,07/03/2018,890.67,61016-FOOD AND BEVERAGES-PROVISIONS,HOLLYBANK,Supplies & Services,Revenue
Walsall Council,http://opendatacommunities.org/id/metropolitan-district-council/walsall,WC90-24,31/03/2018,Economy & Environment,A F BLAKEMORE & SON LTD,12/03/2018,"1,121.95",61008-CONFECTIONERY/SNACKS-PROVISIONS,OAK PARK,Supplies & Services,Revenue
Walsall Council,http://opendatacommunities.org/id/metropolitan-district-council/walsall,WC90-25,31/03/2018,Economy & Environment,A F BLAKEMORE & SON LTD,21/03/2018,"1,552.61",61002-DRY FOODS-PROVISIONS,BLOXWICH LEISURE CENTRE,Supplies & Services,Revenue
Walsall Council,http://opendatacommunities.org/id/metropolitan-district-council/walsall,WC90-26,31/03/2018,Economy & Environment,A KARIMS CHUCKERY PHARMACY,13/03/2018,"1,334.43",71007-CONTRIBUTION TO PCT,PUBLIC HEALTH BUSINESS SUPPORT,Third Party Payments,Revenue
Walsall Council,http://opendatacommunities.org/id/metropolitan-district-council/walsall,WC90-27,31/03/2018,Adult Social Care,A STAR SUPPORT SERVICES LIMITED,09/03/2018,"1,682.00",73372-DOMICILIARY CARE,LD PACKAGE/PLACEMENT COSTS,Third Party Payments,Revenue
Walsall Council,http://opendatacommunities.org/id/metropolitan-district-council/walsall,WC90-28,31/03/2018,Childrens,REDACTED,14/03/2018,472.50,76422-DIRECT PAYMENTS TO SOCIAL SERVICES CLIENTS,FAMILY SUPPORT - DIRECT PAYMENTS,Transfer Payments,Revenue
Walsall Council,http://opendatacommunities.org/id/metropolitan-district-council/walsall,WC90-29,31/03/2018,Adult Social Care,ABBEY COURT NURSING & RESIDEN,06/03/2018,714.29,73373-RESIDENTIAL & NURSING CARE PLACEMENTS,OP PACKAGE/PLACEMENT COSTS,Third Party Payments,Revenue
Walsall Council,http://opendatacommunities.org/id/metropolitan-district-council/walsall,WC90-30,31/03/2018,Adult Social Care,ABBEY COURT NURSING & RESIDEN,13/03/2018,"1,878.91",73373-RESIDENTIAL & NURSING CARE PLACEMENTS,OP PACKAGE/PLACEMENT COSTS,Third Party Payments,Revenue
Walsall Council,http://opendatacommunities.org/id/metropolitan-district-council/walsall,WC90-31,31/03/2018,Adult Social Care,ABBEY COURT NURSING & RESIDEN,13/03/2018,"2,037.14",73373-RESIDENTIAL & NURSING CARE PLACEMENTS,OP PACKAGE/PLACEMENT COSTS,Third Party Payments,Revenue
Walsall Council,http://opendatacommunities.org/id/metropolitan-district-council/walsall,WC90-32,31/03/2018,Adult Social Care,ABBEY COURT NURSING & RESIDEN,13/03/2018,"2,037.15",73373-RESIDENTIAL & NURSING CARE PLACEMENTS,OP PACKAGE/PLACEMENT COSTS,Third Party Payments,Revenue
Walsall Council,http://opendatacommunities.org/id/metropolitan-district-council/walsall,WC90-33,31/03/2018,Adult Social Care,ABBEY COURT NURSING & RESIDEN,13/03/2018,"2,144.62",73373-RESIDENTIAL & NURSING CARE PLACEMENTS,OP PACKAGE/PLACEMENT COSTS,Third Party Payments,Revenue
Walsall Council,http://opendatacommunities.org/id/metropolitan-district-council/walsall,WC90-34,31/03/2018,Adult Social Care,ABBEY COURT NURSING & RESIDEN,20/03/2018,"2,214.28",73373-RESIDENTIAL & NURSING CARE PLACEMENTS,OP PACKAGE/PLACEMENT COSTS,Third Party Payments,Revenue
Walsall Council,http://opendatacommunities.org/id/metropolitan-district-council/walsall,WC90-35,31/03/2018,Adult Social Care,ABBEY HEALTHCARE HOMES LTD,13/03/2018,"1,699.28",73373-RESIDENTIAL & NURSING CARE PLACEMENTS,PD PACKAGE/PLACEMENT COSTS,Third Party Payments,Revenue
Walsall Council,http://opendatacommunities.org/id/metropolitan-district-council/walsall,WC90-36,31/03/2018,Adult Social Care,ABBEY HEALTHCARE HOMES LTD,13/03/2018,"2,294.08",73373-RESIDENTIAL & NURSING CARE PLACEMENTS,PD PACKAGE/PLACEMENT COSTS,Third Party Payments,Revenue
Walsall Council,http://opendatacommunities.org/id/metropolitan-district-council/walsall,WC90-37,31/03/2018,Adult Social Care,ABBEY HEALTHCARE HOMES LTD,13/03/2018,"3,200.00",73373-RESIDENTIAL & NURSING CARE PLACEMENTS,OP PACKAGE/PLACEMENT COSTS,Third Party Payments,Revenue
Walsall Council,http://opendatacommunities.org/id/metropolitan-district-council/walsall,WC90-38,31/03/2018,Childrens,ABC FOSTERING,23/03/2018,"1,250.22",74037-INDEPENDENT FOSTER CARE-OTH AGENCY PROVISION,EXTERNAL FOSTER CARE PROVISION,Third Party Payments,Revenue
Walsall Council,http://opendatacommunities.org/id/metropolitan-district-council/walsall,WC90-39,31/03/2018,Childrens,ABC FOSTERING,23/03/2018,"2,635.20",74037-INDEPENDENT FOSTER CARE-OTH AGENCY PROVISION,EXTERNAL FOSTER CARE PROVISION,Third Party Payments,Revenue
Walsall Council,http://opendatacommunities.org/id/metropolitan-district-council/walsall,WC90-40,31/03/2018,Childrens,ABC FOSTERING,23/03/2018,"2,859.48",74037-INDEPENDENT FOSTER CARE-OTH AGENCY PROVISION,EXTERNAL FOSTER CARE PROVISION,Third Party Payments,Revenue
Walsall Council,http://opendatacommunities.org/id/metropolitan-district-council/walsall,WC90-41,31/03/2018,Childrens,ABC FOSTERING,23/03/2018,"3,042.00",74037-INDEPENDENT FOSTER CARE-OTH AGENCY PROVISION,EXTERNAL FOSTER CARE PROVISION,Third Party Payments,Revenue
Walsall Council,http://opendatacommunities.org/id/metropolitan-district-council/walsall,WC90-42,31/03/2018,Childrens,ABC FOSTERING,23/03/2018,"3,120.00",74037-INDEPENDENT FOSTER CARE-OTH AGENCY PROVISION,EXTERNAL FOSTER CARE PROVISION,Third Party Payments,Revenue
Walsall Council,http://opendatacommunities.org/id/metropolitan-district-council/walsall,WC90-43,31/03/2018,Adult Social Care,REDACTED,19/03/2018,375.00,76422-DIRECT PAYMENTS TO SOCIAL SERVICES CLIENTS,LD PACKAGE/PLACEMENT COSTS,Transfer Payments,Revenue
Walsall Council,http://opendatacommunities.org/id/metropolitan-district-council/walsall,WC90-44,31/03/2018,Adult Social Care,REDACTED,14/03/2018,"1,947.10",76422-DIRECT PAYMENTS TO SOCIAL SERVICES CLIENTS,LD PACKAGE/PLACEMENT COSTS,Transfer Payments,Revenue
Walsall Council,http://opendatacommunities.org/id/metropolitan-district-council/walsall,WC90-45,31/03/2018,Economy & Environment,ABEL ALARM CO LTD,12/03/2018,219.45,40015-ALARM CALL OUTS-OP MTCE,CEMETERIES CENTRAL ADMINISTRATION,Premises,Revenue
Walsall Council,http://opendatacommunities.org/id/metropolitan-district-council/walsall,WC90-46,31/03/2018,Adult Social Care,REDACTED,19/03/2018,"1,300.00",76422-DIRECT PAYMENTS TO SOCIAL SERVICES CLIENTS,LD PACKAGE/PLACEMENT COSTS,Transfer Payments,Revenue
Walsall Council,http://opendatacommunities.org/id/metropolitan-district-council/walsall,WC90-47,31/03/2018,Adult Social Care,REDACTED,14/03/2018,"2,205.00",76422-DIRECT PAYMENTS TO SOCIAL SERVICES CLIENTS,LD PACKAGE/PLACEMENT COSTS,Transfer Payments,Revenue
Walsall Council,http://opendatacommunities.org/id/metropolitan-district-council/walsall,WC90-48,31/03/2018,Childrens,ABLEWELL CARS,13/03/2018,"5,688.08",52000-WITH DRIVER-HIRE OF VEHICLES,HOME TO SCHOOL TRANSPORT,Transport,Revenue
Walsall Council,http://opendatacommunities.org/id/metropolitan-district-council/walsall,WC90-49,31/03/2018,Childrens,ABLEWELL CARS,13/03/2018,"8,345.16",52000-WITH DRIVER-HIRE OF VEHICLES,HOME TO SCHOOL TRANSPORT,Transport,Revenue
Walsall Council,http://opendatacommunities.org/id/metropolitan-district-council/walsall,WC90-50,31/03/2018,Childrens,ABU BAKR NURSERY,01/03/2018,"5,360.20",66505-OTHER-GRANTS TO OTHER ORGS,EARLY YEARS - 2 YR OLDS,Third Party Payments,Revenue
Walsall Council,http://opendatacommunities.org/id/metropolitan-district-council/walsall,WC90-51,31/03/2018,Childrens,ABU BAKR NURSERY,01/03/2018,"9,504.00",66505-OTHER-GRANTS TO OTHER ORGS,EARLY YEARS - 3 YR OLDS,Third Party Payments,Revenue
Walsall Council,http://opendatacommunities.org/id/metropolitan-district-council/walsall,WC90-52,31/03/2018,Economy & Environment,AC COACHING & SPORTS DEVELOPMENT LIMITED,14/03/2018,"1,925.00",63000-PROFESSIONAL FEES AND SERVICES,INSPIRED GENERATIONS (CSAF),Supplies & Services,Revenue
Walsall Council,http://opendatacommunities.org/id/metropolitan-district-council/walsall,WC90-53,31/03/2018,Adult Social Care,ACCORD HOUSING ASSOCIATION LTD#135,05/03/2018,371.00,73372-DOMICILIARY CARE,MENTAL HEALTH PACKAGE/PLACEMENT COSTS,Third Party Payments,Revenue
Walsall Council,http://opendatacommunities.org/id/metropolitan-district-council/walsall,WC90-54,31/03/2018,Adult Social Care,ACCORD HOUSING ASSOCIATION LTD#135,15/03/2018,596.92,73372-DOMICILIARY CARE,MENTAL HEALTH PACKAGE/PLACEMENT COSTS,Third Party Payments,Revenue
Walsall Council,http://opendatacommunities.org/id/metropolitan-district-council/walsall,WC90-55,31/03/2018,Adult Social Care,ACCORD HOUSING ASSOCIATION LTD#135,15/03/2018,604.48,73372-DOMICILIARY CARE,MENTAL HEALTH PACKAGE/PLACEMENT COSTS,Third Party Payments,Revenue
Walsall Council,http://opendatacommunities.org/id/metropolitan-district-council/walsall,WC90-56,31/03/2018,Adult Social Care,ACCORD HOUSING ASSOCIATION LTD#135,05/03/2018,652.96,73372-DOMICILIARY CARE,OP PACKAGE/PLACEMENT COSTS,Third Party Payments,Revenue
Walsall Council,http://opendatacommunities.org/id/metropolitan-district-council/walsall,WC90-57,31/03/2018,Adult Social Care,ACCORD HOUSING ASSOCIATION LTD#135,15/03/2018,661.12,73372-DOMICILIARY CARE,MENTAL HEALTH PACKAGE/PLACEMENT COSTS,Third Party Payments,Revenue
Walsall Council,http://opendatacommunities.org/id/metropolitan-district-council/walsall,WC90-58,31/03/2018,Adult Social Care,ACCORD HOUSING ASSOCIATION LTD#135,15/03/2018,793.36,73372-DOMICILIARY CARE,MENTAL HEALTH PACKAGE/PLACEMENT COSTS,Third Party Payments,Revenue
Walsall Council,http://opendatacommunities.org/id/metropolitan-district-council/walsall,WC90-59,31/03/2018,Adult Social Care,ACCORD HOUSING ASSOCIATION LTD#135,15/03/2018,793.36,73372-DOMICILIARY CARE,MENTAL HEALTH PACKAGE/PLACEMENT COSTS,Third Party Payments,Revenue
Walsall Council,http://opendatacommunities.org/id/metropolitan-district-council/walsall,WC90-60,31/03/2018,Adult Social Care,ACCORD HOUSING ASSOCIATION LTD#135,15/03/2018,868.96,73372-DOMICILIARY CARE,MENTAL HEALTH PACKAGE/PLACEMENT COSTS,Third Party Payments,Revenue
Walsall Council,http://opendatacommunities.org/id/metropolitan-district-council/walsall,WC90-61,31/03/2018,Adult Social Care,ACCORD HOUSING ASSOCIATION LTD#135,15/03/2018,"1,133.40",73372-DOMICILIARY CARE,MENTAL HEALTH PACKAGE/PLACEMENT COSTS,Third Party Payments,Revenue
Walsall Council,http://opendatacommunities.org/id/metropolitan-district-council/walsall,WC90-62,31/03/2018,Adult Social Care,ACCORD HOUSING ASSOCIATION LTD#135,15/03/2018,"1,227.84",73372-DOMICILIARY CARE,MENTAL HEALTH PACKAGE/PLACEMENT COSTS,Third Party Payments,Revenue
Walsall Council,http://opendatacommunities.org/id/metropolitan-district-council/walsall,WC90-63,31/03/2018,Adult Social Care,ACCORD HOUSING ASSOCIATION LTD#135,15/03/2018,"1,322.28",73372-DOMICILIARY CARE,MENTAL HEALTH PACKAGE/PLACEMENT COSTS,Third Party Payments,Revenue
Walsall Council,http://opendatacommunities.org/id/metropolitan-district-council/walsall,WC90-64,31/03/2018,Adult Social Care,ACCORD HOUSING ASSOCIATION LTD#135,15/03/2018,"1,322.28",73372-DOMICILIARY CARE,MENTAL HEALTH PACKAGE/PLACEMENT COSTS,Third Party Payments,Revenue
Walsall Council,http://opendatacommunities.org/id/metropolitan-district-council/walsall,WC90-65,31/03/2018,Adult Social Care,ACCORD HOUSING ASSOCIATION LTD#135,15/03/2018,"1,567.84",73372-DOMICILIARY CARE,LD PACKAGE/PLACEMENT COSTS,Third Party Payments,Revenue
Walsall Council,http://opendatacommunities.org/id/metropolitan-district-council/walsall,WC90-66,31/03/2018,Adult Social Care,ACCORD HOUSING ASSOCIATION LTD#135,26/03/2018,"35,522.74",73372-DOMICILIARY CARE,OP PACKAGE/PLACEMENT COSTS,Third Party Payments,Revenue
Walsall Council,http://opendatacommunities.org/id/metropolitan-district-council/walsall,WC90-67,31/03/2018,Adult Social Care,ACCORD HOUSING ASSOCIATION LTD#135,05/03/2018,"36,972.58",73372-DOMICILIARY CARE,OP PACKAGE/PLACEMENT COSTS,Third Party Payments,Revenue
Walsall Council,http://opendatacommunities.org/id/metropolitan-district-council/walsall,WC90-68,31/03/2018,Economy & Environment,ACCORD HOUSING ASSOCIATION LTD#135,21/03/2018,"37,602.00",63253-PAYMENT TO CONTRACTOR,ALCOHOL & DRUGS MISUSE,Third Party Payments,Revenue
Walsall Council,http://opendatacommunities.org/id/metropolitan-district-council/walsall,WC90-69,31/03/2018,Adult Social Care,ACE CARE AGENCY,05/03/2018,563.62,73372-DOMICILIARY CARE,OP PACKAGE/PLACEMENT COSTS,Third Party Payments,Revenue
Walsall Council,http://opendatacommunities.org/id/metropolitan-district-council/walsall,WC90-70,31/03/2018,Adult Social Care,ACE CARE AGENCY,05/03/2018,866.60,73372-DOMICILIARY CARE,OP PACKAGE/PLACEMENT COSTS,Third Party Payments,Revenue
Walsall Council,http://opendatacommunities.org/id/metropolitan-district-council/walsall,WC90-71,31/03/2018,Adult Social Care,ACE CARE AGENCY,05/03/2018,"1,058.75",73372-DOMICILIARY CARE,OP PACKAGE/PLACEMENT COSTS,Third Party Payments,Revenue
Walsall Council,http://opendatacommunities.org/id/metropolitan-district-council/walsall,WC90-72,31/03/2018,Adult Social Care,ACEPAY LTD (COTTAGE NUR HOME),13/03/2018,"1,833.43",73373-RESIDENTIAL & NURSING CARE PLACEMENTS,OP PACKAGE/PLACEMENT COSTS,Third Party Payments,Revenue
Walsall Council,http://opendatacommunities.org/id/metropolitan-district-council/walsall,WC90-73,31/03/2018,Adult Social Care,ACEPAY LTD (COTTAGE NUR HOME),13/03/2018,"2,214.28",73373-RESIDENTIAL & NURSING CARE PLACEMENTS,OP PACKAGE/PLACEMENT COSTS,Third Party Payments,Revenue
Walsall Council,http://opendatacommunities.org/id/metropolitan-district-council/walsall,WC90-74,31/03/2018,Adult Social Care,ACEPAY LTD (COTTAGE NUR HOME),13/03/2018,"2,214.28",73373-RESIDENTIAL & NURSING CARE PLACEMENTS,OP PACKAGE/PLACEMENT COSTS,Third Party Payments,Revenue
Walsall Council,http://opendatacommunities.org/id/metropolitan-district-council/walsall,WC90-75,31/03/2018,Adult Social Care,ACEPAY LTD (COTTAGE NUR HOME),13/03/2018,"2,214.28",73373-RESIDENTIAL & NURSING CARE PLACEMENTS,OP PACKAGE/PLACEMENT COSTS,Third Party Payments,Revenue
Walsall Council,http://opendatacommunities.org/id/metropolitan-district-council/walsall,WC90-76,31/03/2018,Adult Social Care,ACEPAY LTD (COTTAGE NUR HOME),13/03/2018,"2,214.29",73373-RESIDENTIAL & NURSING CARE PLACEMENTS,OP PACKAGE/PLACEMENT COSTS,Third Party Payments,Revenue
Walsall Council,http://opendatacommunities.org/id/metropolitan-district-council/walsall,WC90-77,31/03/2018,Adult Social Care,ACEPAY LTD (COTTAGE NUR HOME),13/03/2018,"2,214.29",73373-RESIDENTIAL & NURSING CARE PLACEMENTS,OP PACKAGE/PLACEMENT COSTS,Third Party Payments,Revenue
Walsall Council,http://opendatacommunities.org/id/metropolitan-district-council/walsall,WC90-78,31/03/2018,Adult Social Care,ACEPAY LTD (COTTAGE NUR HOME),20/03/2018,"2,428.57",73373-RESIDENTIAL & NURSING CARE PLACEMENTS,OP PACKAGE/PLACEMENT COSTS,Third Party Payments,Revenue
Walsall Council,http://opendatacommunities.org/id/metropolitan-district-council/walsall,WC90-79,31/03/2018,Economy & Environment,ACIVICO LTD,12/03/2018,"12,779.53",01001-OTHER CONSULTANTS FEES,CFR 1008 WALSALL MARKET,Capital,Capital
Walsall Council,http://opendatacommunities.org/id/metropolitan-district-council/walsall,WC90-80,31/03/2018,Childrens,ACORN CARE & EDUCATION LTD (SALES),12/03/2018,"6,333.33",66502-TOP UP FUNDING -GRANTS TO SCHOOLS,INDEPENDENT PROVIDERS - SPECIAL & AP,Third Party Payments,Revenue
Walsall Council,http://opendatacommunities.org/id/metropolitan-district-council/walsall,WC90-81,31/03/2018,Childrens,ACORN CARE & EDUCATION LTD (SALES),12/03/2018,"13,831.67",66502-TOP UP FUNDING -GRANTS TO SCHOOLS,INDEPENDENT PROVIDERS - SPECIAL & AP,Third Party Payments,Revenue
Walsall Council,http://opendatacommunities.org/id/metropolitan-district-council/walsall,WC90-82,31/03/2018,Adult Social Care,ACORN REST HOME,20/03/2018,"1,656.00",73373-RESIDENTIAL & NURSING CARE PLACEMENTS,OP PACKAGE/PLACEMENT COSTS,Third Party Payments,Revenue
Walsall Council,http://opendatacommunities.org/id/metropolitan-district-council/walsall,WC90-83,31/03/2018,Adult Social Care,ACORN REST HOME,06/03/2018,"2,140.00",73373-RESIDENTIAL & NURSING CARE PLACEMENTS,OP PACKAGE/PLACEMENT COSTS,Third Party Payments,Revenue
Walsall Council,http://opendatacommunities.org/id/metropolitan-district-council/walsall,WC90-84,31/03/2018,Childrens,ACORNS CHILDRENS HOSPICE TRUST,15/03/2018,750.00,63000-PROFESSIONAL FEES AND SERVICES,DIRECTLY COMMISSIONED NURSING SERVICES,Supplies & Services,Revenue
Walsall Council,http://opendatacommunities.org/id/metropolitan-district-council/walsall,WC90-85,31/03/2018,Childrens,ACORNS CHILDRENS HOSPICE TRUST,15/03/2018,"1,218.95",63000-PROFESSIONAL FEES AND SERVICES,DIRECTLY COMMISSIONED NURSING SERVICES,Supplies & Services,Revenue
Walsall Council,http://opendatacommunities.org/id/metropolitan-district-council/walsall,WC90-86,31/03/2018,Childrens,ACTION FOR CHILDREN,07/03/2018,825.00,63000-PROFESSIONAL FEES AND SERVICES,FAMILY PLACEMENTS,Supplies & Services,Revenue
Walsall Council,http://opendatacommunities.org/id/metropolitan-district-council/walsall,WC90-87,31/03/2018,Economy & Environment,ACTION MIDLANDS LTD,16/03/2018,150.00,63000-PROFESSIONAL FEES AND SERVICES,YEI (IMPACT) PROGRAMME,Supplies & Services,Revenue
Walsall Council,http://opendatacommunities.org/id/metropolitan-district-council/walsall,WC90-88,31/03/2018,Economy & Environment,ACTION MIDLANDS LTD,16/03/2018,150.00,63000-PROFESSIONAL FEES AND SERVICES,YEI ESF FUNDING,Supplies & Services,Revenue
Walsall Council,http://opendatacommunities.org/id/metropolitan-district-council/walsall,WC90-89,31/03/2018,Economy & Environment,ACTION MIDLANDS LTD,16/03/2018,150.00,63000-PROFESSIONAL FEES AND SERVICES,YEI (IMPACT) PROGRAMME,Supplies & Services,Revenue
Walsall Council,http://opendatacommunities.org/id/metropolitan-district-council/walsall,WC90-90,31/03/2018,Economy & Environment,ACTION MIDLANDS LTD,16/03/2018,150.00,63000-PROFESSIONAL FEES AND SERVICES,YEI ESF FUNDING,Supplies & Services,Revenue
Walsall Council,http://opendatacommunities.org/id/metropolitan-district-council/walsall,WC90-91,31/03/2018,Economy & Environment,ACTION MIDLANDS LTD,16/03/2018,150.00,63000-PROFESSIONAL FEES AND SERVICES,YEI (IMPACT) PROGRAMME,Supplies & Services,Revenue
Walsall Council,http://opendatacommunities.org/id/metropolitan-district-council/walsall,WC90-92,31/03/2018,Economy & Environment,ACTION MIDLANDS LTD,16/03/2018,150.00,63000-PROFESSIONAL FEES AND SERVICES,YEI ESF FUNDING,Supplies & Services,Revenue
Walsall Council,http://opendatacommunities.org/id/metropolitan-district-council/walsall,WC90-93,31/03/2018,Economy & Environment,ACTION MIDLANDS LTD,21/03/2018,150.00,63000-PROFESSIONAL FEES AND SERVICES,YEI (IMPACT) PROGRAMME,Supplies & Services,Revenue
Walsall Council,http://opendatacommunities.org/id/metropolitan-district-council/walsall,WC90-94,31/03/2018,Economy & Environment,ACTION MIDLANDS LTD,21/03/2018,150.00,63000-PROFESSIONAL FEES AND SERVICES,YEI ESF FUNDING,Supplies & Services,Revenue
Walsall Council,http://opendatacommunities.org/id/metropolitan-district-council/walsall,WC90-95,31/03/2018,Economy & Environment,ACTION MIDLANDS LTD,21/03/2018,150.00,63000-PROFESSIONAL FEES AND SERVICES,YEI (IMPACT) PROGRAMME,Supplies & Services,Revenue
Walsall Council,http://opendatacommunities.org/id/metropolitan-district-council/walsall,WC90-96,31/03/2018,Economy & Environment,ACTION MIDLANDS LTD,21/03/2018,150.00,63000-PROFESSIONAL FEES AND SERVICES,YEI ESF FUNDING,Supplies & Services,Revenue
Walsall Council,http://opendatacommunities.org/id/metropolitan-district-council/walsall,WC90-97,31/03/2018,Economy & Environment,ACTION MIDLANDS LTD,23/03/2018,300.00,63000-PROFESSIONAL FEES AND SERVICES,YEI (IMPACT) PROGRAMME,Supplies & Services,Revenue
Walsall Council,http://opendatacommunities.org/id/metropolitan-district-council/walsall,WC90-98,31/03/2018,Economy & Environment,ACTION MIDLANDS LTD,23/03/2018,300.00,63000-PROFESSIONAL FEES AND SERVICES,YEI ESF FUNDING,Supplies & Services,Revenue
Walsall Council,http://opendatacommunities.org/id/metropolitan-district-council/walsall,WC90-99,31/03/2018,Childrens,ACTIVATING CREATIVE TALENT CIC,26/03/2018,"7,489.29",66500-GRANTS TO OTHER ORGS,TARGETED YOUTH WORK - COMMISSIONED,Third Party Payments,Revenue
Walsall Council,http://opendatacommunities.org/id/metropolitan-district-council/walsall,WC90-100,31/03/2018,Adult Social Care,ACTON BANKS LTD,06/03/2018,"1,602.00",73025-PROFESSIONAL SERVICES-PRIV CONTRACTOR & OTHER AGENCIES,HOLLYBANK,Third Party Payments,Revenue
Walsall Council,http://opendatacommunities.org/id/metropolitan-district-council/walsall,WC90-101,31/03/2018,Adult Social Care,ACTON BANKS LTD,12/03/2018,"1,608.90",73025-PROFESSIONAL SERVICES-PRIV CONTRACTOR & OTHER AGENCIES,HOLLYBANK,Third Party Payments,Revenue
Walsall Council,http://opendatacommunities.org/id/metropolitan-district-council/walsall,WC90-102,31/03/2018,Adult Social Care,ACTON BANKS LTD,01/03/2018,"1,711.89",73025-PROFESSIONAL SERVICES-PRIV CONTRACTOR & OTHER AGENCIES,HOLLYBANK,Third Party Payments,Revenue
Walsall Council,http://opendatacommunities.org/id/metropolitan-district-council/walsall,WC90-103,31/03/2018,Adult Social Care,REDACTED,14/03/2018,542.30,76422-DIRECT PAYMENTS TO SOCIAL SERVICES CLIENTS,OP PACKAGE/PLACEMENT COSTS,Transfer Payments,Revenue
Walsall Council,http://opendatacommunities.org/id/metropolitan-district-council/walsall,WC90-104,31/03/2018,Adult Social Care,REDACTED,14/03/2018,560.75,76422-DIRECT PAYMENTS TO SOCIAL SERVICES CLIENTS,LD PACKAGE/PLACEMENT COSTS,Transfer Payments,Revenue
Walsall Council,http://opendatacommunities.org/id/metropolitan-district-council/walsall,WC90-105,31/03/2018,Resources and Transformation,ADELIE FOODS LTD,14/03/2018,769.06,61305-CATERING,TOWN HALL RESTAURANT BISTRO,Supplies & Services,Revenue
Walsall Council,http://opendatacommunities.org/id/metropolitan-district-council/walsall,WC90-106,31/03/2018,Resources and Transformation,ADELIE FOODS LTD,14/03/2018,944.95,61305-CATERING,TOWN HALL RESTAURANT BISTRO,Supplies & Services,Revenue
Walsall Council,http://opendatacommunities.org/id/metropolitan-district-council/walsall,WC90-107,31/03/2018,Resources and Transformation,ADELIE FOODS LTD,06/03/2018,"1,030.20",61305-CATERING,TOWN HALL RESTAURANT BISTRO,Supplies & Services,Revenue
Walsall Council,http://opendatacommunities.org/id/metropolitan-district-council/walsall,WC90-108,31/03/2018,Adult Social Care,REDACTED,19/03/2018,507.00,76422-DIRECT PAYMENTS TO SOCIAL SERVICES CLIENTS,OP PACKAGE/PLACEMENT COSTS,Transfer Payments,Revenue
Walsall Council,http://opendatacommunities.org/id/metropolitan-district-council/walsall,WC90-109,31/03/2018,Adult Social Care,REDACTED,14/03/2018,"1,205.00",76422-DIRECT PAYMENTS TO SOCIAL SERVICES CLIENTS,OP PACKAGE/PLACEMENT COSTS,Transfer Payments,Revenue
Walsall Council,http://opendatacommunities.org/id/metropolitan-district-council/walsall,WC90-110,31/03/2018,Childrens,REDACTED,09/03/2018,333.12,74510-RESIDENTS ORDERS,ADOPTION ALLOWANCES,Third Party Payments,Revenue
Walsall Council,http://opendatacommunities.org/id/metropolitan-district-council/walsall,WC90-111,31/03/2018,Childrens,REDACTED,09/03/2018,361.12,74510-RESIDENTS ORDERS,ADOPTION ALLOWANCES,Third Party Payments,Revenue
Walsall Council,http://opendatacommunities.org/id/metropolitan-district-council/walsall,WC90-112,31/03/2018,Adult Social Care,ADVANCE HEALTH CARE (UK) LTD,01/03/2018,"-4,214.38",73025-PROFESSIONAL SERVICES-PRIV CONTRACTOR & OTHER AGENCIES,COMMUNITY INTERMEDIATE CARE,Third Party Payments,Revenue
Walsall Council,http://opendatacommunities.org/id/metropolitan-district-council/walsall,WC90-113,31/03/2018,Adult Social Care,ADVANCE HEALTH CARE (UK) LTD,12/03/2018,343.75,73025-PROFESSIONAL SERVICES-PRIV CONTRACTOR & OTHER AGENCIES,ACM MANAGEMENT TEAM,Third Party Payments,Revenue
Walsall Council,http://opendatacommunities.org/id/metropolitan-district-council/walsall,WC90-114,31/03/2018,Adult Social Care,ADVANCE HEALTH CARE (UK) LTD,01/03/2018,"3,832.81",73025-PROFESSIONAL SERVICES-PRIV CONTRACTOR & OTHER AGENCIES,COMMUNITY INTERMEDIATE CARE,Third Party Payments,Revenue
Walsall Council,http://opendatacommunities.org/id/metropolitan-district-council/walsall,WC90-115,31/03/2018,Adult Social Care,ADVANCE HEALTH CARE (UK) LTD,19/03/2018,"5,139.06",73025-PROFESSIONAL SERVICES-PRIV CONTRACTOR & OTHER AGENCIES,COMMUNITY INTERMEDIATE CARE,Third Party Payments,Revenue
Walsall Council,http://opendatacommunities.org/id/metropolitan-district-council/walsall,WC90-116,31/03/2018,Adult Social Care,ADVANCE HEALTH CARE (UK) LTD,26/03/2018,"79,543.87",73372-DOMICILIARY CARE,OP PACKAGE/PLACEMENT COSTS,Third Party Payments,Revenue
Walsall Council,http://opendatacommunities.org/id/metropolitan-district-council/walsall,WC90-117,31/03/2018,Adult Social Care,ADVANCE HEALTH CARE (UK) LTD,05/03/2018,"82,435.44",73372-DOMICILIARY CARE,OP PACKAGE/PLACEMENT COSTS,Third Party Payments,Revenue
Walsall Council,http://opendatacommunities.org/id/metropolitan-district-council/walsall,WC90-118,31/03/2018,Adult Social Care,ADVANCED HEALTH AND CARE,07/03/2018,600.00,60010-LICENCES-EQUIPMENT,COMMUNITY INTERMEDIATE CARE,Supplies & Services,Revenue
Walsall Council,http://opendatacommunities.org/id/metropolitan-district-council/walsall,WC90-119,31/03/2018,Childrens,ADVENTURELAND DAY NURSERY,27/03/2018,640.00,66502-TOP UP FUNDING -GRANTS TO SCHOOLS,INDEPENDENT PROVIDERS - SPECIAL & AP,Third Party Payments,Revenue
Walsall Council,http://opendatacommunities.org/id/metropolitan-district-council/walsall,WC90-120,31/03/2018,Childrens,ADVENTURELAND DAY NURSERY,01/03/2018,"4,669.00",66505-OTHER-GRANTS TO OTHER ORGS,EARLY YEARS - 2 YR OLDS,Third Party Payments,Revenue
Walsall Council,http://opendatacommunities.org/id/metropolitan-district-council/walsall,WC90-121,31/03/2018,Childrens,ADVENTURELAND DAY NURSERY,01/03/2018,"18,128.00",66505-OTHER-GRANTS TO OTHER ORGS,EARLY YEARS - 3 YR OLDS,Third Party Payments,Revenue
Walsall Council,http://opendatacommunities.org/id/metropolitan-district-council/walsall,WC90-122,31/03/2018,Economy & Environment,AEBI SCHMIDT UK LIMITED,06/03/2018,"1,603.62",60514-MATERIALS TO STORES,FLEET PARTS STOCK ACCOUNT,Supplies & Services,Revenue
Walsall Council,http://opendatacommunities.org/id/metropolitan-district-council/walsall,WC90-123,31/03/2018,Economy & Environment,AECOM LIMITED,01/03/2018,"2,364.38",01001-OTHER CONSULTANTS FEES,CFR 1219 DARLASTON MONITORING AND EVALUATION,Capital,Capital
Walsall Council,http://opendatacommunities.org/id/metropolitan-district-council/walsall,WC90-124,31/03/2018,Economy & Environment,AECOM LIMITED,12/03/2018,"5,173.75",01001-OTHER CONSULTANTS FEES,CFR 1219 DARLASTON MONITORING AND EVALUATION,Capital,Capital
Walsall Council,http://opendatacommunities.org/id/metropolitan-district-council/walsall,WC90-125,31/03/2018,Adult Social Care,AGINCARE UK LTD,14/03/2018,"1,559.04",73372-DOMICILIARY CARE,OP PACKAGE/PLACEMENT COSTS,Third Party Payments,Revenue
Walsall Council,http://opendatacommunities.org/id/metropolitan-district-council/walsall,WC90-126,31/03/2018,Adult Social Care,REDACTED,19/03/2018,"1,612.00",76422-DIRECT PAYMENTS TO SOCIAL SERVICES CLIENTS,LD PACKAGE/PLACEMENT COSTS,Transfer Payments,Revenue
Walsall Council,http://opendatacommunities.org/id/metropolitan-district-council/walsall,WC90-127,31/03/2018,Adult Social Care,REDACTED,14/03/2018,"2,352.50",76422-DIRECT PAYMENTS TO SOCIAL SERVICES CLIENTS,LD PACKAGE/PLACEMENT COSTS,Transfer Payments,Revenue
Walsall Council,http://opendatacommunities.org/id/metropolitan-district-council/walsall,WC90-128,31/03/2018,Economy & Environment,AIRQUEE,21/03/2018,"1,297.58",60000-FURNITURE & EQUIPMENT,MARKETING AND PROMOTION,Supplies & Services,Revenue
Walsall Council,http://opendatacommunities.org/id/metropolitan-district-council/walsall,WC90-129,31/03/2018,Adult Social Care,REDACTED,14/03/2018,"1,596.25",76422-DIRECT PAYMENTS TO SOCIAL SERVICES CLIENTS,OP PACKAGE/PLACEMENT COSTS,Transfer Payments,Revenue
Walsall Council,http://opendatacommunities.org/id/metropolitan-district-council/walsall,WC90-130,31/03/2018,Childrens,ALAN CRITCHLEY ASSOCIATES,13/03/2018,"3,000.00",63102-CONSULTANTS FEES - CORPORATE,SAFEGUARDING BOARD,Supplies & Services,Revenue
Walsall Council,http://opendatacommunities.org/id/metropolitan-district-council/walsall,WC90-131,31/03/2018,Adult Social Care,REDACTED,19/03/2018,462.00,76422-DIRECT PAYMENTS TO SOCIAL SERVICES CLIENTS,OP PACKAGE/PLACEMENT COSTS,Transfer Payments,Revenue
Walsall Council,http://opendatacommunities.org/id/metropolitan-district-council/walsall,WC90-132,31/03/2018,Adult Social Care,REDACTED,14/03/2018,910.00,76422-DIRECT PAYMENTS TO SOCIAL SERVICES CLIENTS,OP PACKAGE/PLACEMENT COSTS,Transfer Payments,Revenue
Walsall Council,http://opendatacommunities.org/id/metropolitan-district-council/walsall,WC90-133,31/03/2018,Childrens,ALBERT PRITCHARD INFANT AND WOOD GREEN JUNIOR FEDERATED SCHOOLS,13/03/2018,600.00,77300-ISB-FORMULA ALLOCATION,OUT OF BOROUGH SCHOOLS,Transfer Payments,Revenue
Walsall Council,http://opendatacommunities.org/id/metropolitan-district-council/walsall,WC90-134,31/03/2018,Childrens,ALBRIGHTON CARE LTD,23/03/2018,"9,980.00",74036-EXTERNAL RESIDENTIAL CARE-OTH AGENCY PROVISION,INDEPENDENT RESIDENTIAL HOMES,Third Party Payments,Revenue
Walsall Council,http://opendatacommunities.org/id/metropolitan-district-council/walsall,WC90-135,31/03/2018,Childrens,ALBRIGHTON CARE LTD,23/03/2018,"15,000.00",74036-EXTERNAL RESIDENTIAL CARE-OTH AGENCY PROVISION,INDEPENDENT RESIDENTIAL HOMES,Third Party Payments,Revenue
Walsall Council,http://opendatacommunities.org/id/metropolitan-district-council/walsall,WC90-136,31/03/2018,Adult Social Care,ALDERGROVE MANOR LTD,20/03/2018,"1,839.68",73373-RESIDENTIAL & NURSING CARE PLACEMENTS,MENTAL HEALTH PACKAGE/PLACEMENT COSTS,Third Party Payments,Revenue
Walsall Council,http://opendatacommunities.org/id/metropolitan-district-council/walsall,WC90-137,31/03/2018,Adult Social Care,ALDERGROVE MANOR LTD,20/03/2018,"2,000.00",73373-RESIDENTIAL & NURSING CARE PLACEMENTS,OP PACKAGE/PLACEMENT COSTS,Third Party Payments,Revenue
Walsall Council,http://opendatacommunities.org/id/metropolitan-district-council/walsall,WC90-138,31/03/2018,Childrens,ALDRIDGE & BARONS LIMITED,13/03/2018,"2,913.35",52000-WITH DRIVER-HIRE OF VEHICLES,HOME TO SCHOOL TRANSPORT,Transport,Revenue
Walsall Council,http://opendatacommunities.org/id/metropolitan-district-council/walsall,WC90-139,31/03/2018,Childrens,ALDRIDGE & BARONS LIMITED,22/03/2018,"13,670.20",52000-WITH DRIVER-HIRE OF VEHICLES,HOME TO SCHOOL TRANSPORT,Transport,Revenue
Walsall Council,http://opendatacommunities.org/id/metropolitan-district-council/walsall,WC90-140,31/03/2018,Childrens,ALDRIDGE & BARONS LIMITED,22/03/2018,"15,486.00",52000-WITH DRIVER-HIRE OF VEHICLES,HOME TO SCHOOL TRANSPORT,Transport,Revenue
Walsall Council,http://opendatacommunities.org/id/metropolitan-district-council/walsall,WC90-141,31/03/2018,Childrens,ALDRIDGE SCHOOL A SCIENCE COLLEGE.,08/03/2018,450.00,77300-ISB-FORMULA ALLOCATION,ALDRIDGE SCHOOL SCIENCE COLLEGE (ACADEMY),Transfer Payments,Revenue
Walsall Council,http://opendatacommunities.org/id/metropolitan-district-council/walsall,WC90-142,31/03/2018,Childrens,ALDRIDGE SCHOOL A SCIENCE COLLEGE.,08/03/2018,500.00,77300-ISB-FORMULA ALLOCATION,ALDRIDGE SCHOOL SCIENCE COLLEGE (ACADEMY),Transfer Payments,Revenue
Walsall Council,http://opendatacommunities.org/id/metropolitan-district-council/walsall,WC90-143,31/03/2018,Adult Social Care,REDACTED,14/03/2018,"1,505.00",76422-DIRECT PAYMENTS TO SOCIAL SERVICES CLIENTS,PD PACKAGE/PLACEMENT COSTS,Transfer Payments,Revenue
Walsall Council,http://opendatacommunities.org/id/metropolitan-district-council/walsall,WC90-144,31/03/2018,Adult Social Care,ALEXANDRA HOUSE CARE SERVICES LTD T/A STONEBRIDGE NURSING HOME,13/03/2018,"7,117.44",73373-RESIDENTIAL & NURSING CARE PLACEMENTS,LD PACKAGE/PLACEMENT COSTS,Third Party Payments,Revenue
Walsall Council,http://opendatacommunities.org/id/metropolitan-district-council/walsall,WC90-145,31/03/2018,Childrens,REDACTED,14/03/2018,728.33,76422-DIRECT PAYMENTS TO SOCIAL SERVICES CLIENTS,FAMILY SUPPORT - DIRECT PAYMENTS,Transfer Payments,Revenue
Walsall Council,http://opendatacommunities.org/id/metropolitan-district-council/walsall,WC90-146,31/03/2018,Adult Social Care,REDACTED,14/03/2018,"2,166.50",76422-DIRECT PAYMENTS TO SOCIAL SERVICES CLIENTS,OP PACKAGE/PLACEMENT COSTS,Transfer Payments,Revenue
Walsall Council,http://opendatacommunities.org/id/metropolitan-district-council/walsall,WC90-147,31/03/2018,Childrens,REDACTED,14/03/2018,360.00,76422-DIRECT PAYMENTS TO SOCIAL SERVICES CLIENTS,FAMILY SUPPORT - DIRECT PAYMENTS,Transfer Payments,Revenue
Walsall Council,http://opendatacommunities.org/id/metropolitan-district-council/walsall,WC90-148,31/03/2018,Adult Social Care,REDACTED,14/03/2018,"1,122.50",76422-DIRECT PAYMENTS TO SOCIAL SERVICES CLIENTS,PD PACKAGE/PLACEMENT COSTS,Transfer Payments,Revenue
Walsall Council,http://opendatacommunities.org/id/metropolitan-district-council/walsall,WC90-149,31/03/2018,Adult Social Care,REDACTED,02/03/2018,"1,251.64",73372-DOMICILIARY CARE,LD PACKAGE/PLACEMENT COSTS,Third Party Payments,Revenue
Walsall Council,http://opendatacommunities.org/id/metropolitan-district-council/walsall,WC90-150,31/03/2018,Adult Social Care,REDACTED,20/03/2018,"1,301.64",73372-DOMICILIARY CARE,LD PACKAGE/PLACEMENT COSTS,Third Party Payments,Revenue
Walsall Council,http://opendatacommunities.org/id/metropolitan-district-council/walsall,WC90-151,31/03/2018,Resources and Transformation,ALLNALL IT & ELECTRICAL SOLUTIONS,16/03/2018,"1,300.00",63000-PROFESSIONAL FEES AND SERVICES,LEARNING & MANAGEMENT DEVELOPMENT,Supplies & Services,Revenue
Walsall Council,http://opendatacommunities.org/id/metropolitan-district-council/walsall,WC90-152,31/03/2018,Capital Financing,ALLPAY LTD,28/03/2018,"4,277.92",82500-BANK CHARGES-CENTRAL EXPENSES,BANK CHARGES,Supplies & Services,Revenue
Walsall Council,http://opendatacommunities.org/id/metropolitan-district-council/walsall,WC90-153,31/03/2018,Capital Financing,ALLPAY LTD,28/03/2018,"6,820.63",82500-BANK CHARGES-CENTRAL EXPENSES,BANK CHARGES,Supplies & Services,Revenue
Walsall Council,http://opendatacommunities.org/id/metropolitan-district-council/walsall,WC90-154,31/03/2018,Childrens,ALLSORTS OFFICE SUPPLIES LTD,01/03/2018,213.20,60000-FURNITURE & EQUIPMENT,SAFEGUARDING & FAMILY SUPPORT,Supplies & Services,Revenue
Walsall Council,http://opendatacommunities.org/id/metropolitan-district-council/walsall,WC90-155,31/03/2018,Resources and Transformation,ALLSORTS OFFICE SUPPLIES LTD,27/03/2018,"1,340.00",63800-COMPUTER EQUIPMENT AND SUPPLIES,RECHARGEABLE EQUIPMENT,Supplies & Services,Revenue
Walsall Council,http://opendatacommunities.org/id/metropolitan-district-council/walsall,WC90-156,31/03/2018,Adult Social Care,ALMA COURT,15/03/2018,609.00,73372-DOMICILIARY CARE,OP PACKAGE/PLACEMENT COSTS,Third Party Payments,Revenue
Walsall Council,http://opendatacommunities.org/id/metropolitan-district-council/walsall,WC90-157,31/03/2018,Adult Social Care,ALMA COURT,27/03/2018,"2,790.00",73372-DOMICILIARY CARE,OP PACKAGE/PLACEMENT COSTS,Third Party Payments,Revenue
Walsall Council,http://opendatacommunities.org/id/metropolitan-district-council/walsall,WC90-158,31/03/2018,Adult Social Care,ALMA COURT,13/03/2018,"6,316.87",73373-RESIDENTIAL & NURSING CARE PLACEMENTS,MENTAL HEALTH PACKAGE/PLACEMENT COSTS,Third Party Payments,Revenue
Walsall Council,http://opendatacommunities.org/id/metropolitan-district-council/walsall,WC90-159,31/03/2018,Childrens,ALMOZENE NURSERY & CHILDRENS CENTRE,06/03/2018,"3,458.40",66505-OTHER-GRANTS TO OTHER ORGS,EARLY YEARS - 2 YR OLDS,Third Party Payments,Revenue
Walsall Council,http://opendatacommunities.org/id/metropolitan-district-council/walsall,WC90-160,31/03/2018,Childrens,ALMOZENE NURSERY & CHILDRENS CENTRE,01/03/2018,"6,732.00",66505-OTHER-GRANTS TO OTHER ORGS,EARLY YEARS - 3 YR OLDS,Third Party Payments,Revenue
Walsall Council,http://opendatacommunities.org/id/metropolitan-district-council/walsall,WC90-161,31/03/2018,Childrens,ALPHA HAIR DESIGN ACADEMY,02/03/2018,"6,618.00",66502-TOP UP FUNDING -GRANTS TO SCHOOLS,INDEPENDENT PROVIDERS - POST SCHOOL,Third Party Payments,Revenue
Walsall Council,http://opendatacommunities.org/id/metropolitan-district-council/walsall,WC90-162,31/03/2018,Adult Social Care,ALPHA HEALTH CARE LTD,13/03/2018,"1,510.61",73373-RESIDENTIAL & NURSING CARE PLACEMENTS,OP PACKAGE/PLACEMENT COSTS,Third Party Payments,Revenue
Walsall Council,http://opendatacommunities.org/id/metropolitan-district-council/walsall,WC90-163,31/03/2018,Adult Social Care,ALPHA HEALTH CARE LTD,13/03/2018,"2,010.85",73373-RESIDENTIAL & NURSING CARE PLACEMENTS,OP PACKAGE/PLACEMENT COSTS,Third Party Payments,Revenue
Walsall Council,http://opendatacommunities.org/id/metropolitan-district-council/walsall,WC90-164,31/03/2018,Adult Social Care,ALPHA HEALTH CARE LTD,13/03/2018,"2,010.85",73373-RESIDENTIAL & NURSING CARE PLACEMENTS,OP PACKAGE/PLACEMENT COSTS,Third Party Payments,Revenue
Walsall Council,http://opendatacommunities.org/id/metropolitan-district-council/walsall,WC90-165,31/03/2018,Adult Social Care,ALPHA HEALTH CARE LTD,13/03/2018,"2,010.85",73373-RESIDENTIAL & NURSING CARE PLACEMENTS,OP PACKAGE/PLACEMENT COSTS,Third Party Payments,Revenue
Walsall Council,http://opendatacommunities.org/id/metropolitan-district-council/walsall,WC90-166,31/03/2018,Adult Social Care,ALPHA HEALTH CARE LTD,13/03/2018,"2,234.28",73373-RESIDENTIAL & NURSING CARE PLACEMENTS,OP PACKAGE/PLACEMENT COSTS,Third Party Payments,Revenue
Walsall Council,http://opendatacommunities.org/id/metropolitan-district-council/walsall,WC90-167,31/03/2018,Adult Social Care,ALPHA HEALTH CARE LTD,13/03/2018,"2,428.57",73373-RESIDENTIAL & NURSING CARE PLACEMENTS,OP PACKAGE/PLACEMENT COSTS,Third Party Payments,Revenue
Walsall Council,http://opendatacommunities.org/id/metropolitan-district-council/walsall,WC90-168,31/03/2018,Adult Social Care,ALPHA HEALTH CARE LTD,13/03/2018,"2,481.96",73373-RESIDENTIAL & NURSING CARE PLACEMENTS,OP PACKAGE/PLACEMENT COSTS,Third Party Payments,Revenue
Walsall Council,http://opendatacommunities.org/id/metropolitan-district-council/walsall,WC90-169,31/03/2018,Adult Social Care,ALPHA HEALTH CARE LTD,13/03/2018,"2,622.86",73373-RESIDENTIAL & NURSING CARE PLACEMENTS,OP PACKAGE/PLACEMENT COSTS,Third Party Payments,Revenue
Walsall Council,http://opendatacommunities.org/id/metropolitan-district-council/walsall,WC90-170,31/03/2018,Adult Social Care,ALPHA HEALTH CARE LTD,13/03/2018,"2,671.43",73373-RESIDENTIAL & NURSING CARE PLACEMENTS,OP PACKAGE/PLACEMENT COSTS,Third Party Payments,Revenue
Walsall Council,http://opendatacommunities.org/id/metropolitan-district-council/walsall,WC90-171,31/03/2018,Adult Social Care,ALPHA HEALTH CARE LTD,13/03/2018,"2,671.43",73373-RESIDENTIAL & NURSING CARE PLACEMENTS,OP PACKAGE/PLACEMENT COSTS,Third Party Payments,Revenue
Walsall Council,http://opendatacommunities.org/id/metropolitan-district-council/walsall,WC90-172,31/03/2018,Adult Social Care,ALPHA HEALTH CARE LTD,13/03/2018,"2,671.43",73373-RESIDENTIAL & NURSING CARE PLACEMENTS,OP PACKAGE/PLACEMENT COSTS,Third Party Payments,Revenue
Walsall Council,http://opendatacommunities.org/id/metropolitan-district-council/walsall,WC90-173,31/03/2018,Adult Social Care,ALPHA HEALTH CARE LTD,13/03/2018,"2,671.43",73373-RESIDENTIAL & NURSING CARE PLACEMENTS,OP PACKAGE/PLACEMENT COSTS,Third Party Payments,Revenue
Walsall Council,http://opendatacommunities.org/id/metropolitan-district-council/walsall,WC90-174,31/03/2018,Adult Social Care,ALPHA HEALTH CARE LTD,13/03/2018,"2,671.43",73373-RESIDENTIAL & NURSING CARE PLACEMENTS,MENTAL HEALTH PACKAGE/PLACEMENT COSTS,Third Party Payments,Revenue
Walsall Council,http://opendatacommunities.org/id/metropolitan-district-council/walsall,WC90-175,31/03/2018,Adult Social Care,ALPHA HEALTH CARE LTD,13/03/2018,"2,824.43",73373-RESIDENTIAL & NURSING CARE PLACEMENTS,MENTAL HEALTH PACKAGE/PLACEMENT COSTS,Third Party Payments,Revenue
Walsall Council,http://opendatacommunities.org/id/metropolitan-district-council/walsall,WC90-176,31/03/2018,Adult Social Care,ALPHA HEALTH CARE LTD,20/03/2018,"2,889.76",73373-RESIDENTIAL & NURSING CARE PLACEMENTS,OP PACKAGE/PLACEMENT COSTS,Third Party Payments,Revenue
Walsall Council,http://opendatacommunities.org/id/metropolitan-district-council/walsall,WC90-177,31/03/2018,Adult Social Care,ALPHA HEALTH CARE LTD,13/03/2018,"2,969.17",73373-RESIDENTIAL & NURSING CARE PLACEMENTS,OP PACKAGE/PLACEMENT COSTS,Third Party Payments,Revenue
Walsall Council,http://opendatacommunities.org/id/metropolitan-district-council/walsall,WC90-178,31/03/2018,Adult Social Care,ALPHA HEALTH CARE LTD,13/03/2018,"3,210.04",73373-RESIDENTIAL & NURSING CARE PLACEMENTS,OP PACKAGE/PLACEMENT COSTS,Third Party Payments,Revenue
Walsall Council,http://opendatacommunities.org/id/metropolitan-district-council/walsall,WC90-179,31/03/2018,Adult Social Care,ALPHA HEALTH CARE LTD,13/03/2018,"3,212.03",73373-RESIDENTIAL & NURSING CARE PLACEMENTS,OP PACKAGE/PLACEMENT COSTS,Third Party Payments,Revenue
Walsall Council,http://opendatacommunities.org/id/metropolitan-district-council/walsall,WC90-180,31/03/2018,Adult Social Care,ALPHA HEALTH CARE LTD,13/03/2018,"3,309.17",73373-RESIDENTIAL & NURSING CARE PLACEMENTS,OP PACKAGE/PLACEMENT COSTS,Third Party Payments,Revenue
Walsall Council,http://opendatacommunities.org/id/metropolitan-district-council/walsall,WC90-181,31/03/2018,Adult Social Care,ALPHA HEALTH CARE LTD,13/03/2018,"3,375.47",73373-RESIDENTIAL & NURSING CARE PLACEMENTS,OP PACKAGE/PLACEMENT COSTS,Third Party Payments,Revenue
Walsall Council,http://opendatacommunities.org/id/metropolitan-district-council/walsall,WC90-182,31/03/2018,Adult Social Care,ALPHA HEALTH CARE LTD,13/03/2018,"5,853.60",73373-RESIDENTIAL & NURSING CARE PLACEMENTS,OP PACKAGE/PLACEMENT COSTS,Third Party Payments,Revenue
Walsall Council,http://opendatacommunities.org/id/metropolitan-district-council/walsall,WC90-183,31/03/2018,Adult Social Care,ALPHA HEALTH CARE LTD,13/03/2018,"6,482.88",73373-RESIDENTIAL & NURSING CARE PLACEMENTS,MENTAL HEALTH PACKAGE/PLACEMENT COSTS,Third Party Payments,Revenue
Walsall Council,http://opendatacommunities.org/id/metropolitan-district-council/walsall,WC90-184,31/03/2018,Adult Social Care,ALPHA HEALTH CARE LTD,20/03/2018,"8,985.71",73373-RESIDENTIAL & NURSING CARE PLACEMENTS,OP PACKAGE/PLACEMENT COSTS,Third Party Payments,Revenue
Walsall Council,http://opendatacommunities.org/id/metropolitan-district-council/walsall,WC90-185,31/03/2018,Childrens,ALPHABIOLABS,05/03/2018,250.00,73014-LEGAL FEES-PRIV CONTRACTOR FEES,GENERAL MANAGEMENT SUPPORT (INC LEGAL),Third Party Payments,Revenue
Walsall Council,http://opendatacommunities.org/id/metropolitan-district-council/walsall,WC90-186,31/03/2018,Childrens,REDACTED,19/03/2018,260.00,76422-DIRECT PAYMENTS TO SOCIAL SERVICES CLIENTS,FAMILY SUPPORT - DIRECT PAYMENTS,Transfer Payments,Revenue
Walsall Council,http://opendatacommunities.org/id/metropolitan-district-council/walsall,WC90-187,31/03/2018,Economy & Environment,ALZEC VISION CIC,09/03/2018,"4,990.00",66500-GRANTS TO OTHER ORGS,ESF COMMUNITY GRANTS,Third Party Payments,Revenue
Walsall Council,http://opendatacommunities.org/id/metropolitan-district-council/walsall,WC90-188,31/03/2018,Childrens,AMAH NURSERIES LIMITED T/A BANANA MOON WALSALL,01/03/2018,"2,904.00",66505-OTHER-GRANTS TO OTHER ORGS,EARLY YEARS - 3 YR OLDS,Third Party Payments,Revenue
Walsall Council,http://opendatacommunities.org/id/metropolitan-district-council/walsall,WC90-189,31/03/2018,Childrens,REDACTED,01/03/2018,477.12,74510-RESIDENTS ORDERS,ADOPTION ALLOWANCES,Third Party Payments,Revenue
Walsall Council,http://opendatacommunities.org/id/metropolitan-district-council/walsall,WC90-190,31/03/2018,Childrens,REDACTED,09/03/2018,808.04,74009-ADOPTION ALLOWANCE,ADOPTION ALLOWANCES,Transfer Payments,Revenue
Walsall Council,http://opendatacommunities.org/id/metropolitan-district-council/walsall,WC90-191,31/03/2018,Childrens,REDACTED,23/03/2018,9.24,60006-NEW-FURNITURE & EQUIPMENT,INTERNAL FOSTER CARE PROVISION,Supplies & Services,Revenue
Walsall Council,http://opendatacommunities.org/id/metropolitan-district-council/walsall,WC90-192,31/03/2018,Childrens,REDACTED,23/03/2018,530.96,74508-INTERNAL FOSTER CARERS-CARER FEES,INTERNAL FOSTER CARE PROVISION,Transfer Payments,Revenue
Walsall Council,http://opendatacommunities.org/id/metropolitan-district-council/walsall,WC90-193,31/03/2018,Childrens,REDACTED,23/03/2018,650.92,74501-MAINTENANCE ALLOWANCE-FOSTER CARERS,INTERNAL FOSTER CARE PROVISION,Transfer Payments,Revenue
Walsall Council,http://opendatacommunities.org/id/metropolitan-district-council/walsall,WC90-194,31/03/2018,Adult Social Care,REDACTED,14/03/2018,"1,100.00",76422-DIRECT PAYMENTS TO SOCIAL SERVICES CLIENTS,LD PACKAGE/PLACEMENT COSTS,Transfer Payments,Revenue
Walsall Council,http://opendatacommunities.org/id/metropolitan-district-council/walsall,WC90-195,31/03/2018,Economy & Environment,AMEY LG LIMITED,27/03/2018,"-12,686.60",73025-PROFESSIONAL SERVICES-PRIV CONTRACTOR & OTHER AGENCIES,TRAFFIC MANAGEMENT,Third Party Payments,Revenue
Walsall Council,http://opendatacommunities.org/id/metropolitan-district-council/walsall,WC90-196,31/03/2018,Economy & Environment,AMEY LG LIMITED,27/03/2018,275.71,73002-SECURITY-PRIV CONTRACTOR FEES,TRAFFIC CONTROL,Third Party Payments,Revenue
Walsall Council,http://opendatacommunities.org/id/metropolitan-district-council/walsall,WC90-197,31/03/2018,Economy & Environment,AMEY LG LIMITED,14/03/2018,717.13,01006-SITE WORKS MAIN CONTRACTORS,CFR 1129 A461 CORRIDOR JUNCTION IMPROVEMENTS,Capital,Capital
Walsall Council,http://opendatacommunities.org/id/metropolitan-district-council/walsall,WC90-198,31/03/2018,Economy & Environment,AMEY LG LIMITED,27/03/2018,"1,248.29",73002-SECURITY-PRIV CONTRACTOR FEES,TRAFFIC CONTROL,Third Party Payments,Revenue
Walsall Council,http://opendatacommunities.org/id/metropolitan-district-council/walsall,WC90-199,31/03/2018,Economy & Environment,AMEY LG LIMITED,01/03/2018,"10,204.44",73025-PROFESSIONAL SERVICES-PRIV CONTRACTOR & OTHER AGENCIES,TRAFFIC MANAGEMENT,Third Party Payments,Revenue
Walsall Council,http://opendatacommunities.org/id/metropolitan-district-council/walsall,WC90-200,31/03/2018,Economy & Environment,AMEY LG LIMITED,21/03/2018,"18,178.25",73025-PROFESSIONAL SERVICES-PRIV CONTRACTOR & OTHER AGENCIES,TRAFFIC MANAGEMENT,Third Party Payments,Revenue
Walsall Council,http://opendatacommunities.org/id/metropolitan-district-council/walsall,WC90-201,31/03/2018,Childrens,AMG NURSING CARE SERVICES,15/03/2018,"1,295.84",63000-PROFESSIONAL FEES AND SERVICES,DIRECTLY COMMISSIONED NURSING SERVICES,Supplies & Services,Revenue
Walsall Council,http://opendatacommunities.org/id/metropolitan-district-council/walsall,WC90-202,31/03/2018,Childrens,AMG NURSING CARE SERVICES,06/03/2018,"2,274.48",63000-PROFESSIONAL FEES AND SERVICES,DIRECTLY COMMISSIONED NURSING SERVICES,Supplies & Services,Revenue
Walsall Council,http://opendatacommunities.org/id/metropolitan-district-council/walsall,WC90-203,31/03/2018,Childrens,AMG NURSING CARE SERVICES,07/03/2018,"2,274.48",63000-PROFESSIONAL FEES AND SERVICES,DIRECTLY COMMISSIONED NURSING SERVICES,Supplies & Services,Revenue
Walsall Council,http://opendatacommunities.org/id/metropolitan-district-council/walsall,WC90-204,31/03/2018,Adult Social Care,AMG NURSING CARE SERVICES,27/03/2018,"10,711.68",73372-DOMICILIARY CARE,OP PACKAGE/PLACEMENT COSTS,Third Party Payments,Revenue
Walsall Council,http://opendatacommunities.org/id/metropolitan-district-council/walsall,WC90-205,31/03/2018,Childrens,REDACTED,09/03/2018,9.24,60006-NEW-FURNITURE & EQUIPMENT,FAMILY & FRIENDS FOSTER CARE PROVISION,Supplies & Services,Revenue
Walsall Council,http://opendatacommunities.org/id/metropolitan-district-council/walsall,WC90-206,31/03/2018,Childrens,REDACTED,09/03/2018,345.24,74508-INTERNAL FOSTER CARERS-CARER FEES,FAMILY & FRIENDS FOSTER CARE PROVISION,Transfer Payments,Revenue
Walsall Council,http://opendatacommunities.org/id/metropolitan-district-council/walsall,WC90-207,31/03/2018,Childrens,REDACTED,09/03/2018,650.92,74501-MAINTENANCE ALLOWANCE-FOSTER CARERS,FAMILY & FRIENDS FOSTER CARE PROVISION,Transfer Payments,Revenue
Walsall Council,http://opendatacommunities.org/id/metropolitan-district-council/walsall,WC90-208,31/03/2018,Childrens,REDACTED,09/03/2018,425.08,74510-RESIDENTS ORDERS,ADOPTION ALLOWANCES,Third Party Payments,Revenue
Walsall Council,http://opendatacommunities.org/id/metropolitan-district-council/walsall,WC90-209,31/03/2018,Adult Social Care,ANCHOR,26/03/2018,843.14,73373-RESIDENTIAL & NURSING CARE PLACEMENTS,OP PACKAGE/PLACEMENT COSTS,Third Party Payments,Revenue
Walsall Council,http://opendatacommunities.org/id/metropolitan-district-council/walsall,WC90-210,31/03/2018,Adult Social Care,ANCHOR,26/03/2018,854.28,73373-RESIDENTIAL & NURSING CARE PLACEMENTS,OP PACKAGE/PLACEMENT COSTS,Third Party Payments,Revenue
Walsall Council,http://opendatacommunities.org/id/metropolitan-district-council/walsall,WC90-211,31/03/2018,Adult Social Care,ANCHOR,26/03/2018,854.28,73373-RESIDENTIAL & NURSING CARE PLACEMENTS,OP PACKAGE/PLACEMENT COSTS,Third Party Payments,Revenue
Walsall Council,http://opendatacommunities.org/id/metropolitan-district-council/walsall,WC90-212,31/03/2018,Adult Social Care,ANCHOR,26/03/2018,854.28,73373-RESIDENTIAL & NURSING CARE PLACEMENTS,MENTAL HEALTH PACKAGE/PLACEMENT COSTS,Third Party Payments,Revenue
Walsall Council,http://opendatacommunities.org/id/metropolitan-district-council/walsall,WC90-213,31/03/2018,Adult Social Care,ANCHOR,26/03/2018,854.29,73373-RESIDENTIAL & NURSING CARE PLACEMENTS,OP PACKAGE/PLACEMENT COSTS,Third Party Payments,Revenue
Walsall Council,http://opendatacommunities.org/id/metropolitan-district-council/walsall,WC90-214,31/03/2018,Adult Social Care,ANCHOR,26/03/2018,854.29,73373-RESIDENTIAL & NURSING CARE PLACEMENTS,OP PACKAGE/PLACEMENT COSTS,Third Party Payments,Revenue
Walsall Council,http://opendatacommunities.org/id/metropolitan-district-council/walsall,WC90-215,31/03/2018,Adult Social Care,ANCHOR,26/03/2018,854.29,73373-RESIDENTIAL & NURSING CARE PLACEMENTS,OP PACKAGE/PLACEMENT COSTS,Third Party Payments,Revenue
Walsall Council,http://opendatacommunities.org/id/metropolitan-district-council/walsall,WC90-216,31/03/2018,Adult Social Care,ANCHOR,26/03/2018,854.29,73373-RESIDENTIAL & NURSING CARE PLACEMENTS,OP PACKAGE/PLACEMENT COSTS,Third Party Payments,Revenue
Walsall Council,http://opendatacommunities.org/id/metropolitan-district-council/walsall,WC90-217,31/03/2018,Adult Social Care,ANCHOR,26/03/2018,854.29,73373-RESIDENTIAL & NURSING CARE PLACEMENTS,OP PACKAGE/PLACEMENT COSTS,Third Party Payments,Revenue
Walsall Council,http://opendatacommunities.org/id/metropolitan-district-council/walsall,WC90-218,31/03/2018,Adult Social Care,ANCHOR,26/03/2018,926.71,73373-RESIDENTIAL & NURSING CARE PLACEMENTS,OP PACKAGE/PLACEMENT COSTS,Third Party Payments,Revenue
Walsall Council,http://opendatacommunities.org/id/metropolitan-district-council/walsall,WC90-219,31/03/2018,Adult Social Care,ANCHOR,26/03/2018,965.71,73373-RESIDENTIAL & NURSING CARE PLACEMENTS,MENTAL HEALTH PACKAGE/PLACEMENT COSTS,Third Party Payments,Revenue
Walsall Council,http://opendatacommunities.org/id/metropolitan-district-council/walsall,WC90-220,31/03/2018,Adult Social Care,ANCHOR,26/03/2018,972.86,73373-RESIDENTIAL & NURSING CARE PLACEMENTS,OP PACKAGE/PLACEMENT COSTS,Third Party Payments,Revenue
Walsall Council,http://opendatacommunities.org/id/metropolitan-district-council/walsall,WC90-221,31/03/2018,Adult Social Care,ANCHOR,26/03/2018,985.71,73373-RESIDENTIAL & NURSING CARE PLACEMENTS,OP PACKAGE/PLACEMENT COSTS,Third Party Payments,Revenue
Walsall Council,http://opendatacommunities.org/id/metropolitan-district-council/walsall,WC90-222,31/03/2018,Adult Social Care,ANCHOR,26/03/2018,985.71,73373-RESIDENTIAL & NURSING CARE PLACEMENTS,OP PACKAGE/PLACEMENT COSTS,Third Party Payments,Revenue
Walsall Council,http://opendatacommunities.org/id/metropolitan-district-council/walsall,WC90-223,31/03/2018,Adult Social Care,ANCHOR,26/03/2018,985.71,73373-RESIDENTIAL & NURSING CARE PLACEMENTS,OP PACKAGE/PLACEMENT COSTS,Third Party Payments,Revenue
Walsall Council,http://opendatacommunities.org/id/metropolitan-district-council/walsall,WC90-224,31/03/2018,Adult Social Care,ANCHOR,26/03/2018,985.71,73373-RESIDENTIAL & NURSING CARE PLACEMENTS,OP PACKAGE/PLACEMENT COSTS,Third Party Payments,Revenue
Walsall Council,http://opendatacommunities.org/id/metropolitan-district-council/walsall,WC90-225,31/03/2018,Adult Social Care,ANCHOR,26/03/2018,985.71,73373-RESIDENTIAL & NURSING CARE PLACEMENTS,OP PACKAGE/PLACEMENT COSTS,Third Party Payments,Revenue
Walsall Council,http://opendatacommunities.org/id/metropolitan-district-council/walsall,WC90-226,31/03/2018,Adult Social Care,ANCHOR,26/03/2018,985.72,73373-RESIDENTIAL & NURSING CARE PLACEMENTS,OP PACKAGE/PLACEMENT COSTS,Third Party Payments,Revenue
Walsall Council,http://opendatacommunities.org/id/metropolitan-district-council/walsall,WC90-227,31/03/2018,Adult Social Care,ANCHOR,26/03/2018,985.72,73373-RESIDENTIAL & NURSING CARE PLACEMENTS,OP PACKAGE/PLACEMENT COSTS,Third Party Payments,Revenue
Walsall Council,http://opendatacommunities.org/id/metropolitan-district-council/walsall,WC90-228,31/03/2018,Adult Social Care,ANCHOR,26/03/2018,985.72,73373-RESIDENTIAL & NURSING CARE PLACEMENTS,MENTAL HEALTH PACKAGE/PLACEMENT COSTS,Third Party Payments,Revenue
Walsall Council,http://opendatacommunities.org/id/metropolitan-district-council/walsall,WC90-229,31/03/2018,Adult Social Care,ANCHOR,26/03/2018,"1,012.14",73373-RESIDENTIAL & NURSING CARE PLACEMENTS,OP PACKAGE/PLACEMENT COSTS,Third Party Payments,Revenue
Walsall Council,http://opendatacommunities.org/id/metropolitan-district-council/walsall,WC90-230,31/03/2018,Adult Social Care,ANCHOR,26/03/2018,"1,012.14",73373-RESIDENTIAL & NURSING CARE PLACEMENTS,OP PACKAGE/PLACEMENT COSTS,Third Party Payments,Revenue
Walsall Council,http://opendatacommunities.org/id/metropolitan-district-council/walsall,WC90-231,31/03/2018,Adult Social Care,ANCHOR,26/03/2018,"1,069.29",73373-RESIDENTIAL & NURSING CARE PLACEMENTS,OP PACKAGE/PLACEMENT COSTS,Third Party Payments,Revenue
Walsall Council,http://opendatacommunities.org/id/metropolitan-district-council/walsall,WC90-232,31/03/2018,Adult Social Care,ANCHOR,26/03/2018,"1,114.29",73373-RESIDENTIAL & NURSING CARE PLACEMENTS,MENTAL HEALTH PACKAGE/PLACEMENT COSTS,Third Party Payments,Revenue
Walsall Council,http://opendatacommunities.org/id/metropolitan-district-council/walsall,WC90-233,31/03/2018,Adult Social Care,ANCHOR,26/03/2018,"1,167.86",73373-RESIDENTIAL & NURSING CARE PLACEMENTS,OP PACKAGE/PLACEMENT COSTS,Third Party Payments,Revenue
Walsall Council,http://opendatacommunities.org/id/metropolitan-district-council/walsall,WC90-234,31/03/2018,Adult Social Care,ANCHOR,26/03/2018,"1,167.86",73373-RESIDENTIAL & NURSING CARE PLACEMENTS,OP PACKAGE/PLACEMENT COSTS,Third Party Payments,Revenue
Walsall Council,http://opendatacommunities.org/id/metropolitan-district-council/walsall,WC90-235,31/03/2018,Adult Social Care,ANCHOR,13/03/2018,"1,656.00",73373-RESIDENTIAL & NURSING CARE PLACEMENTS,OP PACKAGE/PLACEMENT COSTS,Third Party Payments,Revenue
Walsall Council,http://opendatacommunities.org/id/metropolitan-district-council/walsall,WC90-236,31/03/2018,Adult Social Care,ANCHOR,13/03/2018,"1,656.00",73373-RESIDENTIAL & NURSING CARE PLACEMENTS,OP PACKAGE/PLACEMENT COSTS,Third Party Payments,Revenue
Walsall Council,http://opendatacommunities.org/id/metropolitan-district-council/walsall,WC90-237,31/03/2018,Adult Social Care,ANCHOR,13/03/2018,"1,656.00",73373-RESIDENTIAL & NURSING CARE PLACEMENTS,OP PACKAGE/PLACEMENT COSTS,Third Party Payments,Revenue
Walsall Council,http://opendatacommunities.org/id/metropolitan-district-council/walsall,WC90-238,31/03/2018,Adult Social Care,ANCHOR,06/03/2018,"1,816.00",73373-RESIDENTIAL & NURSING CARE PLACEMENTS,OP PACKAGE/PLACEMENT COSTS,Third Party Payments,Revenue
Walsall Council,http://opendatacommunities.org/id/metropolitan-district-council/walsall,WC90-239,31/03/2018,Adult Social Care,ANCHOR,06/03/2018,"1,816.00",73373-RESIDENTIAL & NURSING CARE PLACEMENTS,OP PACKAGE/PLACEMENT COSTS,Third Party Payments,Revenue
Walsall Council,http://opendatacommunities.org/id/metropolitan-district-council/walsall,WC90-240,31/03/2018,Adult Social Care,ANCHOR,13/03/2018,"1,840.00",73373-RESIDENTIAL & NURSING CARE PLACEMENTS,OP PACKAGE/PLACEMENT COSTS,Third Party Payments,Revenue
Walsall Council,http://opendatacommunities.org/id/metropolitan-district-council/walsall,WC90-241,31/03/2018,Adult Social Care,ANCHOR,13/03/2018,"1,840.00",73373-RESIDENTIAL & NURSING CARE PLACEMENTS,OP PACKAGE/PLACEMENT COSTS,Third Party Payments,Revenue
Walsall Council,http://opendatacommunities.org/id/metropolitan-district-council/walsall,WC90-242,31/03/2018,Adult Social Care,ANCHOR,13/03/2018,"1,840.00",73373-RESIDENTIAL & NURSING CARE PLACEMENTS,OP PACKAGE/PLACEMENT COSTS,Third Party Payments,Revenue
Walsall Council,http://opendatacommunities.org/id/metropolitan-district-council/walsall,WC90-243,31/03/2018,Adult Social Care,ANCHOR,13/03/2018,"1,840.00",73373-RESIDENTIAL & NURSING CARE PLACEMENTS,OP PACKAGE/PLACEMENT COSTS,Third Party Payments,Revenue
Walsall Council,http://opendatacommunities.org/id/metropolitan-district-council/walsall,WC90-244,31/03/2018,Adult Social Care,ANCHOR,13/03/2018,"1,840.00",73373-RESIDENTIAL & NURSING CARE PLACEMENTS,OP PACKAGE/PLACEMENT COSTS,Third Party Payments,Revenue
Walsall Council,http://opendatacommunities.org/id/metropolitan-district-council/walsall,WC90-245,31/03/2018,Adult Social Care,ANCHOR,13/03/2018,"1,840.00",73373-RESIDENTIAL & NURSING CARE PLACEMENTS,OP PACKAGE/PLACEMENT COSTS,Third Party Payments,Revenue
Walsall Council,http://opendatacommunities.org/id/metropolitan-district-council/walsall,WC90-246,31/03/2018,Adult Social Care,ANCHOR,13/03/2018,"1,840.00",73373-RESIDENTIAL & NURSING CARE PLACEMENTS,OP PACKAGE/PLACEMENT COSTS,Third Party Payments,Revenue
Walsall Council,http://opendatacommunities.org/id/metropolitan-district-council/walsall,WC90-247,31/03/2018,Adult Social Care,ANCHOR,20/03/2018,"2,121.43",73373-RESIDENTIAL & NURSING CARE PLACEMENTS,OP PACKAGE/PLACEMENT COSTS,Third Party Payments,Revenue
Walsall Council,http://opendatacommunities.org/id/metropolitan-district-council/walsall,WC90-248,31/03/2018,Childrens,REDACTED,09/03/2018,314.44,74509-SPECIAL GUARDIANSHIP ORDERS,ADOPTION ALLOWANCES,Transfer Payments,Revenue
Walsall Council,http://opendatacommunities.org/id/metropolitan-district-council/walsall,WC90-249,31/03/2018,Childrens,REDACTED,23/03/2018,9.24,60006-NEW-FURNITURE & EQUIPMENT,INTERNAL FOSTER CARE PROVISION,Supplies & Services,Revenue
Walsall Council,http://opendatacommunities.org/id/metropolitan-district-council/walsall,WC90-250,31/03/2018,Childrens,REDACTED,23/03/2018,810.32,74506-TRAVEL-FOSTER CARERS,INTERNAL FOSTER CARE PROVISION,Transfer Payments,Revenue
Walsall Council,http://opendatacommunities.org/id/metropolitan-district-council/walsall,WC90-251,31/03/2018,Childrens,REDACTED,23/03/2018,810.32,74501-MAINTENANCE ALLOWANCE-FOSTER CARERS,INTERNAL FOSTER CARE PROVISION,Transfer Payments,Revenue
Walsall Council,http://opendatacommunities.org/id/metropolitan-district-council/walsall,WC90-252,31/03/2018,Childrens,REDACTED,23/03/2018,897.52,74508-INTERNAL FOSTER CARERS-CARER FEES,INTERNAL FOSTER CARE PROVISION,Transfer Payments,Revenue
Walsall Council,http://opendatacommunities.org/id/metropolitan-district-council/walsall,WC90-253,31/03/2018,Adult Social Care,REDACTED,14/03/2018,"2,165.45",76422-DIRECT PAYMENTS TO SOCIAL SERVICES CLIENTS,OP PACKAGE/PLACEMENT COSTS,Transfer Payments,Revenue
Walsall Council,http://opendatacommunities.org/id/metropolitan-district-council/walsall,WC90-254,31/03/2018,Adult Social Care,ANGEL COURT RESIDENTIAL CARE HOME,13/03/2018,"1,833.43",73373-RESIDENTIAL & NURSING CARE PLACEMENTS,OP PACKAGE/PLACEMENT COSTS,Third Party Payments,Revenue
Walsall Council,http://opendatacommunities.org/id/metropolitan-district-council/walsall,WC90-255,31/03/2018,Adult Social Care,ANGEL COURT RESIDENTIAL CARE HOME,13/03/2018,"2,118.14",73373-RESIDENTIAL & NURSING CARE PLACEMENTS,OP PACKAGE/PLACEMENT COSTS,Third Party Payments,Revenue
Walsall Council,http://opendatacommunities.org/id/metropolitan-district-council/walsall,WC90-256,31/03/2018,Adult Social Care,ANGEL COURT RESIDENTIAL CARE HOME,13/03/2018,"2,150.07",73373-RESIDENTIAL & NURSING CARE PLACEMENTS,OP PACKAGE/PLACEMENT COSTS,Third Party Payments,Revenue
Walsall Council,http://opendatacommunities.org/id/metropolitan-district-council/walsall,WC90-257,31/03/2018,Childrens,ANGEL SOLUTIONS LTD,14/03/2018,"12,236.00",63114-OTHER FEES & LICENCES-SERVICES-FEES,WCS STATUTORY LICENCES,Supplies & Services,Revenue
Walsall Council,http://opendatacommunities.org/id/metropolitan-district-council/walsall,WC90-258,31/03/2018,Childrens,REDACTED,09/03/2018,368.76,74509-SPECIAL GUARDIANSHIP ORDERS,ADOPTION ALLOWANCES,Transfer Payments,Revenue
Walsall Council,http://opendatacommunities.org/id/metropolitan-district-council/walsall,WC90-259,31/03/2018,Childrens,REDACTED,09/03/2018,368.76,74509-SPECIAL GUARDIANSHIP ORDERS,ADOPTION ALLOWANCES,Transfer Payments,Revenue
Walsall Council,http://opendatacommunities.org/id/metropolitan-district-council/walsall,WC90-260,31/03/2018,Childrens,REDACTED,09/03/2018,500.16,74509-SPECIAL GUARDIANSHIP ORDERS,ADOPTION ALLOWANCES,Transfer Payments,Revenue
Walsall Council,http://opendatacommunities.org/id/metropolitan-district-council/walsall,WC90-261,31/03/2018,Childrens,REDACTED,09/03/2018,312.04,74509-SPECIAL GUARDIANSHIP ORDERS,ADOPTION ALLOWANCES,Transfer Payments,Revenue
Walsall Council,http://opendatacommunities.org/id/metropolitan-district-council/walsall,WC90-262,31/03/2018,Adult Social Care,REDACTED,14/03/2018,409.20,76422-DIRECT PAYMENTS TO SOCIAL SERVICES CLIENTS,LD PACKAGE/PLACEMENT COSTS,Transfer Payments,Revenue
Walsall Council,http://opendatacommunities.org/id/metropolitan-district-council/walsall,WC90-263,31/03/2018,Adult Social Care,REDACTED,19/03/2018,354.38,76422-DIRECT PAYMENTS TO SOCIAL SERVICES CLIENTS,OP PACKAGE/PLACEMENT COSTS,Transfer Payments,Revenue
Walsall Council,http://opendatacommunities.org/id/metropolitan-district-council/walsall,WC90-264,31/03/2018,Adult Social Care,REDACTED,14/03/2018,850.30,76422-DIRECT PAYMENTS TO SOCIAL SERVICES CLIENTS,OP PACKAGE/PLACEMENT COSTS,Transfer Payments,Revenue
Walsall Council,http://opendatacommunities.org/id/metropolitan-district-council/walsall,WC90-265,31/03/2018,Adult Social Care,REDACTED,14/03/2018,"1,409.40",76422-DIRECT PAYMENTS TO SOCIAL SERVICES CLIENTS,OP PACKAGE/PLACEMENT COSTS,Transfer Payments,Revenue
Walsall Council,http://opendatacommunities.org/id/metropolitan-district-council/walsall,WC90-266,31/03/2018,Adult Social Care,ANSON COURT RESIDENTIAL HOME,20/03/2018,"-1,380.00",73373-RESIDENTIAL & NURSING CARE PLACEMENTS,OP PACKAGE/PLACEMENT COSTS,Third Party Payments,Revenue
Walsall Council,http://opendatacommunities.org/id/metropolitan-district-council/walsall,WC90-267,31/03/2018,Adult Social Care,ANSON COURT RESIDENTIAL HOME,20/03/2018,-822.86,73373-RESIDENTIAL & NURSING CARE PLACEMENTS,MENTAL HEALTH PACKAGE/PLACEMENT COSTS,Third Party Payments,Revenue
Walsall Council,http://opendatacommunities.org/id/metropolitan-district-council/walsall,WC90-268,31/03/2018,Adult Social Care,ANSON COURT RESIDENTIAL HOME,26/03/2018,480.00,73373-RESIDENTIAL & NURSING CARE PLACEMENTS,OP PACKAGE/PLACEMENT COSTS,Third Party Payments,Revenue
Walsall Council,http://opendatacommunities.org/id/metropolitan-district-council/walsall,WC90-269,31/03/2018,Adult Social Care,ANSON COURT RESIDENTIAL HOME,13/03/2018,"1,905.71",73373-RESIDENTIAL & NURSING CARE PLACEMENTS,OP PACKAGE/PLACEMENT COSTS,Third Party Payments,Revenue
Walsall Council,http://opendatacommunities.org/id/metropolitan-district-council/walsall,WC90-270,31/03/2018,Adult Social Care,ANSON COURT RESIDENTIAL HOME,13/03/2018,"1,905.71",73373-RESIDENTIAL & NURSING CARE PLACEMENTS,MENTAL HEALTH PACKAGE/PLACEMENT COSTS,Third Party Payments,Revenue
Walsall Council,http://opendatacommunities.org/id/metropolitan-district-council/walsall,WC90-271,31/03/2018,Adult Social Care,ANSON COURT RESIDENTIAL HOME,13/03/2018,"1,905.71",73373-RESIDENTIAL & NURSING CARE PLACEMENTS,OP PACKAGE/PLACEMENT COSTS,Third Party Payments,Revenue
Walsall Council,http://opendatacommunities.org/id/metropolitan-district-council/walsall,WC90-272,31/03/2018,Adult Social Care,ANSON COURT RESIDENTIAL HOME,13/03/2018,"1,905.71",73373-RESIDENTIAL & NURSING CARE PLACEMENTS,OP PACKAGE/PLACEMENT COSTS,Third Party Payments,Revenue
Walsall Council,http://opendatacommunities.org/id/metropolitan-district-council/walsall,WC90-273,31/03/2018,Adult Social Care,ANSON COURT RESIDENTIAL HOME,13/03/2018,"1,905.71",73373-RESIDENTIAL & NURSING CARE PLACEMENTS,OP PACKAGE/PLACEMENT COSTS,Third Party Payments,Revenue
Walsall Council,http://opendatacommunities.org/id/metropolitan-district-council/walsall,WC90-274,31/03/2018,Adult Social Care,ANSON COURT RESIDENTIAL HOME,20/03/2018,"1,905.71",73373-RESIDENTIAL & NURSING CARE PLACEMENTS,OP PACKAGE/PLACEMENT COSTS,Third Party Payments,Revenue
Walsall Council,http://opendatacommunities.org/id/metropolitan-district-council/walsall,WC90-275,31/03/2018,Adult Social Care,ANSON COURT RESIDENTIAL HOME,13/03/2018,"1,905.72",73373-RESIDENTIAL & NURSING CARE PLACEMENTS,OP PACKAGE/PLACEMENT COSTS,Third Party Payments,Revenue
Walsall Council,http://opendatacommunities.org/id/metropolitan-district-council/walsall,WC90-276,31/03/2018,Adult Social Care,ANSON COURT RESIDENTIAL HOME,13/03/2018,"1,905.72",73373-RESIDENTIAL & NURSING CARE PLACEMENTS,OP PACKAGE/PLACEMENT COSTS,Third Party Payments,Revenue
Walsall Council,http://opendatacommunities.org/id/metropolitan-district-council/walsall,WC90-277,31/03/2018,Adult Social Care,ANSON COURT RESIDENTIAL HOME,13/03/2018,"1,905.72",73373-RESIDENTIAL & NURSING CARE PLACEMENTS,OP PACKAGE/PLACEMENT COSTS,Third Party Payments,Revenue
Walsall Council,http://opendatacommunities.org/id/metropolitan-district-council/walsall,WC90-278,31/03/2018,Adult Social Care,ANSON COURT RESIDENTIAL HOME,13/03/2018,"1,905.72",73373-RESIDENTIAL & NURSING CARE PLACEMENTS,OP PACKAGE/PLACEMENT COSTS,Third Party Payments,Revenue
Walsall Council,http://opendatacommunities.org/id/metropolitan-district-council/walsall,WC90-279,31/03/2018,Adult Social Care,ANSON COURT RESIDENTIAL HOME,13/03/2018,"1,905.72",73373-RESIDENTIAL & NURSING CARE PLACEMENTS,OP PACKAGE/PLACEMENT COSTS,Third Party Payments,Revenue
Walsall Council,http://opendatacommunities.org/id/metropolitan-district-council/walsall,WC90-280,31/03/2018,Adult Social Care,ANSON COURT RESIDENTIAL HOME,13/03/2018,"1,905.72",73373-RESIDENTIAL & NURSING CARE PLACEMENTS,OP PACKAGE/PLACEMENT COSTS,Third Party Payments,Revenue
Walsall Council,http://opendatacommunities.org/id/metropolitan-district-council/walsall,WC90-281,31/03/2018,Adult Social Care,ANSON COURT RESIDENTIAL HOME,13/03/2018,"1,905.72",73373-RESIDENTIAL & NURSING CARE PLACEMENTS,OP PACKAGE/PLACEMENT COSTS,Third Party Payments,Revenue
Walsall Council,http://opendatacommunities.org/id/metropolitan-district-council/walsall,WC90-282,31/03/2018,Adult Social Care,ANSON COURT RESIDENTIAL HOME,13/03/2018,"1,905.72",73373-RESIDENTIAL & NURSING CARE PLACEMENTS,OP PACKAGE/PLACEMENT COSTS,Third Party Payments,Revenue
Walsall Council,http://opendatacommunities.org/id/metropolitan-district-council/walsall,WC90-283,31/03/2018,Adult Social Care,ANSON COURT RESIDENTIAL HOME,13/03/2018,"1,905.72",73373-RESIDENTIAL & NURSING CARE PLACEMENTS,OP PACKAGE/PLACEMENT COSTS,Third Party Payments,Revenue
Walsall Council,http://opendatacommunities.org/id/metropolitan-district-council/walsall,WC90-284,31/03/2018,Adult Social Care,ANSON COURT RESIDENTIAL HOME,13/03/2018,"1,905.72",73373-RESIDENTIAL & NURSING CARE PLACEMENTS,OP PACKAGE/PLACEMENT COSTS,Third Party Payments,Revenue
Walsall Council,http://opendatacommunities.org/id/metropolitan-district-council/walsall,WC90-285,31/03/2018,Adult Social Care,ANSON COURT RESIDENTIAL HOME,13/03/2018,"1,988.57",73373-RESIDENTIAL & NURSING CARE PLACEMENTS,OP PACKAGE/PLACEMENT COSTS,Third Party Payments,Revenue
Walsall Council,http://opendatacommunities.org/id/metropolitan-district-council/walsall,WC90-286,31/03/2018,Adult Social Care,ANSON COURT RESIDENTIAL HOME,13/03/2018,"1,988.57",73373-RESIDENTIAL & NURSING CARE PLACEMENTS,OP PACKAGE/PLACEMENT COSTS,Third Party Payments,Revenue
Walsall Council,http://opendatacommunities.org/id/metropolitan-district-council/walsall,WC90-287,31/03/2018,Adult Social Care,ANSON COURT RESIDENTIAL HOME,20/03/2018,"2,497.14",73373-RESIDENTIAL & NURSING CARE PLACEMENTS,OP PACKAGE/PLACEMENT COSTS,Third Party Payments,Revenue
Walsall Council,http://opendatacommunities.org/id/metropolitan-district-council/walsall,WC90-288,31/03/2018,Adult Social Care,ANSON COURT RESIDENTIAL HOME,20/03/2018,"2,537.14",73373-RESIDENTIAL & NURSING CARE PLACEMENTS,OP PACKAGE/PLACEMENT COSTS,Third Party Payments,Revenue
Walsall Council,http://opendatacommunities.org/id/metropolitan-district-council/walsall,WC90-289,31/03/2018,Adult Social Care,ANSON COURT RESIDENTIAL HOME,13/03/2018,"5,095.72",73373-RESIDENTIAL & NURSING CARE PLACEMENTS,MENTAL HEALTH PACKAGE/PLACEMENT COSTS,Third Party Payments,Revenue
Walsall Council,http://opendatacommunities.org/id/metropolitan-district-council/walsall,WC90-290,31/03/2018,Resources and Transformation,ANTALIS LIMITED,01/03/2018,560.00,60500-GENERAL MATERIALS,PRINTING SERVICES,Supplies & Services,Revenue
Walsall Council,http://opendatacommunities.org/id/metropolitan-district-council/walsall,WC90-291,31/03/2018,Childrens,REDACTED,09/03/2018,604.00,74510-RESIDENTS ORDERS,ADOPTION ALLOWANCES,Third Party Payments,Revenue
Walsall Council,http://opendatacommunities.org/id/metropolitan-district-council/walsall,WC90-292,31/03/2018,Childrens,REDACTED,09/03/2018,333.12,74509-SPECIAL GUARDIANSHIP ORDERS,ADOPTION ALLOWANCES,Transfer Payments,Revenue
Walsall Council,http://opendatacommunities.org/id/metropolitan-district-council/walsall,WC90-293,31/03/2018,Adult Social Care,ANVILLE COURT CARE LTD,26/03/2018,"1,178.57",73373-RESIDENTIAL & NURSING CARE PLACEMENTS,MENTAL HEALTH PACKAGE/PLACEMENT COSTS,Third Party Payments,Revenue
Walsall Council,http://opendatacommunities.org/id/metropolitan-district-council/walsall,WC90-294,31/03/2018,Adult Social Care,ANVILLE COURT CARE LTD,13/03/2018,"3,000.00",73373-RESIDENTIAL & NURSING CARE PLACEMENTS,MENTAL HEALTH PACKAGE/PLACEMENT COSTS,Third Party Payments,Revenue
Walsall Council,http://opendatacommunities.org/id/metropolitan-district-council/walsall,WC90-295,31/03/2018,Economy & Environment,APCOA PARKING SERVICES (UK) LTD,07/03/2018,"41,240.18",73025-PROFESSIONAL SERVICES-PRIV CONTRACTOR & OTHER AGENCIES,PARKING SERVICES OFF-STREET,Third Party Payments,Revenue
Walsall Council,http://opendatacommunities.org/id/metropolitan-district-council/walsall,WC90-296,31/03/2018,Childrens,APPLE TRANSCRIPTION LIMITED,07/03/2018,281.70,73014-LEGAL FEES-PRIV CONTRACTOR FEES,GENERAL MANAGEMENT SUPPORT (INC LEGAL),Third Party Payments,Revenue
Walsall Council,http://opendatacommunities.org/id/metropolitan-district-council/walsall,WC90-297,31/03/2018,Childrens,APPLE TRANSCRIPTION LIMITED,26/03/2018,287.82,73014-LEGAL FEES-PRIV CONTRACTOR FEES,GENERAL MANAGEMENT SUPPORT (INC LEGAL),Third Party Payments,Revenue
Walsall Council,http://opendatacommunities.org/id/metropolitan-district-council/walsall,WC90-298,31/03/2018,Economy & Environment,APSE 001,09/03/2018,350.00,30030-EXTERNAL TRAINING,GROUNDS,Employees,Revenue
Walsall Council,http://opendatacommunities.org/id/metropolitan-district-council/walsall,WC90-299,31/03/2018,Economy & Environment,AQUA FORCE SPECIAL WASTE LTD,16/03/2018,550.00,73029-HAZARDOUS WASTE REMOVAL/DISPOSAL-PRIV CONTRACTOR FEES,WASTE DISPOSAL - RESIDUAL,Third Party Payments,Revenue
Walsall Council,http://opendatacommunities.org/id/metropolitan-district-council/walsall,WC90-300,31/03/2018,Economy & Environment,AQUALYMPIC,12/03/2018,250.00,34305-AGENCY STAFF-EMPLOYEES,BLOXWICH LEISURE CENTRE,Employees,Revenue
Walsall Council,http://opendatacommunities.org/id/metropolitan-district-council/walsall,WC90-301,31/03/2018,Economy & Environment,AQUALYMPIC,12/03/2018,897.50,34305-AGENCY STAFF-EMPLOYEES,OAK PARK,Employees,Revenue
Walsall Council,http://opendatacommunities.org/id/metropolitan-district-council/walsall,WC90-302,31/03/2018,Economy & Environment,AQUALYMPIC,19/03/2018,"1,212.50",34305-AGENCY STAFF-EMPLOYEES,OAK PARK,Employees,Revenue
Walsall Council,http://opendatacommunities.org/id/metropolitan-district-council/walsall,WC90-303,31/03/2018,Economy & Environment,AQUALYMPIC,12/03/2018,"2,182.50",34305-AGENCY STAFF-EMPLOYEES,OAK PARK,Employees,Revenue
Walsall Council,http://opendatacommunities.org/id/metropolitan-district-council/walsall,WC90-304,31/03/2018,Adult Social Care,ARBORETUM NURSING HOME.,13/03/2018,"1,785.71",73373-RESIDENTIAL & NURSING CARE PLACEMENTS,OP PACKAGE/PLACEMENT COSTS,Third Party Payments,Revenue
Walsall Council,http://opendatacommunities.org/id/metropolitan-district-council/walsall,WC90-305,31/03/2018,Adult Social Care,ARBORETUM NURSING HOME.,06/03/2018,"2,000.00",73373-RESIDENTIAL & NURSING CARE PLACEMENTS,PD PACKAGE/PLACEMENT COSTS,Third Party Payments,Revenue
Walsall Council,http://opendatacommunities.org/id/metropolitan-district-council/walsall,WC90-306,31/03/2018,Adult Social Care,ARBORETUM NURSING HOME.,06/03/2018,"2,000.00",73373-RESIDENTIAL & NURSING CARE PLACEMENTS,OP PACKAGE/PLACEMENT COSTS,Third Party Payments,Revenue
Walsall Council,http://opendatacommunities.org/id/metropolitan-district-council/walsall,WC90-307,31/03/2018,Adult Social Care,ARBORETUM NURSING HOME.,06/03/2018,"2,100.00",73373-RESIDENTIAL & NURSING CARE PLACEMENTS,OP PACKAGE/PLACEMENT COSTS,Third Party Payments,Revenue
Walsall Council,http://opendatacommunities.org/id/metropolitan-district-council/walsall,WC90-308,31/03/2018,Adult Social Care,ARBORETUM NURSING HOME.,13/03/2018,"2,357.14",73373-RESIDENTIAL & NURSING CARE PLACEMENTS,OP PACKAGE/PLACEMENT COSTS,Third Party Payments,Revenue
Walsall Council,http://opendatacommunities.org/id/metropolitan-district-council/walsall,WC90-309,31/03/2018,Adult Social Care,ARBORETUM NURSING HOME.,13/03/2018,"2,428.57",73373-RESIDENTIAL & NURSING CARE PLACEMENTS,PD PACKAGE/PLACEMENT COSTS,Third Party Payments,Revenue
Walsall Council,http://opendatacommunities.org/id/metropolitan-district-council/walsall,WC90-310,31/03/2018,Adult Social Care,ARBORETUM NURSING HOME.,13/03/2018,"2,428.57",73373-RESIDENTIAL & NURSING CARE PLACEMENTS,OP PACKAGE/PLACEMENT COSTS,Third Party Payments,Revenue
Walsall Council,http://opendatacommunities.org/id/metropolitan-district-council/walsall,WC90-311,31/03/2018,Adult Social Care,ARBORETUM NURSING HOME.,13/03/2018,"2,525.71",73373-RESIDENTIAL & NURSING CARE PLACEMENTS,OP PACKAGE/PLACEMENT COSTS,Third Party Payments,Revenue
Walsall Council,http://opendatacommunities.org/id/metropolitan-district-council/walsall,WC90-312,31/03/2018,Adult Social Care,ARBORETUM NURSING HOME.,13/03/2018,"2,700.00",73373-RESIDENTIAL & NURSING CARE PLACEMENTS,OP PACKAGE/PLACEMENT COSTS,Third Party Payments,Revenue
Walsall Council,http://opendatacommunities.org/id/metropolitan-district-council/walsall,WC90-313,31/03/2018,Economy & Environment,ARCHWAY TCS LTD,01/03/2018,235.00,73025-PROFESSIONAL SERVICES-PRIV CONTRACTOR & OTHER AGENCIES,DEPOT,Third Party Payments,Revenue
Walsall Council,http://opendatacommunities.org/id/metropolitan-district-council/walsall,WC90-314,31/03/2018,Economy & Environment,ARCHWAY TCS LTD,01/03/2018,707.50,73025-PROFESSIONAL SERVICES-PRIV CONTRACTOR & OTHER AGENCIES,DEPOT,Third Party Payments,Revenue
Walsall Council,http://opendatacommunities.org/id/metropolitan-district-council/walsall,WC90-315,31/03/2018,Adult Social Care,ARK HOME HEALTHCARE LIMITED,05/03/2018,"29,994.25",73372-DOMICILIARY CARE,OP PACKAGE/PLACEMENT COSTS,Third Party Payments,Revenue
Walsall Council,http://opendatacommunities.org/id/metropolitan-district-council/walsall,WC90-316,31/03/2018,Adult Social Care,ARK HOME HEALTHCARE LIMITED,26/03/2018,"31,389.16",73372-DOMICILIARY CARE,OP PACKAGE/PLACEMENT COSTS,Third Party Payments,Revenue
Walsall Council,http://opendatacommunities.org/id/metropolitan-district-council/walsall,WC90-317,31/03/2018,Childrens,ARNFIELD CARE LIMITED,23/03/2018,"15,616.00",74036-EXTERNAL RESIDENTIAL CARE-OTH AGENCY PROVISION,INDEPENDENT RESIDENTIAL HOMES,Third Party Payments,Revenue
Walsall Council,http://opendatacommunities.org/id/metropolitan-district-council/walsall,WC90-318,31/03/2018,Childrens,ARTHUR M GRIFFITHS & SON LTD,14/03/2018,"192,493.38",01006-SITE WORKS MAIN CONTRACTORS,CFR 929 FIBBERSLEY PRIMARY SIGNIFICANT ENLARGEMENT,Capital,Capital
Walsall Council,http://opendatacommunities.org/id/metropolitan-district-council/walsall,WC90-319,31/03/2018,Economy & Environment,ASDA PHARMACY,13/03/2018,293.91,71007-CONTRIBUTION TO PCT,PUBLIC HEALTH BUSINESS SUPPORT,Third Party Payments,Revenue
Walsall Council,http://opendatacommunities.org/id/metropolitan-district-council/walsall,WC90-320,31/03/2018,Economy & Environment,ASDA PHARMACY,01/03/2018,"2,075.00",63253-PAYMENT TO CONTRACTOR,GENERAL HEALTH PROTECTION,Third Party Payments,Revenue
Walsall Council,http://opendatacommunities.org/id/metropolitan-district-council/walsall,WC90-321,31/03/2018,Adult Social Care,ASH GRANGE CARE HOME,06/03/2018,"2,000.00",73373-RESIDENTIAL & NURSING CARE PLACEMENTS,OP PACKAGE/PLACEMENT COSTS,Third Party Payments,Revenue
Walsall Council,http://opendatacommunities.org/id/metropolitan-district-council/walsall,WC90-322,31/03/2018,Adult Social Care,ASH GRANGE CARE HOME,06/03/2018,"2,000.00",73373-RESIDENTIAL & NURSING CARE PLACEMENTS,OP PACKAGE/PLACEMENT COSTS,Third Party Payments,Revenue
Walsall Council,http://opendatacommunities.org/id/metropolitan-district-council/walsall,WC90-323,31/03/2018,Adult Social Care,ASH GRANGE CARE HOME,06/03/2018,"2,480.00",73373-RESIDENTIAL & NURSING CARE PLACEMENTS,OP PACKAGE/PLACEMENT COSTS,Third Party Payments,Revenue
Walsall Council,http://opendatacommunities.org/id/metropolitan-district-council/walsall,WC90-324,31/03/2018,Adult Social Care,ASHBOURNE LODGE,13/03/2018,"2,173.99",73373-RESIDENTIAL & NURSING CARE PLACEMENTS,OP PACKAGE/PLACEMENT COSTS,Third Party Payments,Revenue
Walsall Council,http://opendatacommunities.org/id/metropolitan-district-council/walsall,WC90-325,31/03/2018,Holding Accounts,ASHCROFT MEMORIALS,27/03/2018,480.00,67001-MISC INSURANCES - PAYMENT OF CLAIMS,PUBLIC LIABILITY,Supplies & Services,Revenue
Walsall Council,http://opendatacommunities.org/id/metropolitan-district-council/walsall,WC90-326,31/03/2018,Adult Social Care,REDACTED,14/03/2018,527.50,76422-DIRECT PAYMENTS TO SOCIAL SERVICES CLIENTS,LD PACKAGE/PLACEMENT COSTS,Transfer Payments,Revenue
Walsall Council,http://opendatacommunities.org/id/metropolitan-district-council/walsall,WC90-327,31/03/2018,Adult Social Care,REDACTED,14/03/2018,"1,365.00",76422-DIRECT PAYMENTS TO SOCIAL SERVICES CLIENTS,LD PACKAGE/PLACEMENT COSTS,Transfer Payments,Revenue
Walsall Council,http://opendatacommunities.org/id/metropolitan-district-council/walsall,WC90-328,31/03/2018,Adult Social Care,REDACTED,14/03/2018,945.00,76422-DIRECT PAYMENTS TO SOCIAL SERVICES CLIENTS,OP PACKAGE/PLACEMENT COSTS,Transfer Payments,Revenue
Walsall Council,http://opendatacommunities.org/id/metropolitan-district-council/walsall,WC90-329,31/03/2018,Adult Social Care,REDACTED,19/03/2018,"1,092.00",76422-DIRECT PAYMENTS TO SOCIAL SERVICES CLIENTS,OP PACKAGE/PLACEMENT COSTS,Transfer Payments,Revenue
Walsall Council,http://opendatacommunities.org/id/metropolitan-district-council/walsall,WC90-330,31/03/2018,Adult Social Care,ASSURED HEALTHCARE SOLUTIONS (PARK FARM LODGE),13/03/2018,"1,669.92",73373-RESIDENTIAL & NURSING CARE PLACEMENTS,OP PACKAGE/PLACEMENT COSTS,Third Party Payments,Revenue
Walsall Council,http://opendatacommunities.org/id/metropolitan-district-council/walsall,WC90-331,31/03/2018,Adult Social Care,ASSURED HEALTHCARE SOLUTIONS (PARK FARM LODGE),20/03/2018,"1,948.32",73373-RESIDENTIAL & NURSING CARE PLACEMENTS,OP PACKAGE/PLACEMENT COSTS,Third Party Payments,Revenue
Walsall Council,http://opendatacommunities.org/id/metropolitan-district-council/walsall,WC90-332,31/03/2018,Childrens,ASTON UNIVERSITY ENGINEERING ACADEMY,12/03/2018,"25,000.00",66502-TOP UP FUNDING -GRANTS TO SCHOOLS,ACADEMIES,Third Party Payments,Revenue
Walsall Council,http://opendatacommunities.org/id/metropolitan-district-council/walsall,WC90-333,31/03/2018,Childrens,ATKINSON LEWIS LIMITED,19/03/2018,215.50,73014-LEGAL FEES-PRIV CONTRACTOR FEES,GENERAL MANAGEMENT SUPPORT (INC LEGAL),Third Party Payments,Revenue
Walsall Council,http://opendatacommunities.org/id/metropolitan-district-council/walsall,WC90-334,31/03/2018,Economy & Environment,AUDISE BY FREM GROUP LTD,07/03/2018,"24,536.85",60000-FURNITURE & EQUIPMENT,FOREST ARTS CENTRE,Supplies & Services,Revenue
Walsall Council,http://opendatacommunities.org/id/metropolitan-district-council/walsall,WC90-335,31/03/2018,Adult Social Care,AUTISM WEST MIDLANDS,20/03/2018,"6,755.24",73373-RESIDENTIAL & NURSING CARE PLACEMENTS,LD PACKAGE/PLACEMENT COSTS,Third Party Payments,Revenue
Walsall Council,http://opendatacommunities.org/id/metropolitan-district-council/walsall,WC90-336,31/03/2018,Adult Social Care,AUTISM WEST MIDLANDS 001,20/03/2018,"4,515.52",73373-RESIDENTIAL & NURSING CARE PLACEMENTS,LD PACKAGE/PLACEMENT COSTS,Third Party Payments,Revenue
Walsall Council,http://opendatacommunities.org/id/metropolitan-district-council/walsall,WC90-337,31/03/2018,Economy & Environment,AUTORITE INDUSTRIES (WILLENHALL)LTD,15/03/2018,247.50,52000-WITH DRIVER-HIRE OF VEHICLES,REMOVAL OF UNAUTHORISED ENCAMPMENTS,Transport,Revenue
Walsall Council,http://opendatacommunities.org/id/metropolitan-district-council/walsall,WC90-338,31/03/2018,Economy & Environment,AUTORITE INDUSTRIES (WILLENHALL)LTD,21/03/2018,550.00,73025-PROFESSIONAL SERVICES-PRIV CONTRACTOR & OTHER AGENCIES,FLEET,Third Party Payments,Revenue
Walsall Council,http://opendatacommunities.org/id/metropolitan-district-council/walsall,WC90-339,31/03/2018,Adult Social Care,AVE MARIA CARE SERVICES,01/03/2018,577.92,73372-DOMICILIARY CARE,LD PACKAGE/PLACEMENT COSTS,Third Party Payments,Revenue
Walsall Council,http://opendatacommunities.org/id/metropolitan-district-council/walsall,WC90-340,31/03/2018,Adult Social Care,REDACTED,20/03/2018,"1,198.16",76422-DIRECT PAYMENTS TO SOCIAL SERVICES CLIENTS,OP PACKAGE/PLACEMENT COSTS,Transfer Payments,Revenue
Walsall Council,http://opendatacommunities.org/id/metropolitan-district-council/walsall,WC90-341,31/03/2018,Adult Social Care,REDACTED,14/03/2018,"1,236.30",76422-DIRECT PAYMENTS TO SOCIAL SERVICES CLIENTS,OP PACKAGE/PLACEMENT COSTS,Transfer Payments,Revenue
Walsall Council,http://opendatacommunities.org/id/metropolitan-district-council/walsall,WC90-342,31/03/2018,Economy & Environment,AXIELL LIMITED,12/03/2018,362.10,63000-PROFESSIONAL FEES AND SERVICES,LIBRARY STOCK AND PERFORMANCE,Supplies & Services,Revenue
Walsall Council,http://opendatacommunities.org/id/metropolitan-district-council/walsall,WC90-343,31/03/2018,Childrens,REDACTED,14/03/2018,"1,605.00",76422-DIRECT PAYMENTS TO SOCIAL SERVICES CLIENTS,FAMILY SUPPORT - DIRECT PAYMENTS,Transfer Payments,Revenue
Walsall Council,http://opendatacommunities.org/id/metropolitan-district-council/walsall,WC90-344,31/03/2018,Adult Social Care,REDACTED,19/03/2018,"3,224.00",76422-DIRECT PAYMENTS TO SOCIAL SERVICES CLIENTS,LD PACKAGE/PLACEMENT COSTS,Transfer Payments,Revenue
Walsall Council,http://opendatacommunities.org/id/metropolitan-district-council/walsall,WC90-345,31/03/2018,Adult Social Care,REDACTED,14/03/2018,"3,510.00",76422-DIRECT PAYMENTS TO SOCIAL SERVICES CLIENTS,LD PACKAGE/PLACEMENT COSTS,Transfer Payments,Revenue
Walsall Council,http://opendatacommunities.org/id/metropolitan-district-council/walsall,WC90-346,31/03/2018,Childrens,REDACTED,09/03/2018,9.24,60006-NEW-FURNITURE & EQUIPMENT,FAMILY & FRIENDS FOSTER CARE PROVISION,Supplies & Services,Revenue
Walsall Council,http://opendatacommunities.org/id/metropolitan-district-council/walsall,WC90-347,31/03/2018,Childrens,REDACTED,09/03/2018,345.24,74508-INTERNAL FOSTER CARERS-CARER FEES,FAMILY & FRIENDS FOSTER CARE PROVISION,Transfer Payments,Revenue
Walsall Council,http://opendatacommunities.org/id/metropolitan-district-council/walsall,WC90-348,31/03/2018,Childrens,REDACTED,01/03/2018,464.00,76000-TRANSFER PAYMENTS - SOCIAL SERVICES CLIENTS,TRANSITION AND LEAVING CARE PLACEMENTS,Transfer Payments,Revenue
Walsall Council,http://opendatacommunities.org/id/metropolitan-district-council/walsall,WC90-349,31/03/2018,Childrens,REDACTED,01/03/2018,464.00,76000-TRANSFER PAYMENTS - SOCIAL SERVICES CLIENTS,TRANSITION AND LEAVING CARE PLACEMENTS,Transfer Payments,Revenue
Walsall Council,http://opendatacommunities.org/id/metropolitan-district-council/walsall,WC90-350,31/03/2018,Childrens,REDACTED,13/03/2018,464.00,76000-TRANSFER PAYMENTS - SOCIAL SERVICES CLIENTS,TRANSITION AND LEAVING CARE PLACEMENTS,Transfer Payments,Revenue
Walsall Council,http://opendatacommunities.org/id/metropolitan-district-council/walsall,WC90-351,31/03/2018,Childrens,REDACTED,13/03/2018,464.00,76000-TRANSFER PAYMENTS - SOCIAL SERVICES CLIENTS,TRANSITION AND LEAVING CARE PLACEMENTS,Transfer Payments,Revenue
Walsall Council,http://opendatacommunities.org/id/metropolitan-district-council/walsall,WC90-352,31/03/2018,Childrens,REDACTED,26/03/2018,464.00,76000-TRANSFER PAYMENTS - SOCIAL SERVICES CLIENTS,TRANSITION AND LEAVING CARE PLACEMENTS,Transfer Payments,Revenue
Walsall Council,http://opendatacommunities.org/id/metropolitan-district-council/walsall,WC90-353,31/03/2018,Childrens,REDACTED,26/03/2018,464.00,76000-TRANSFER PAYMENTS - SOCIAL SERVICES CLIENTS,TRANSITION AND LEAVING CARE PLACEMENTS,Transfer Payments,Revenue
Walsall Council,http://opendatacommunities.org/id/metropolitan-district-council/walsall,WC90-354,31/03/2018,Childrens,BACK CARE SOLUTIONS LTD,07/03/2018,540.00,60500-GENERAL MATERIALS,SAFEGUARDING & FAMILY SUPPORT,Supplies & Services,Revenue
Walsall Council,http://opendatacommunities.org/id/metropolitan-district-council/walsall,WC90-355,31/03/2018,Childrens,BAILY GARNER LLP,01/03/2018,"38,660.58",01001-OTHER CONSULTANTS FEES,CFR 783 BASIC NEED,Capital,Capital
Walsall Council,http://opendatacommunities.org/id/metropolitan-district-council/walsall,WC90-356,31/03/2018,Adult Social Care,REDACTED,14/03/2018,600.00,76422-DIRECT PAYMENTS TO SOCIAL SERVICES CLIENTS,MENTAL HEALTH PACKAGE/PLACEMENT COSTS,Transfer Payments,Revenue
Walsall Council,http://opendatacommunities.org/id/metropolitan-district-council/walsall,WC90-357,31/03/2018,Adult Social Care,REDACTED,14/03/2018,405.00,76422-DIRECT PAYMENTS TO SOCIAL SERVICES CLIENTS,LD PACKAGE/PLACEMENT COSTS,Transfer Payments,Revenue
Walsall Council,http://opendatacommunities.org/id/metropolitan-district-council/walsall,WC90-358,31/03/2018,Adult Social Care,REDACTED,19/03/2018,"2,652.00",76422-DIRECT PAYMENTS TO SOCIAL SERVICES CLIENTS,LD PACKAGE/PLACEMENT COSTS,Transfer Payments,Revenue
Walsall Council,http://opendatacommunities.org/id/metropolitan-district-council/walsall,WC90-359,31/03/2018,Adult Social Care,REDACTED,14/03/2018,"4,073.70",76422-DIRECT PAYMENTS TO SOCIAL SERVICES CLIENTS,LD PACKAGE/PLACEMENT COSTS,Transfer Payments,Revenue
Walsall Council,http://opendatacommunities.org/id/metropolitan-district-council/walsall,WC90-360,31/03/2018,Adult Social Care,REDACTED,14/03/2018,"1,978.58",76422-DIRECT PAYMENTS TO SOCIAL SERVICES CLIENTS,OP PACKAGE/PLACEMENT COSTS,Transfer Payments,Revenue
Walsall Council,http://opendatacommunities.org/id/metropolitan-district-council/walsall,WC90-361,31/03/2018,Childrens,REDACTED,09/03/2018,9.24,60006-NEW-FURNITURE & EQUIPMENT,FAMILY & FRIENDS FOSTER CARE PROVISION,Supplies & Services,Revenue
Walsall Council,http://opendatacommunities.org/id/metropolitan-district-council/walsall,WC90-362,31/03/2018,Childrens,REDACTED,09/03/2018,345.24,74508-INTERNAL FOSTER CARERS-CARER FEES,FAMILY & FRIENDS FOSTER CARE PROVISION,Transfer Payments,Revenue
Walsall Council,http://opendatacommunities.org/id/metropolitan-district-council/walsall,WC90-363,31/03/2018,Childrens,REDACTED,09/03/2018,571.44,74501-MAINTENANCE ALLOWANCE-FOSTER CARERS,FAMILY & FRIENDS FOSTER CARE PROVISION,Transfer Payments,Revenue
Walsall Council,http://opendatacommunities.org/id/metropolitan-district-council/walsall,WC90-364,31/03/2018,Adult Social Care,REDACTED,14/03/2018,"1,062.05",76422-DIRECT PAYMENTS TO SOCIAL SERVICES CLIENTS,OP PACKAGE/PLACEMENT COSTS,Transfer Payments,Revenue
Walsall Council,http://opendatacommunities.org/id/metropolitan-district-council/walsall,WC90-365,31/03/2018,Adult Social Care,REDACTED,14/03/2018,997.50,76422-DIRECT PAYMENTS TO SOCIAL SERVICES CLIENTS,OP PACKAGE/PLACEMENT COSTS,Transfer Payments,Revenue
Walsall Council,http://opendatacommunities.org/id/metropolitan-district-council/walsall,WC90-366,31/03/2018,Childrens,BARNARDOS SERVICES LTD,23/03/2018,"3,116.40",74037-INDEPENDENT FOSTER CARE-OTH AGENCY PROVISION,EXTERNAL FOSTER CARE PROVISION,Third Party Payments,Revenue
Walsall Council,http://opendatacommunities.org/id/metropolitan-district-council/walsall,WC90-367,31/03/2018,Childrens,BARNARDOS SERVICES LTD,07/03/2018,"4,042.99",32000-MISC FEES AND EXPENSES,CHILD PROTECTION & REVIEW SERVICES,Employees,Revenue
Walsall Council,http://opendatacommunities.org/id/metropolitan-district-council/walsall,WC90-368,31/03/2018,Resources and Transformation,BARNBOROUGH LTD,01/03/2018,383.58,60007-REPAIR OF EQUIPMENT-EQUIPMENT,CL ADMIN,Supplies & Services,Revenue
Walsall Council,http://opendatacommunities.org/id/metropolitan-district-council/walsall,WC90-369,31/03/2018,Resources and Transformation,BARNBOROUGH LTD,09/03/2018,"2,158.84",60539-CLEANING MATERIALS,INT CL OAK PARK LEISURE CENTRE,Supplies & Services,Revenue
Walsall Council,http://opendatacommunities.org/id/metropolitan-district-council/walsall,WC90-370,31/03/2018,Resources and Transformation,BARNBOROUGH LTD,14/03/2018,"5,685.00",60006-NEW-FURNITURE & EQUIPMENT,CA KINGSHILL SCHOOL,Supplies & Services,Revenue
Walsall Council,http://opendatacommunities.org/id/metropolitan-district-council/walsall,WC90-371,31/03/2018,Resources and Transformation,BARNBOROUGH LTD,14/03/2018,"13,737.50",60007-REPAIR OF EQUIPMENT-EQUIPMENT,CA CENTRAL SUPPORT SERVICES,Supplies & Services,Revenue
Walsall Council,http://opendatacommunities.org/id/metropolitan-district-council/walsall,WC90-372,31/03/2018,Resources and Transformation,BARNBOROUGH LTD,21/03/2018,"13,737.50",60007-REPAIR OF EQUIPMENT-EQUIPMENT,CL ADMIN,Supplies & Services,Revenue
Walsall Council,http://opendatacommunities.org/id/metropolitan-district-council/walsall,WC90-373,31/03/2018,Adult Social Care,BARTHOLAMEW LODGE CARE HOME,20/03/2018,392.86,73373-RESIDENTIAL & NURSING CARE PLACEMENTS,OP PACKAGE/PLACEMENT COSTS,Third Party Payments,Revenue
Walsall Council,http://opendatacommunities.org/id/metropolitan-district-council/walsall,WC90-374,31/03/2018,Adult Social Care,BARTHOLAMEW LODGE CARE HOME,20/03/2018,"1,807.14",73373-RESIDENTIAL & NURSING CARE PLACEMENTS,OP PACKAGE/PLACEMENT COSTS,Third Party Payments,Revenue
Walsall Council,http://opendatacommunities.org/id/metropolitan-district-council/walsall,WC90-375,31/03/2018,Adult Social Care,BARTHOLAMEW LODGE CARE HOME,13/03/2018,"2,000.00",73373-RESIDENTIAL & NURSING CARE PLACEMENTS,OP PACKAGE/PLACEMENT COSTS,Third Party Payments,Revenue
Walsall Council,http://opendatacommunities.org/id/metropolitan-district-council/walsall,WC90-376,31/03/2018,Adult Social Care,REDACTED,14/03/2018,613.00,76422-DIRECT PAYMENTS TO SOCIAL SERVICES CLIENTS,OP PACKAGE/PLACEMENT COSTS,Transfer Payments,Revenue
Walsall Council,http://opendatacommunities.org/id/metropolitan-district-council/walsall,WC90-377,31/03/2018,Economy & Environment,BAT FABRICATIONS LTD,09/03/2018,320.00,60500-GENERAL MATERIALS,INFRASTRUCTURE MAINTENANCE,Supplies & Services,Revenue
Walsall Council,http://opendatacommunities.org/id/metropolitan-district-council/walsall,WC90-378,31/03/2018,Economy & Environment,BAT FABRICATIONS LTD,09/03/2018,520.00,60500-GENERAL MATERIALS,INFRASTRUCTURE MAINTENANCE,Supplies & Services,Revenue
Walsall Council,http://opendatacommunities.org/id/metropolitan-district-council/walsall,WC90-379,31/03/2018,Economy & Environment,BAT FABRICATIONS LTD,09/03/2018,575.00,60500-GENERAL MATERIALS,INFRASTRUCTURE MAINTENANCE,Supplies & Services,Revenue
Walsall Council,http://opendatacommunities.org/id/metropolitan-district-council/walsall,WC90-380,31/03/2018,Economy & Environment,BAT FABRICATIONS LTD,16/03/2018,900.00,60500-GENERAL MATERIALS,ENVIRONMENTAL IMPROVEMENT SERVICE,Supplies & Services,Revenue
Walsall Council,http://opendatacommunities.org/id/metropolitan-district-council/walsall,WC90-381,31/03/2018,Adult Social Care,BEADEN POWERLEC LIMITED,01/03/2018,-299.10,"40000-REPAIRS,ALTERATIONS & MAINTENANCE-PREM",SANSTONE RESOURCE CENTRE - Residential,Premises,Revenue
Walsall Council,http://opendatacommunities.org/id/metropolitan-district-council/walsall,WC90-382,31/03/2018,Childrens,BEADEN POWERLEC LIMITED,01/03/2018,630.00,01006-SITE WORKS MAIN CONTRACTORS,CFR 1193 BROWNHILLS SECONDARY - REWIRE - FINAL PHASE 4,Capital,Capital
Walsall Council,http://opendatacommunities.org/id/metropolitan-district-council/walsall,WC90-383,31/03/2018,Childrens,REDACTED,23/03/2018,9.24,60006-NEW-FURNITURE & EQUIPMENT,INTERNAL FOSTER CARE PROVISION,Supplies & Services,Revenue
Walsall Council,http://opendatacommunities.org/id/metropolitan-district-council/walsall,WC90-384,31/03/2018,Childrens,REDACTED,23/03/2018,530.96,74508-INTERNAL FOSTER CARERS-CARER FEES,INTERNAL FOSTER CARE PROVISION,Transfer Payments,Revenue
Walsall Council,http://opendatacommunities.org/id/metropolitan-district-council/walsall,WC90-385,31/03/2018,Childrens,REDACTED,23/03/2018,650.92,74501-MAINTENANCE ALLOWANCE-FOSTER CARERS,INTERNAL FOSTER CARE PROVISION,Transfer Payments,Revenue
Walsall Council,http://opendatacommunities.org/id/metropolitan-district-council/walsall,WC90-386,31/03/2018,Adult Social Care,REDACTED,14/03/2018,928.13,76422-DIRECT PAYMENTS TO SOCIAL SERVICES CLIENTS,OP PACKAGE/PLACEMENT COSTS,Transfer Payments,Revenue
Walsall Council,http://opendatacommunities.org/id/metropolitan-district-council/walsall,WC90-387,31/03/2018,Childrens,BECKYS CHILDMINDING SERVICE,01/03/2018,792.00,66505-OTHER-GRANTS TO OTHER ORGS,EARLY YEARS - 3 YR OLDS,Third Party Payments,Revenue
Walsall Council,http://opendatacommunities.org/id/metropolitan-district-council/walsall,WC90-388,31/03/2018,Adult Social Care,BELVIDERE COURT,13/03/2018,"2,214.29",73373-RESIDENTIAL & NURSING CARE PLACEMENTS,MENTAL HEALTH PACKAGE/PLACEMENT COSTS,Third Party Payments,Revenue
Walsall Council,http://opendatacommunities.org/id/metropolitan-district-council/walsall,WC90-389,31/03/2018,Adult Social Care,BELVIDERE COURT,13/03/2018,"2,233.95",73373-RESIDENTIAL & NURSING CARE PLACEMENTS,MENTAL HEALTH PACKAGE/PLACEMENT COSTS,Third Party Payments,Revenue
Walsall Council,http://opendatacommunities.org/id/metropolitan-district-council/walsall,WC90-390,31/03/2018,Adult Social Care,BELVIDERE COURT,13/03/2018,"2,435.71",73373-RESIDENTIAL & NURSING CARE PLACEMENTS,OP PACKAGE/PLACEMENT COSTS,Third Party Payments,Revenue
Walsall Council,http://opendatacommunities.org/id/metropolitan-district-council/walsall,WC90-391,31/03/2018,Adult Social Care,BELVIDERE COURT,13/03/2018,"2,435.71",73373-RESIDENTIAL & NURSING CARE PLACEMENTS,OP PACKAGE/PLACEMENT COSTS,Third Party Payments,Revenue
Walsall Council,http://opendatacommunities.org/id/metropolitan-district-council/walsall,WC90-392,31/03/2018,Adult Social Care,BELVIDERE COURT,13/03/2018,"3,764.29",73373-RESIDENTIAL & NURSING CARE PLACEMENTS,MENTAL HEALTH PACKAGE/PLACEMENT COSTS,Third Party Payments,Revenue
Walsall Council,http://opendatacommunities.org/id/metropolitan-district-council/walsall,WC90-393,31/03/2018,Childrens,BELVIDERE SCHOOL,13/03/2018,300.00,77300-ISB-FORMULA ALLOCATION,OUT OF BOROUGH SCHOOLS,Transfer Payments,Revenue
Walsall Council,http://opendatacommunities.org/id/metropolitan-district-council/walsall,WC90-394,31/03/2018,Economy & Environment,BEMROSEBOOTH LTD,19/03/2018,"1,100.00",68001-PUBLICITY & ADVERTISING (NOT STAFF ADVERTISING),MARKETING AND PROMOTION,Supplies & Services,Revenue
Walsall Council,http://opendatacommunities.org/id/metropolitan-district-council/walsall,WC90-395,31/03/2018,Adult Social Care,REDACTED,14/03/2018,"2,887.50",76422-DIRECT PAYMENTS TO SOCIAL SERVICES CLIENTS,LD PACKAGE/PLACEMENT COSTS,Transfer Payments,Revenue
Walsall Council,http://opendatacommunities.org/id/metropolitan-district-council/walsall,WC90-396,31/03/2018,Adult Social Care,BENTLEY COURT PRIORY,20/03/2018,700.00,73373-RESIDENTIAL & NURSING CARE PLACEMENTS,OP PACKAGE/PLACEMENT COSTS,Third Party Payments,Revenue
Walsall Council,http://opendatacommunities.org/id/metropolitan-district-council/walsall,WC90-397,31/03/2018,Adult Social Care,BENTLEY COURT PRIORY,14/03/2018,"1,571.43",73373-RESIDENTIAL & NURSING CARE PLACEMENTS,MENTAL HEALTH PACKAGE/PLACEMENT COSTS,Third Party Payments,Revenue
Walsall Council,http://opendatacommunities.org/id/metropolitan-district-council/walsall,WC90-398,31/03/2018,Adult Social Care,BENTLEY COURT PRIORY,06/03/2018,"1,905.12",73373-RESIDENTIAL & NURSING CARE PLACEMENTS,OP PACKAGE/PLACEMENT COSTS,Third Party Payments,Revenue
Walsall Council,http://opendatacommunities.org/id/metropolitan-district-council/walsall,WC90-399,31/03/2018,Adult Social Care,BENTLEY COURT PRIORY,14/03/2018,"2,042.86",73373-RESIDENTIAL & NURSING CARE PLACEMENTS,MENTAL HEALTH PACKAGE/PLACEMENT COSTS,Third Party Payments,Revenue
Walsall Council,http://opendatacommunities.org/id/metropolitan-district-council/walsall,WC90-400,31/03/2018,Adult Social Care,BENTLEY COURT PRIORY,06/03/2018,"2,179.80",73373-RESIDENTIAL & NURSING CARE PLACEMENTS,OP PACKAGE/PLACEMENT COSTS,Third Party Payments,Revenue
Walsall Council,http://opendatacommunities.org/id/metropolitan-district-council/walsall,WC90-401,31/03/2018,Adult Social Care,BENTLEY COURT PRIORY,06/03/2018,"2,200.00",73373-RESIDENTIAL & NURSING CARE PLACEMENTS,OP PACKAGE/PLACEMENT COSTS,Third Party Payments,Revenue
Walsall Council,http://opendatacommunities.org/id/metropolitan-district-council/walsall,WC90-402,31/03/2018,Adult Social Care,BENTLEY COURT PRIORY,06/03/2018,"2,200.00",73373-RESIDENTIAL & NURSING CARE PLACEMENTS,OP PACKAGE/PLACEMENT COSTS,Third Party Payments,Revenue
Walsall Council,http://opendatacommunities.org/id/metropolitan-district-council/walsall,WC90-403,31/03/2018,Adult Social Care,BENTLEY COURT PRIORY,06/03/2018,"2,200.00",73373-RESIDENTIAL & NURSING CARE PLACEMENTS,OP PACKAGE/PLACEMENT COSTS,Third Party Payments,Revenue
Walsall Council,http://opendatacommunities.org/id/metropolitan-district-council/walsall,WC90-404,31/03/2018,Adult Social Care,BENTLEY COURT PRIORY,06/03/2018,"2,200.00",73373-RESIDENTIAL & NURSING CARE PLACEMENTS,MENTAL HEALTH PACKAGE/PLACEMENT COSTS,Third Party Payments,Revenue
Walsall Council,http://opendatacommunities.org/id/metropolitan-district-council/walsall,WC90-405,31/03/2018,Adult Social Care,BENTLEY COURT PRIORY,14/03/2018,"2,357.14",73373-RESIDENTIAL & NURSING CARE PLACEMENTS,MENTAL HEALTH PACKAGE/PLACEMENT COSTS,Third Party Payments,Revenue
Walsall Council,http://opendatacommunities.org/id/metropolitan-district-council/walsall,WC90-406,31/03/2018,Childrens,BERRY GIFFORD LTD,07/03/2018,579.00,76010-ACCOMMODATION AND RELATED COSTS-ASSISTANCE TO S/S CLIENTS,TRANSITION AND LEAVING CARE PLACEMENTS,Transfer Payments,Revenue
Walsall Council,http://opendatacommunities.org/id/metropolitan-district-council/walsall,WC90-407,31/03/2018,Childrens,BERRY GIFFORD LTD,07/03/2018,810.60,76010-ACCOMMODATION AND RELATED COSTS-ASSISTANCE TO S/S CLIENTS,TRANSITION AND LEAVING CARE PLACEMENTS,Transfer Payments,Revenue
Walsall Council,http://opendatacommunities.org/id/metropolitan-district-council/walsall,WC90-408,31/03/2018,Childrens,BERRY GIFFORD LTD,07/03/2018,"6,773.76",76010-ACCOMMODATION AND RELATED COSTS-ASSISTANCE TO S/S CLIENTS,TRANSITION AND LEAVING CARE PLACEMENTS,Transfer Payments,Revenue
Walsall Council,http://opendatacommunities.org/id/metropolitan-district-council/walsall,WC90-409,31/03/2018,Childrens,BERRY GIFFORD LTD,12/03/2018,"7,619.92",76010-ACCOMMODATION AND RELATED COSTS-ASSISTANCE TO S/S CLIENTS,TRANSITION AND LEAVING CARE PLACEMENTS,Transfer Payments,Revenue
Walsall Council,http://opendatacommunities.org/id/metropolitan-district-council/walsall,WC90-410,31/03/2018,Childrens,BERRY GIFFORD LTD,07/03/2018,"7,919.10",76010-ACCOMMODATION AND RELATED COSTS-ASSISTANCE TO S/S CLIENTS,TRANSITION AND LEAVING CARE PLACEMENTS,Transfer Payments,Revenue
Walsall Council,http://opendatacommunities.org/id/metropolitan-district-council/walsall,WC90-411,31/03/2018,Holding Accounts,BERRYMANS LACE MAWER LLP,09/03/2018,253.00,67001-MISC INSURANCES - PAYMENT OF CLAIMS,PUBLIC LIABILITY,Supplies & Services,Revenue
Walsall Council,http://opendatacommunities.org/id/metropolitan-district-council/walsall,WC90-412,31/03/2018,Holding Accounts,BERRYMANS LACE MAWER LLP,09/03/2018,"1,724.47",67001-MISC INSURANCES - PAYMENT OF CLAIMS,PUBLIC LIABILITY,Supplies & Services,Revenue
Walsall Council,http://opendatacommunities.org/id/metropolitan-district-council/walsall,WC90-413,31/03/2018,Adult Social Care,REDACTED,14/03/2018,"1,259.80",76422-DIRECT PAYMENTS TO SOCIAL SERVICES CLIENTS,OP PACKAGE/PLACEMENT COSTS,Transfer Payments,Revenue
Walsall Council,http://opendatacommunities.org/id/metropolitan-district-council/walsall,WC90-414,31/03/2018,Adult Social Care,REDACTED,14/03/2018,"2,132.50",76422-DIRECT PAYMENTS TO SOCIAL SERVICES CLIENTS,OP PACKAGE/PLACEMENT COSTS,Transfer Payments,Revenue
Walsall Council,http://opendatacommunities.org/id/metropolitan-district-council/walsall,WC90-415,31/03/2018,Childrens,REDACTED,23/03/2018,2.97,60006-NEW-FURNITURE & EQUIPMENT,INTERNAL FOSTER CARE PROVISION,Supplies & Services,Revenue
Walsall Council,http://opendatacommunities.org/id/metropolitan-district-council/walsall,WC90-416,31/03/2018,Childrens,REDACTED,23/03/2018,4.29,60006-NEW-FURNITURE & EQUIPMENT,INTERNAL FOSTER CARE PROVISION,Supplies & Services,Revenue
Walsall Council,http://opendatacommunities.org/id/metropolitan-district-council/walsall,WC90-417,31/03/2018,Childrens,REDACTED,23/03/2018,376.22,74501-MAINTENANCE ALLOWANCE-FOSTER CARERS,INTERNAL FOSTER CARE PROVISION,Transfer Payments,Revenue
Walsall Council,http://opendatacommunities.org/id/metropolitan-district-council/walsall,WC90-418,31/03/2018,Childrens,REDACTED,23/03/2018,461.60,74508-INTERNAL FOSTER CARERS-CARER FEES,INTERNAL FOSTER CARE PROVISION,Transfer Payments,Revenue
Walsall Council,http://opendatacommunities.org/id/metropolitan-district-council/walsall,WC90-419,31/03/2018,Childrens,REDACTED,23/03/2018,666.75,74508-INTERNAL FOSTER CARERS-CARER FEES,INTERNAL FOSTER CARE PROVISION,Transfer Payments,Revenue
Walsall Council,http://opendatacommunities.org/id/metropolitan-district-council/walsall,WC90-420,31/03/2018,Adult Social Care,REDACTED,14/03/2018,675.00,76422-DIRECT PAYMENTS TO SOCIAL SERVICES CLIENTS,OP PACKAGE/PLACEMENT COSTS,Transfer Payments,Revenue
Walsall Council,http://opendatacommunities.org/id/metropolitan-district-council/walsall,WC90-421,31/03/2018,Adult Social Care,REDACTED,14/03/2018,"1,750.00",76422-DIRECT PAYMENTS TO SOCIAL SERVICES CLIENTS,OP PACKAGE/PLACEMENT COSTS,Transfer Payments,Revenue
Walsall Council,http://opendatacommunities.org/id/metropolitan-district-council/walsall,WC90-422,31/03/2018,Adult Social Care,BESCOT LODGE RESIDENTIAL CARE HOME,26/03/2018,460.00,73373-RESIDENTIAL & NURSING CARE PLACEMENTS,OP PACKAGE/PLACEMENT COSTS,Third Party Payments,Revenue
Walsall Council,http://opendatacommunities.org/id/metropolitan-district-council/walsall,WC90-423,31/03/2018,Adult Social Care,BESCOT LODGE RESIDENTIAL CARE HOME,06/03/2018,920.00,73373-RESIDENTIAL & NURSING CARE PLACEMENTS,OP PACKAGE/PLACEMENT COSTS,Third Party Payments,Revenue
Walsall Council,http://opendatacommunities.org/id/metropolitan-district-council/walsall,WC90-424,31/03/2018,Adult Social Care,BESCOT LODGE RESIDENTIAL CARE HOME,20/03/2018,"1,833.43",73373-RESIDENTIAL & NURSING CARE PLACEMENTS,OP PACKAGE/PLACEMENT COSTS,Third Party Payments,Revenue
Walsall Council,http://opendatacommunities.org/id/metropolitan-district-council/walsall,WC90-425,31/03/2018,Adult Social Care,BESCOT LODGE RESIDENTIAL CARE HOME,20/03/2018,"1,833.43",73373-RESIDENTIAL & NURSING CARE PLACEMENTS,OP PACKAGE/PLACEMENT COSTS,Third Party Payments,Revenue
Walsall Council,http://opendatacommunities.org/id/metropolitan-district-council/walsall,WC90-426,31/03/2018,Adult Social Care,BESCOT LODGE RESIDENTIAL CARE HOME,20/03/2018,"1,833.43",73373-RESIDENTIAL & NURSING CARE PLACEMENTS,LD PACKAGE/PLACEMENT COSTS,Third Party Payments,Revenue
Walsall Council,http://opendatacommunities.org/id/metropolitan-district-council/walsall,WC90-427,31/03/2018,Adult Social Care,BESCOT LODGE RESIDENTIAL CARE HOME,20/03/2018,"2,037.14",73373-RESIDENTIAL & NURSING CARE PLACEMENTS,OP PACKAGE/PLACEMENT COSTS,Third Party Payments,Revenue
Walsall Council,http://opendatacommunities.org/id/metropolitan-district-council/walsall,WC90-428,31/03/2018,Adult Social Care,BESCOT LODGE RESIDENTIAL CARE HOME,20/03/2018,"2,037.14",73373-RESIDENTIAL & NURSING CARE PLACEMENTS,OP PACKAGE/PLACEMENT COSTS,Third Party Payments,Revenue
Walsall Council,http://opendatacommunities.org/id/metropolitan-district-council/walsall,WC90-429,31/03/2018,Adult Social Care,BESCOT LODGE RESIDENTIAL CARE HOME,20/03/2018,"2,037.14",73373-RESIDENTIAL & NURSING CARE PLACEMENTS,OP PACKAGE/PLACEMENT COSTS,Third Party Payments,Revenue
Walsall Council,http://opendatacommunities.org/id/metropolitan-district-council/walsall,WC90-430,31/03/2018,Adult Social Care,BESCOT LODGE RESIDENTIAL CARE HOME,20/03/2018,"2,214.29",73373-RESIDENTIAL & NURSING CARE PLACEMENTS,OP PACKAGE/PLACEMENT COSTS,Third Party Payments,Revenue
Walsall Council,http://opendatacommunities.org/id/metropolitan-district-council/walsall,WC90-431,31/03/2018,Economy & Environment,BESCOT STADIUM SUNDAY MARKET LTD,12/03/2018,"2,800.00",73025-PROFESSIONAL SERVICES-PRIV CONTRACTOR & OTHER AGENCIES,WILLENHALL MARKET,Third Party Payments,Revenue
Walsall Council,http://opendatacommunities.org/id/metropolitan-district-council/walsall,WC90-432,31/03/2018,Economy & Environment,BESCOT STADIUM SUNDAY MARKET LTD,01/03/2018,"3,500.00",73025-PROFESSIONAL SERVICES-PRIV CONTRACTOR & OTHER AGENCIES,WILLENHALL MARKET,Third Party Payments,Revenue
Walsall Council,http://opendatacommunities.org/id/metropolitan-district-council/walsall,WC90-433,31/03/2018,Adult Social Care,BESS CARE LIMITED,09/03/2018,552.50,73372-DOMICILIARY CARE,OP PACKAGE/PLACEMENT COSTS,Third Party Payments,Revenue
Walsall Council,http://opendatacommunities.org/id/metropolitan-district-council/walsall,WC90-434,31/03/2018,Adult Social Care,BETHPHAGE.,21/03/2018,"1,026.00",73372-DOMICILIARY CARE,LD PACKAGE/PLACEMENT COSTS,Third Party Payments,Revenue
Walsall Council,http://opendatacommunities.org/id/metropolitan-district-council/walsall,WC90-435,31/03/2018,Adult Social Care,BETHPHAGE.,27/03/2018,"1,311.00",73372-DOMICILIARY CARE,LD PACKAGE/PLACEMENT COSTS,Third Party Payments,Revenue
Walsall Council,http://opendatacommunities.org/id/metropolitan-district-council/walsall,WC90-436,31/03/2018,Adult Social Care,BETHPHAGE.,21/03/2018,"1,339.52",73372-DOMICILIARY CARE,LD PACKAGE/PLACEMENT COSTS,Third Party Payments,Revenue
Walsall Council,http://opendatacommunities.org/id/metropolitan-district-council/walsall,WC90-437,31/03/2018,Adult Social Care,BETHPHAGE.,21/03/2018,"1,453.52",73372-DOMICILIARY CARE,LD PACKAGE/PLACEMENT COSTS,Third Party Payments,Revenue
Walsall Council,http://opendatacommunities.org/id/metropolitan-district-council/walsall,WC90-438,31/03/2018,Adult Social Care,BETHPHAGE.,21/03/2018,"2,693.24",73372-DOMICILIARY CARE,LD PACKAGE/PLACEMENT COSTS,Third Party Payments,Revenue
Walsall Council,http://opendatacommunities.org/id/metropolitan-district-council/walsall,WC90-439,31/03/2018,Adult Social Care,BETHPHAGE.,16/03/2018,"3,162.70",73372-DOMICILIARY CARE,LD PACKAGE/PLACEMENT COSTS,Third Party Payments,Revenue
Walsall Council,http://opendatacommunities.org/id/metropolitan-district-council/walsall,WC90-440,31/03/2018,Adult Social Care,BETHPHAGE.,21/03/2018,"5,744.04",73372-DOMICILIARY CARE,LD PACKAGE/PLACEMENT COSTS,Third Party Payments,Revenue
Walsall Council,http://opendatacommunities.org/id/metropolitan-district-council/walsall,WC90-441,31/03/2018,Adult Social Care,REDACTED,14/03/2018,"1,186.90",76422-DIRECT PAYMENTS TO SOCIAL SERVICES CLIENTS,MENTAL HEALTH PACKAGE/PLACEMENT COSTS,Transfer Payments,Revenue
Walsall Council,http://opendatacommunities.org/id/metropolitan-district-council/walsall,WC90-442,31/03/2018,Adult Social Care,REDACTED,14/03/2018,"3,459.80",76422-DIRECT PAYMENTS TO SOCIAL SERVICES CLIENTS,OP PACKAGE/PLACEMENT COSTS,Transfer Payments,Revenue
Walsall Council,http://opendatacommunities.org/id/metropolitan-district-council/walsall,WC90-443,31/03/2018,Resources and Transformation,BFA SAFETY TRAINING,01/03/2018,295.00,30030-EXTERNAL TRAINING,HEALTH & SAFETY,Employees,Revenue
Walsall Council,http://opendatacommunities.org/id/metropolitan-district-council/walsall,WC90-444,31/03/2018,Resources and Transformation,BFA SAFETY TRAINING,08/03/2018,295.00,63000-PROFESSIONAL FEES AND SERVICES,CORE SKILLS,Supplies & Services,Revenue
Walsall Council,http://opendatacommunities.org/id/metropolitan-district-council/walsall,WC90-445,31/03/2018,Resources and Transformation,BFA SAFETY TRAINING,01/03/2018,495.00,30030-EXTERNAL TRAINING,HEALTH & SAFETY,Employees,Revenue
Walsall Council,http://opendatacommunities.org/id/metropolitan-district-council/walsall,WC90-446,31/03/2018,Economy & Environment,BIFFA WASTE SERVICES LTD,27/03/2018,265.00,73029-HAZARDOUS WASTE REMOVAL/DISPOSAL-PRIV CONTRACTOR FEES,WASTE DISPOSAL - RESIDUAL,Third Party Payments,Revenue
Walsall Council,http://opendatacommunities.org/id/metropolitan-district-council/walsall,WC90-447,31/03/2018,Economy & Environment,BIFFA WASTE SERVICES LTD,27/03/2018,413.28,73039-LANDFILL TAX-PRIV CONTRACTOR FEES,WASTE DISPOSAL - RESIDUAL,Third Party Payments,Revenue
Walsall Council,http://opendatacommunities.org/id/metropolitan-district-council/walsall,WC90-448,31/03/2018,Childrens,REDACTED,14/03/2018,715.00,76422-DIRECT PAYMENTS TO SOCIAL SERVICES CLIENTS,FAMILY SUPPORT - DIRECT PAYMENTS,Transfer Payments,Revenue
Walsall Council,http://opendatacommunities.org/id/metropolitan-district-council/walsall,WC90-449,31/03/2018,Childrens,BIRCHILLS C OF E COMMUNITY ACADEMY,16/03/2018,"1,446.90",66505-OTHER-GRANTS TO OTHER ORGS,EARLY YEARS - 3 YR OLDS,Third Party Payments,Revenue
Walsall Council,http://opendatacommunities.org/id/metropolitan-district-council/walsall,WC90-450,31/03/2018,Childrens,BIRMINGHAM CITY COUNCIL,13/03/2018,819.34,52000-WITH DRIVER-HIRE OF VEHICLES,HOME TO SCHOOL TRANSPORT,Transport,Revenue
Walsall Council,http://opendatacommunities.org/id/metropolitan-district-council/walsall,WC90-451,31/03/2018,Childrens,BIRMINGHAM CITY COUNCIL,13/03/2018,"1,105.00",52000-WITH DRIVER-HIRE OF VEHICLES,HOME TO SCHOOL TRANSPORT,Transport,Revenue
Walsall Council,http://opendatacommunities.org/id/metropolitan-district-council/walsall,WC90-452,31/03/2018,Childrens,BIRMINGHAM CITY COUNCIL,23/03/2018,"1,956.16",74037-INDEPENDENT FOSTER CARE-OTH AGENCY PROVISION,EXTERNAL FOSTER CARE PROVISION,Third Party Payments,Revenue
Walsall Council,http://opendatacommunities.org/id/metropolitan-district-council/walsall,WC90-453,31/03/2018,Childrens,BIRMINGHAM CITY COUNCIL,07/03/2018,"4,280.40",66502-TOP UP FUNDING -GRANTS TO SCHOOLS,MAINTAINED PROVIDERS,Third Party Payments,Revenue
Walsall Council,http://opendatacommunities.org/id/metropolitan-district-council/walsall,WC90-454,31/03/2018,Childrens,BIRMINGHAM CITY COUNCIL,07/03/2018,"4,280.40",66502-TOP UP FUNDING -GRANTS TO SCHOOLS,MAINTAINED PROVIDERS,Third Party Payments,Revenue
Walsall Council,http://opendatacommunities.org/id/metropolitan-district-council/walsall,WC90-455,31/03/2018,Childrens,BIRMINGHAM CITY COUNCIL,07/03/2018,"4,280.40",66502-TOP UP FUNDING -GRANTS TO SCHOOLS,MAINTAINED PROVIDERS,Third Party Payments,Revenue
Walsall Council,http://opendatacommunities.org/id/metropolitan-district-council/walsall,WC90-456,31/03/2018,Childrens,BIRMINGHAM CITY COUNCIL,07/03/2018,"4,280.40",66502-TOP UP FUNDING -GRANTS TO SCHOOLS,MAINTAINED PROVIDERS,Third Party Payments,Revenue
Walsall Council,http://opendatacommunities.org/id/metropolitan-district-council/walsall,WC90-457,31/03/2018,Childrens,BIRMINGHAM CITY COUNCIL,07/03/2018,"5,982.44",66502-TOP UP FUNDING -GRANTS TO SCHOOLS,MAINTAINED PROVIDERS,Third Party Payments,Revenue
Walsall Council,http://opendatacommunities.org/id/metropolitan-district-council/walsall,WC90-458,31/03/2018,Childrens,BIRMINGHAM CITY COUNCIL,07/03/2018,"11,667.88",66502-TOP UP FUNDING -GRANTS TO SCHOOLS,MAINTAINED PROVIDERS,Third Party Payments,Revenue
Walsall Council,http://opendatacommunities.org/id/metropolitan-district-council/walsall,WC90-459,31/03/2018,Resources and Transformation,BIRMINGHAM TRAINING UNIT,12/03/2018,790.00,63000-PROFESSIONAL FEES AND SERVICES,WORKFORCE DEVELOPMENT,Supplies & Services,Revenue
Walsall Council,http://opendatacommunities.org/id/metropolitan-district-council/walsall,WC90-460,31/03/2018,Economy & Environment,BLACK COUNTRY DANCE HUB,26/03/2018,976.00,63000-PROFESSIONAL FEES AND SERVICES,FOREST ARTS CENTRE,Supplies & Services,Revenue
Walsall Council,http://opendatacommunities.org/id/metropolitan-district-council/walsall,WC90-461,31/03/2018,Adult Social Care,REDACTED,14/03/2018,"1,902.00",76422-DIRECT PAYMENTS TO SOCIAL SERVICES CLIENTS,OP PACKAGE/PLACEMENT COSTS,Transfer Payments,Revenue
Walsall Council,http://opendatacommunities.org/id/metropolitan-district-council/walsall,WC90-462,31/03/2018,Resources and Transformation,BLEEPER SERVICES T/A UNIVERSAL RADIO HIRE,19/03/2018,482.00,62515-MISCELLANEOUS SUPPLIES,WALSALL TOWN HALL,Supplies & Services,Revenue
Walsall Council,http://opendatacommunities.org/id/metropolitan-district-council/walsall,WC90-463,31/03/2018,Resources and Transformation,BLEEPER SERVICES T/A UNIVERSAL RADIO HIRE,19/03/2018,644.00,62515-MISCELLANEOUS SUPPLIES,WALSALL TOWN HALL,Supplies & Services,Revenue
Walsall Council,http://opendatacommunities.org/id/metropolitan-district-council/walsall,WC90-464,31/03/2018,Childrens,BLOXWICH ACADEMY,16/03/2018,"1,320.00",66505-OTHER-GRANTS TO OTHER ORGS,EARLY YEARS - 3 YR OLDS,Third Party Payments,Revenue
Walsall Council,http://opendatacommunities.org/id/metropolitan-district-council/walsall,WC90-465,31/03/2018,Childrens,BLOXWICH ACADEMY,16/03/2018,"2,337.30",66505-OTHER-GRANTS TO OTHER ORGS,EARLY YEARS - 3 YR OLDS,Third Party Payments,Revenue
Walsall Council,http://opendatacommunities.org/id/metropolitan-district-council/walsall,WC90-466,31/03/2018,Childrens,BLOXWICH COMMUNITY PARTNERSHIP.,22/03/2018,"6,881.18",66500-GRANTS TO OTHER ORGS,TARGETED YOUTH WORK - COMMISSIONED,Third Party Payments,Revenue
Walsall Council,http://opendatacommunities.org/id/metropolitan-district-council/walsall,WC90-467,31/03/2018,Childrens,BLUE GIRAFFE CHILDCARE,01/03/2018,"8,184.00",66505-OTHER-GRANTS TO OTHER ORGS,EARLY YEARS - 3 YR OLDS,Third Party Payments,Revenue
Walsall Council,http://opendatacommunities.org/id/metropolitan-district-council/walsall,WC90-468,31/03/2018,Childrens,BLUE GIRAFFE CHILDCARE,01/03/2018,"11,585.80",66505-OTHER-GRANTS TO OTHER ORGS,EARLY YEARS - 2 YR OLDS,Third Party Payments,Revenue
Walsall Council,http://opendatacommunities.org/id/metropolitan-district-council/walsall,WC90-469,31/03/2018,Resources and Transformation,BLUETOWNONLINE LTD,20/03/2018,"2,790.00",34000-RECRUITMENT EXPENSES (ALL TYPES INCL RELOCATION),SCHOOLS HR TRANSACTIONAL TEAM,Employees,Revenue
Walsall Council,http://opendatacommunities.org/id/metropolitan-district-council/walsall,WC90-470,31/03/2018,Economy & Environment,BME UNITED LTD,16/03/2018,"6,301.00",63253-PAYMENT TO CONTRACTOR,SMOKING CESSATION,Third Party Payments,Revenue
Walsall Council,http://opendatacommunities.org/id/metropolitan-district-council/walsall,WC90-471,31/03/2018,Economy & Environment,BOC LTD,07/03/2018,208.75,"40000-REPAIRS,ALTERATIONS & MAINTENANCE-PREM",INFRASTRUCTURE MAINTENANCE,Premises,Revenue
Walsall Council,http://opendatacommunities.org/id/metropolitan-district-council/walsall,WC90-472,31/03/2018,Economy & Environment,BOC LTD,07/03/2018,284.85,"40000-REPAIRS,ALTERATIONS & MAINTENANCE-PREM",INFRASTRUCTURE MAINTENANCE,Premises,Revenue
Walsall Council,http://opendatacommunities.org/id/metropolitan-district-council/walsall,WC90-473,31/03/2018,Economy & Environment,BOC LTD,07/03/2018,293.30,"40000-REPAIRS,ALTERATIONS & MAINTENANCE-PREM",INFRASTRUCTURE MAINTENANCE,Premises,Revenue
Walsall Council,http://opendatacommunities.org/id/metropolitan-district-council/walsall,WC90-474,31/03/2018,Economy & Environment,BOC LTD,07/03/2018,311.15,"40000-REPAIRS,ALTERATIONS & MAINTENANCE-PREM",INFRASTRUCTURE MAINTENANCE,Premises,Revenue
Walsall Council,http://opendatacommunities.org/id/metropolitan-district-council/walsall,WC90-475,31/03/2018,Economy & Environment,BOLINDA UK LTD,14/03/2018,340.69,60501-LIBRARY BOOKS,LIBRARY STOCK AND PERFORMANCE,Supplies & Services,Revenue
Walsall Council,http://opendatacommunities.org/id/metropolitan-district-council/walsall,WC90-476,31/03/2018,Resources and Transformation,BORSHCH LTD,07/03/2018,237.49,60000-FURNITURE & EQUIPMENT,WALSALL CRISIS SUPPORT SCHEME,Supplies & Services,Revenue
Walsall Council,http://opendatacommunities.org/id/metropolitan-district-council/walsall,WC90-477,31/03/2018,Resources and Transformation,BORSHCH LTD,12/03/2018,287.50,60000-FURNITURE & EQUIPMENT,WALSALL CRISIS SUPPORT SCHEME,Supplies & Services,Revenue
Walsall Council,http://opendatacommunities.org/id/metropolitan-district-council/walsall,WC90-478,31/03/2018,Resources and Transformation,BORSHCH LTD,22/03/2018,291.66,60000-FURNITURE & EQUIPMENT,WALSALL CRISIS SUPPORT SCHEME,Supplies & Services,Revenue
Walsall Council,http://opendatacommunities.org/id/metropolitan-district-council/walsall,WC90-479,31/03/2018,Resources and Transformation,BORSHCH LTD,27/03/2018,291.66,60000-FURNITURE & EQUIPMENT,WALSALL CRISIS SUPPORT SCHEME,Supplies & Services,Revenue
Walsall Council,http://opendatacommunities.org/id/metropolitan-district-council/walsall,WC90-480,31/03/2018,Resources and Transformation,BORSHCH LTD,15/03/2018,295.83,60000-FURNITURE & EQUIPMENT,WALSALL CRISIS SUPPORT SCHEME,Supplies & Services,Revenue
Walsall Council,http://opendatacommunities.org/id/metropolitan-district-council/walsall,WC90-481,31/03/2018,Resources and Transformation,BORSHCH LTD,15/03/2018,329.16,60000-FURNITURE & EQUIPMENT,WALSALL CRISIS SUPPORT SCHEME,Supplies & Services,Revenue
Walsall Council,http://opendatacommunities.org/id/metropolitan-district-council/walsall,WC90-482,31/03/2018,Resources and Transformation,BORSHCH LTD,05/03/2018,433.33,60000-FURNITURE & EQUIPMENT,WALSALL CRISIS SUPPORT SCHEME,Supplies & Services,Revenue
Walsall Council,http://opendatacommunities.org/id/metropolitan-district-council/walsall,WC90-483,31/03/2018,Resources and Transformation,BORSHCH LTD,07/03/2018,433.33,60000-FURNITURE & EQUIPMENT,WALSALL CRISIS SUPPORT SCHEME,Supplies & Services,Revenue
Walsall Council,http://opendatacommunities.org/id/metropolitan-district-council/walsall,WC90-484,31/03/2018,Resources and Transformation,BORSHCH LTD,07/03/2018,433.33,60000-FURNITURE & EQUIPMENT,WALSALL CRISIS SUPPORT SCHEME,Supplies & Services,Revenue
Walsall Council,http://opendatacommunities.org/id/metropolitan-district-council/walsall,WC90-485,31/03/2018,Resources and Transformation,BORSHCH LTD,12/03/2018,433.33,60000-FURNITURE & EQUIPMENT,WALSALL CRISIS SUPPORT SCHEME,Supplies & Services,Revenue
Walsall Council,http://opendatacommunities.org/id/metropolitan-district-council/walsall,WC90-486,31/03/2018,Resources and Transformation,BORSHCH LTD,15/03/2018,433.33,60000-FURNITURE & EQUIPMENT,WALSALL CRISIS SUPPORT SCHEME,Supplies & Services,Revenue
Walsall Council,http://opendatacommunities.org/id/metropolitan-district-council/walsall,WC90-487,31/03/2018,Adult Social Care,BOWDEN DERRA PARK,13/03/2018,"10,835.24",73373-RESIDENTIAL & NURSING CARE PLACEMENTS,LD PACKAGE/PLACEMENT COSTS,Third Party Payments,Revenue
Walsall Council,http://opendatacommunities.org/id/metropolitan-district-council/walsall,WC90-488,31/03/2018,Economy & Environment,BRADVALE LTD T/A INSPIRE HEALTHCARE SERVICES,01/03/2018,284.98,60008-MAINTENANCE-FURNITURE & EQUIPMENT,DARLASTON LEISURE CENTRE,Supplies & Services,Revenue
Walsall Council,http://opendatacommunities.org/id/metropolitan-district-council/walsall,WC90-489,31/03/2018,Economy & Environment,BRADVALE LTD T/A INSPIRE HEALTHCARE SERVICES,07/03/2018,583.20,60500-GENERAL MATERIALS,ARBORETUM VISITOR CENTRE,Supplies & Services,Revenue
Walsall Council,http://opendatacommunities.org/id/metropolitan-district-council/walsall,WC90-490,31/03/2018,Adult Social Care,BRAMBLES RESIDENTIAL CARE HOME,13/03/2018,"2,134.58",73373-RESIDENTIAL & NURSING CARE PLACEMENTS,MENTAL HEALTH PACKAGE/PLACEMENT COSTS,Third Party Payments,Revenue
Walsall Council,http://opendatacommunities.org/id/metropolitan-district-council/walsall,WC90-491,31/03/2018,Resources and Transformation,BRELMAYNE LTD,01/03/2018,"4,255.00","40000-REPAIRS,ALTERATIONS & MAINTENANCE-PREM",RECHARGEABLE - NON SCHOOLS MAINTENANCE,Premises,Revenue
Walsall Council,http://opendatacommunities.org/id/metropolitan-district-council/walsall,WC90-492,31/03/2018,Adult Social Care,REDACTED,14/03/2018,550.00,76422-DIRECT PAYMENTS TO SOCIAL SERVICES CLIENTS,LD PACKAGE/PLACEMENT COSTS,Transfer Payments,Revenue
Walsall Council,http://opendatacommunities.org/id/metropolitan-district-council/walsall,WC90-493,31/03/2018,Childrens,REDACTED,23/03/2018,9.24,60006-NEW-FURNITURE & EQUIPMENT,INTERNAL FOSTER CARE PROVISION,Supplies & Services,Revenue
Walsall Council,http://opendatacommunities.org/id/metropolitan-district-council/walsall,WC90-494,31/03/2018,Childrens,REDACTED,23/03/2018,810.32,74501-MAINTENANCE ALLOWANCE-FOSTER CARERS,INTERNAL FOSTER CARE PROVISION,Transfer Payments,Revenue
Walsall Council,http://opendatacommunities.org/id/metropolitan-district-council/walsall,WC90-495,31/03/2018,Childrens,REDACTED,23/03/2018,810.32,74501-MAINTENANCE ALLOWANCE-FOSTER CARERS,INTERNAL FOSTER CARE PROVISION,Transfer Payments,Revenue
Walsall Council,http://opendatacommunities.org/id/metropolitan-district-council/walsall,WC90-496,31/03/2018,Childrens,REDACTED,23/03/2018,"1,436.08",74508-INTERNAL FOSTER CARERS-CARER FEES,INTERNAL FOSTER CARE PROVISION,Transfer Payments,Revenue
Walsall Council,http://opendatacommunities.org/id/metropolitan-district-council/walsall,WC90-497,31/03/2018,Economy & Environment,BRENNTAG UK LIMITED,27/03/2018,389.39,60500-GENERAL MATERIALS,BLOXWICH LEISURE CENTRE,Supplies & Services,Revenue
Walsall Council,http://opendatacommunities.org/id/metropolitan-district-council/walsall,WC90-498,31/03/2018,Economy & Environment,BRENNTAG UK LIMITED,09/03/2018,399.39,60503-CHEMICALS & SCIENTIFIC MATS-MATERIALS,OAK PARK,Supplies & Services,Revenue
Walsall Council,http://opendatacommunities.org/id/metropolitan-district-council/walsall,WC90-499,31/03/2018,Economy & Environment,BRENNTAG UK LIMITED,27/03/2018,539.87,60500-GENERAL MATERIALS,BLOXWICH LEISURE CENTRE,Supplies & Services,Revenue
Walsall Council,http://opendatacommunities.org/id/metropolitan-district-council/walsall,WC90-500,31/03/2018,Adult Social Care,REDACTED,06/03/2018,"1,337.64",73374-SUPPORTED & OTHER ACCOMMODATION,LD PACKAGE/PLACEMENT COSTS,Third Party Payments,Revenue
Walsall Council,http://opendatacommunities.org/id/metropolitan-district-council/walsall,WC90-501,31/03/2018,Adult Social Care,REDACTED,06/03/2018,"1,597.60",73372-DOMICILIARY CARE,LD PACKAGE/PLACEMENT COSTS,Third Party Payments,Revenue
Walsall Council,http://opendatacommunities.org/id/metropolitan-district-council/walsall,WC90-502,31/03/2018,Adult Social Care,REDACTED,14/03/2018,"2,158.00",76422-DIRECT PAYMENTS TO SOCIAL SERVICES CLIENTS,OP PACKAGE/PLACEMENT COSTS,Transfer Payments,Revenue
Walsall Council,http://opendatacommunities.org/id/metropolitan-district-council/walsall,WC90-503,31/03/2018,Adult Social Care,REDACTED,14/03/2018,922.50,76422-DIRECT PAYMENTS TO SOCIAL SERVICES CLIENTS,OP PACKAGE/PLACEMENT COSTS,Transfer Payments,Revenue
Walsall Council,http://opendatacommunities.org/id/metropolitan-district-council/walsall,WC90-504,31/03/2018,Adult Social Care,REDACTED,19/03/2018,"1,066.00",76422-DIRECT PAYMENTS TO SOCIAL SERVICES CLIENTS,OP PACKAGE/PLACEMENT COSTS,Transfer Payments,Revenue
Walsall Council,http://opendatacommunities.org/id/metropolitan-district-council/walsall,WC90-505,31/03/2018,Resources and Transformation,BRISTOW & SUTOR,07/03/2018,539.52,73014-LEGAL FEES-PRIV CONTRACTOR FEES,REVENUES,Third Party Payments,Revenue
Walsall Council,http://opendatacommunities.org/id/metropolitan-district-council/walsall,WC90-506,31/03/2018,Childrens,BRITISH MUSLIM YOUTH GROUP,12/03/2018,"10,177.11",66500-GRANTS TO OTHER ORGS,TARGETED YOUTH WORK - COMMISSIONED,Third Party Payments,Revenue
Walsall Council,http://opendatacommunities.org/id/metropolitan-district-council/walsall,WC90-507,31/03/2018,Economy & Environment,BRITISH TELECOMMUNICATIONS LTD,02/03/2018,"147,976.29",01002-PROJECT FEES,CFR 1072 A461 SALTERS ROAD,Capital,Capital
Walsall Council,http://opendatacommunities.org/id/metropolitan-district-council/walsall,WC90-508,31/03/2018,Adult Social Care,BROADWAY HALLS CARE HOME,13/03/2018,"1,840.00",73373-RESIDENTIAL & NURSING CARE PLACEMENTS,OP PACKAGE/PLACEMENT COSTS,Third Party Payments,Revenue
Walsall Council,http://opendatacommunities.org/id/metropolitan-district-council/walsall,WC90-509,31/03/2018,Economy & Environment,BROADWAY LODGE,01/03/2018,"1,500.00",63253-PAYMENT TO CONTRACTOR,ALCOHOL RESIDENTIAL DETOX,Third Party Payments,Revenue
Walsall Council,http://opendatacommunities.org/id/metropolitan-district-council/walsall,WC90-510,31/03/2018,Economy & Environment,BROWNHILLS ASPHALT & TARMAC LIMITED,28/03/2018,465.00,60500-GENERAL MATERIALS,INFRASTRUCTURE MAINTENANCE,Supplies & Services,Revenue
Walsall Council,http://opendatacommunities.org/id/metropolitan-district-council/walsall,WC90-511,31/03/2018,Resources and Transformation,BROWNHILLS ASPHALT & TARMAC LIMITED,19/03/2018,481.00,"40000-REPAIRS,ALTERATIONS & MAINTENANCE-PREM",RECHARGEABLE - NON SCHOOLS MAINTENANCE,Premises,Revenue
Walsall Council,http://opendatacommunities.org/id/metropolitan-district-council/walsall,WC90-512,31/03/2018,Economy & Environment,BROWNHILLS ASPHALT & TARMAC LIMITED,28/03/2018,"3,712.00",41090-LANDSCAPING GROUNDS MAINTENANCE,CENTRAL SERVICES ALLOTMENTS,Premises,Revenue
Walsall Council,http://opendatacommunities.org/id/metropolitan-district-council/walsall,WC90-513,31/03/2018,Childrens,BROWNHILLS COMMUNITY ASSOCIATION,21/03/2018,"1,785.00",63120-CRECHE FACILITIES-SERVICES-FEES,FAMILY PLACEMENTS,Supplies & Services,Revenue
Walsall Council,http://opendatacommunities.org/id/metropolitan-district-council/walsall,WC90-514,31/03/2018,Childrens,BROWNHILLS COMMUNITY ASSOCIATION,29/03/2018,"6,720.00",66505-OTHER-GRANTS TO OTHER ORGS,EARLY YEARS - 3 YR OLDS,Third Party Payments,Revenue
Walsall Council,http://opendatacommunities.org/id/metropolitan-district-council/walsall,WC90-515,31/03/2018,Childrens,BROWNHILLS COMMUNITY ASSOCIATION,01/03/2018,"9,504.00",66505-OTHER-GRANTS TO OTHER ORGS,EARLY YEARS - 3 YR OLDS,Third Party Payments,Revenue
Walsall Council,http://opendatacommunities.org/id/metropolitan-district-council/walsall,WC90-516,31/03/2018,Resources and Transformation,BROWNHILLS REMEMBRANCE SUNDAY PARADE TEAM,22/03/2018,"1,000.00",63000-PROFESSIONAL FEES AND SERVICES,CORPORATE EXPENSES,Supplies & Services,Revenue
Walsall Council,http://opendatacommunities.org/id/metropolitan-district-council/walsall,WC90-517,31/03/2018,Adult Social Care,REDACTED,14/03/2018,"1,912.50",76422-DIRECT PAYMENTS TO SOCIAL SERVICES CLIENTS,LD PACKAGE/PLACEMENT COSTS,Transfer Payments,Revenue
Walsall Council,http://opendatacommunities.org/id/metropolitan-district-council/walsall,WC90-518,31/03/2018,Adult Social Care,REDACTED,19/03/2018,"2,210.00",76422-DIRECT PAYMENTS TO SOCIAL SERVICES CLIENTS,LD PACKAGE/PLACEMENT COSTS,Transfer Payments,Revenue
Walsall Council,http://opendatacommunities.org/id/metropolitan-district-council/walsall,WC90-519,31/03/2018,Economy & Environment,BSMART TRAINING LTD,27/03/2018,775.00,63000-PROFESSIONAL FEES AND SERVICES,YEI (IMPACT) PROGRAMME,Supplies & Services,Revenue
Walsall Council,http://opendatacommunities.org/id/metropolitan-district-council/walsall,WC90-520,31/03/2018,Economy & Environment,BSMART TRAINING LTD,27/03/2018,775.00,63000-PROFESSIONAL FEES AND SERVICES,YEI ESF FUNDING,Supplies & Services,Revenue
Walsall Council,http://opendatacommunities.org/id/metropolitan-district-council/walsall,WC90-521,31/03/2018,Resources and Transformation,B-SURE SECURITY SERVICES LTD,19/03/2018,350.00,73002-SECURITY-PRIV CONTRACTOR FEES,CHALLENGE BUILDING,Third Party Payments,Revenue
Walsall Council,http://opendatacommunities.org/id/metropolitan-district-council/walsall,WC90-522,31/03/2018,Resources and Transformation,B-SURE SECURITY SERVICES LTD,19/03/2018,"2,365.00",73002-SECURITY-PRIV CONTRACTOR FEES,CENTRAL OFFICE ACCOMMODATION,Third Party Payments,Revenue
Walsall Council,http://opendatacommunities.org/id/metropolitan-district-council/walsall,WC90-523,31/03/2018,Resources and Transformation,BT,12/03/2018,712.00,63601-COSTS (NOT INTERNAL RECHARGES)-TELEPHONES,REVENUES,Supplies & Services,Revenue
Walsall Council,http://opendatacommunities.org/id/metropolitan-district-council/walsall,WC90-524,31/03/2018,Resources and Transformation,BT BUSINESS DIRECT  LIMITED,22/03/2018,"1,424.82",63800-COMPUTER EQUIPMENT AND SUPPLIES,SIT-INFRASTRUCTURE,Supplies & Services,Revenue
Walsall Council,http://opendatacommunities.org/id/metropolitan-district-council/walsall,WC90-525,31/03/2018,Childrens,BT PLC,01/03/2018,490.13,63601-COSTS (NOT INTERNAL RECHARGES)-TELEPHONES,LOCALITY FAMILY SUPPORT-CENTRAL & EAST,Supplies & Services,Revenue
Walsall Council,http://opendatacommunities.org/id/metropolitan-district-council/walsall,WC90-526,31/03/2018,Childrens,BT PLC,01/03/2018,531.62,63601-COSTS (NOT INTERNAL RECHARGES)-TELEPHONES,LOCALITY FAMILY SUPPORT-CENTRAL & EAST,Supplies & Services,Revenue
Walsall Council,http://opendatacommunities.org/id/metropolitan-district-council/walsall,WC90-527,31/03/2018,Resources and Transformation,BT PLC,09/03/2018,"1,268.35",63807-COMMS LINKS-COMPUTER,NETWORKS,Supplies & Services,Revenue
Walsall Council,http://opendatacommunities.org/id/metropolitan-district-council/walsall,WC90-528,31/03/2018,Resources and Transformation,BT PLC,14/03/2018,"4,400.60",63601-COSTS (NOT INTERNAL RECHARGES)-TELEPHONES,CENTRAL COMMUNICATIONS RECHARGES,Supplies & Services,Revenue
Walsall Council,http://opendatacommunities.org/id/metropolitan-district-council/walsall,WC90-529,31/03/2018,Adult Social Care,BUNZIL HEALTHCARE T/A CARESHOP,07/03/2018,513.61,60539-CLEANING MATERIALS,HOLLYBANK,Supplies & Services,Revenue
Walsall Council,http://opendatacommunities.org/id/metropolitan-district-council/walsall,WC90-530,31/03/2018,Adult Social Care,BUNZIL HEALTHCARE T/A CARESHOP,19/03/2018,637.32,60539-CLEANING MATERIALS,HOLLYBANK,Supplies & Services,Revenue
Walsall Council,http://opendatacommunities.org/id/metropolitan-district-council/walsall,WC90-531,31/03/2018,Adult Social Care,BUNZIL HEALTHCARE T/A CARESHOP,12/03/2018,708.47,60539-CLEANING MATERIALS,HOLLYBANK,Supplies & Services,Revenue
Walsall Council,http://opendatacommunities.org/id/metropolitan-district-council/walsall,WC90-532,31/03/2018,Economy & Environment,BURNSIDES (MARKETING AIDS) LTD,20/03/2018,350.00,73025-PROFESSIONAL SERVICES-PRIV CONTRACTOR & OTHER AGENCIES,PARKING SERVICES OFF-STREET,Third Party Payments,Revenue
Walsall Council,http://opendatacommunities.org/id/metropolitan-district-council/walsall,WC90-533,31/03/2018,Childrens,BURNTWOOD ROAD SWEEPERS LTD,12/03/2018,525.00,73019-PSE'S-PRIV CONTRACTOR FEES,PELSALL EDC,Third Party Payments,Revenue
Walsall Council,http://opendatacommunities.org/id/metropolitan-district-council/walsall,WC90-534,31/03/2018,Childrens,BURNTWOOD ROAD SWEEPERS LTD,19/03/2018,"1,300.00",73019-PSE'S-PRIV CONTRACTOR FEES,PELSALL EDC,Third Party Payments,Revenue
Walsall Council,http://opendatacommunities.org/id/metropolitan-district-council/walsall,WC90-535,31/03/2018,Adult Social Care,BUSH HOME LTD,13/03/2018,650.57,73373-RESIDENTIAL & NURSING CARE PLACEMENTS,OP PACKAGE/PLACEMENT COSTS,Third Party Payments,Revenue
Walsall Council,http://opendatacommunities.org/id/metropolitan-district-council/walsall,WC90-536,31/03/2018,Adult Social Care,BUSH HOME LTD,26/03/2018,768.86,73373-RESIDENTIAL & NURSING CARE PLACEMENTS,OP PACKAGE/PLACEMENT COSTS,Third Party Payments,Revenue
Walsall Council,http://opendatacommunities.org/id/metropolitan-district-council/walsall,WC90-537,31/03/2018,Adult Social Care,BUSH HOME LTD,06/03/2018,828.00,73373-RESIDENTIAL & NURSING CARE PLACEMENTS,MENTAL HEALTH PACKAGE/PLACEMENT COSTS,Third Party Payments,Revenue
Walsall Council,http://opendatacommunities.org/id/metropolitan-district-council/walsall,WC90-538,31/03/2018,Adult Social Care,BUSH HOME LTD,06/03/2018,946.28,73373-RESIDENTIAL & NURSING CARE PLACEMENTS,OP PACKAGE/PLACEMENT COSTS,Third Party Payments,Revenue
Walsall Council,http://opendatacommunities.org/id/metropolitan-district-council/walsall,WC90-539,31/03/2018,Adult Social Care,BUSH HOME LTD,06/03/2018,"1,656.00",73373-RESIDENTIAL & NURSING CARE PLACEMENTS,OP PACKAGE/PLACEMENT COSTS,Third Party Payments,Revenue
Walsall Council,http://opendatacommunities.org/id/metropolitan-district-council/walsall,WC90-540,31/03/2018,Adult Social Care,BUSH HOME LTD,06/03/2018,"1,656.00",73373-RESIDENTIAL & NURSING CARE PLACEMENTS,OP PACKAGE/PLACEMENT COSTS,Third Party Payments,Revenue
Walsall Council,http://opendatacommunities.org/id/metropolitan-district-council/walsall,WC90-541,31/03/2018,Adult Social Care,BUSH HOME LTD,06/03/2018,"1,656.00",73373-RESIDENTIAL & NURSING CARE PLACEMENTS,OP PACKAGE/PLACEMENT COSTS,Third Party Payments,Revenue
Walsall Council,http://opendatacommunities.org/id/metropolitan-district-council/walsall,WC90-542,31/03/2018,Adult Social Care,BUSH HOME LTD,06/03/2018,"1,840.00",73373-RESIDENTIAL & NURSING CARE PLACEMENTS,OP PACKAGE/PLACEMENT COSTS,Third Party Payments,Revenue
Walsall Council,http://opendatacommunities.org/id/metropolitan-district-council/walsall,WC90-543,31/03/2018,Adult Social Care,BUSH HOME LTD,06/03/2018,"1,840.00",73373-RESIDENTIAL & NURSING CARE PLACEMENTS,MENTAL HEALTH PACKAGE/PLACEMENT COSTS,Third Party Payments,Revenue
Walsall Council,http://opendatacommunities.org/id/metropolitan-district-council/walsall,WC90-544,31/03/2018,Childrens,BUSY BEES CHILDCARE LTD,01/03/2018,"4,576.00",66505-OTHER-GRANTS TO OTHER ORGS,EARLY YEARS - 3 YR OLDS,Third Party Payments,Revenue
Walsall Council,http://opendatacommunities.org/id/metropolitan-district-council/walsall,WC90-545,31/03/2018,Childrens,BY THE BRIDGE,23/03/2018,"3,996.00",74037-INDEPENDENT FOSTER CARE-OTH AGENCY PROVISION,EXTERNAL FOSTER CARE PROVISION,Third Party Payments,Revenue
Walsall Council,http://opendatacommunities.org/id/metropolitan-district-council/walsall,WC90-546,31/03/2018,Economy & Environment,C ART ART TRANSPORT LTD,28/03/2018,310.00,73032-TRANSPORTATION-PRIV CONTRACTOR FEES,EXHIBITIONS - SPECIAL PROJECTS/PARTNERSHIPS,Third Party Payments,Revenue
Walsall Council,http://opendatacommunities.org/id/metropolitan-district-council/walsall,WC90-547,31/03/2018,Childrens,REDACTED,23/03/2018,9.24,60006-NEW-FURNITURE & EQUIPMENT,INTERNAL FOSTER CARE PROVISION,Supplies & Services,Revenue
Walsall Council,http://opendatacommunities.org/id/metropolitan-district-council/walsall,WC90-548,31/03/2018,Childrens,REDACTED,01/03/2018,464.00,76000-TRANSFER PAYMENTS - SOCIAL SERVICES CLIENTS,TRANSITION AND LEAVING CARE PLACEMENTS,Transfer Payments,Revenue
Walsall Council,http://opendatacommunities.org/id/metropolitan-district-council/walsall,WC90-549,31/03/2018,Childrens,REDACTED,13/03/2018,464.00,76000-TRANSFER PAYMENTS - SOCIAL SERVICES CLIENTS,TRANSITION AND LEAVING CARE PLACEMENTS,Transfer Payments,Revenue
Walsall Council,http://opendatacommunities.org/id/metropolitan-district-council/walsall,WC90-550,31/03/2018,Childrens,REDACTED,26/03/2018,464.00,76000-TRANSFER PAYMENTS - SOCIAL SERVICES CLIENTS,TRANSITION AND LEAVING CARE PLACEMENTS,Transfer Payments,Revenue
Walsall Council,http://opendatacommunities.org/id/metropolitan-district-council/walsall,WC90-551,31/03/2018,Childrens,REDACTED,23/03/2018,810.32,74501-MAINTENANCE ALLOWANCE-FOSTER CARERS,INTERNAL FOSTER CARE PROVISION,Transfer Payments,Revenue
Walsall Council,http://opendatacommunities.org/id/metropolitan-district-council/walsall,WC90-552,31/03/2018,Childrens,REDACTED,23/03/2018,810.32,74501-MAINTENANCE ALLOWANCE-FOSTER CARERS,INTERNAL FOSTER CARE PROVISION,Transfer Payments,Revenue
Walsall Council,http://opendatacommunities.org/id/metropolitan-district-council/walsall,WC90-553,31/03/2018,Childrens,REDACTED,23/03/2018,810.32,74501-MAINTENANCE ALLOWANCE-FOSTER CARERS,INTERNAL FOSTER CARE PROVISION,Transfer Payments,Revenue
Walsall Council,http://opendatacommunities.org/id/metropolitan-district-council/walsall,WC90-554,31/03/2018,Childrens,REDACTED,23/03/2018,985.76,74501-MAINTENANCE ALLOWANCE-FOSTER CARERS,INTERNAL FOSTER CARE PROVISION,Transfer Payments,Revenue
Walsall Council,http://opendatacommunities.org/id/metropolitan-district-council/walsall,WC90-555,31/03/2018,Childrens,REDACTED,23/03/2018,985.76,74501-MAINTENANCE ALLOWANCE-FOSTER CARERS,INTERNAL FOSTER CARE PROVISION,Transfer Payments,Revenue
Walsall Council,http://opendatacommunities.org/id/metropolitan-district-council/walsall,WC90-556,31/03/2018,Childrens,REDACTED,23/03/2018,"3,590.32",74508-INTERNAL FOSTER CARERS-CARER FEES,INTERNAL FOSTER CARE PROVISION,Transfer Payments,Revenue
Walsall Council,http://opendatacommunities.org/id/metropolitan-district-council/walsall,WC90-557,31/03/2018,Childrens,REDACTED,23/03/2018,9.24,60006-NEW-FURNITURE & EQUIPMENT,INTERNAL FOSTER CARE PROVISION,Supplies & Services,Revenue
Walsall Council,http://opendatacommunities.org/id/metropolitan-district-council/walsall,WC90-558,31/03/2018,Childrens,REDACTED,23/03/2018,150.00,74503-BIRTHDAY ALLOWANCE-FOSTER CARERS,INTERNAL FOSTER CARE PROVISION,Transfer Payments,Revenue
Walsall Council,http://opendatacommunities.org/id/metropolitan-district-council/walsall,WC90-559,31/03/2018,Childrens,REDACTED,23/03/2018,180.00,74503-BIRTHDAY ALLOWANCE-FOSTER CARERS,INTERNAL FOSTER CARE PROVISION,Transfer Payments,Revenue
Walsall Council,http://opendatacommunities.org/id/metropolitan-district-council/walsall,WC90-560,31/03/2018,Childrens,REDACTED,23/03/2018,810.32,74501-MAINTENANCE ALLOWANCE-FOSTER CARERS,INTERNAL FOSTER CARE PROVISION,Transfer Payments,Revenue
Walsall Council,http://opendatacommunities.org/id/metropolitan-district-council/walsall,WC90-561,31/03/2018,Childrens,REDACTED,23/03/2018,810.32,74501-MAINTENANCE ALLOWANCE-FOSTER CARERS,INTERNAL FOSTER CARE PROVISION,Transfer Payments,Revenue
Walsall Council,http://opendatacommunities.org/id/metropolitan-district-council/walsall,WC90-562,31/03/2018,Childrens,REDACTED,23/03/2018,"1,436.08",74508-INTERNAL FOSTER CARERS-CARER FEES,INTERNAL FOSTER CARE PROVISION,Transfer Payments,Revenue
Walsall Council,http://opendatacommunities.org/id/metropolitan-district-council/walsall,WC90-563,31/03/2018,Economy & Environment,C P DAVIDSON & SONS LTD,05/03/2018,"2,709.09",73025-PROFESSIONAL SERVICES-PRIV CONTRACTOR & OTHER AGENCIES,FLEET,Third Party Payments,Revenue
Walsall Council,http://opendatacommunities.org/id/metropolitan-district-council/walsall,WC90-564,31/03/2018,Childrens,REDACTED,09/03/2018,650.92,74501-MAINTENANCE ALLOWANCE-FOSTER CARERS,FAMILY & FRIENDS FOSTER CARE PROVISION,Transfer Payments,Revenue
Walsall Council,http://opendatacommunities.org/id/metropolitan-district-council/walsall,WC90-565,31/03/2018,Childrens,REDACTED,09/03/2018,650.92,74501-MAINTENANCE ALLOWANCE-FOSTER CARERS,FAMILY & FRIENDS FOSTER CARE PROVISION,Transfer Payments,Revenue
Walsall Council,http://opendatacommunities.org/id/metropolitan-district-council/walsall,WC90-566,31/03/2018,Adult Social Care,CALDENE  REST HOME,13/03/2018,"1,656.00",73373-RESIDENTIAL & NURSING CARE PLACEMENTS,OP PACKAGE/PLACEMENT COSTS,Third Party Payments,Revenue
Walsall Council,http://opendatacommunities.org/id/metropolitan-district-council/walsall,WC90-567,31/03/2018,Adult Social Care,CALDMORE AREA HOUSING ASS LTD,20/03/2018,271.40,73373-RESIDENTIAL & NURSING CARE PLACEMENTS,MENTAL HEALTH PACKAGE/PLACEMENT COSTS,Third Party Payments,Revenue
Walsall Council,http://opendatacommunities.org/id/metropolitan-district-council/walsall,WC90-568,31/03/2018,Adult Social Care,CALDMORE AREA HOUSING ASS LTD,26/03/2018,271.40,73373-RESIDENTIAL & NURSING CARE PLACEMENTS,MENTAL HEALTH PACKAGE/PLACEMENT COSTS,Third Party Payments,Revenue
Walsall Council,http://opendatacommunities.org/id/metropolitan-district-council/walsall,WC90-569,31/03/2018,Adult Social Care,CALDMORE AREA HOUSING ASS LTD,26/03/2018,373.25,73373-RESIDENTIAL & NURSING CARE PLACEMENTS,MENTAL HEALTH PACKAGE/PLACEMENT COSTS,Third Party Payments,Revenue
Walsall Council,http://opendatacommunities.org/id/metropolitan-district-council/walsall,WC90-570,31/03/2018,Adult Social Care,CALDMORE AREA HOUSING ASS LTD,26/03/2018,380.88,73373-RESIDENTIAL & NURSING CARE PLACEMENTS,MENTAL HEALTH PACKAGE/PLACEMENT COSTS,Third Party Payments,Revenue
Walsall Council,http://opendatacommunities.org/id/metropolitan-district-council/walsall,WC90-571,31/03/2018,Adult Social Care,CALDMORE AREA HOUSING ASS LTD,13/03/2018,452.33,73373-RESIDENTIAL & NURSING CARE PLACEMENTS,MENTAL HEALTH PACKAGE/PLACEMENT COSTS,Third Party Payments,Revenue
Walsall Council,http://opendatacommunities.org/id/metropolitan-district-council/walsall,WC90-572,31/03/2018,Adult Social Care,CALDMORE AREA HOUSING ASS LTD,20/03/2018,452.33,73373-RESIDENTIAL & NURSING CARE PLACEMENTS,MENTAL HEALTH PACKAGE/PLACEMENT COSTS,Third Party Payments,Revenue
Walsall Council,http://opendatacommunities.org/id/metropolitan-district-council/walsall,WC90-573,31/03/2018,Adult Social Care,CALDMORE AREA HOUSING ASS LTD,26/03/2018,542.79,73373-RESIDENTIAL & NURSING CARE PLACEMENTS,MENTAL HEALTH PACKAGE/PLACEMENT COSTS,Third Party Payments,Revenue
Walsall Council,http://opendatacommunities.org/id/metropolitan-district-council/walsall,WC90-574,31/03/2018,Adult Social Care,CALDMORE AREA HOUSING ASS LTD,26/03/2018,559.87,73373-RESIDENTIAL & NURSING CARE PLACEMENTS,MENTAL HEALTH PACKAGE/PLACEMENT COSTS,Third Party Payments,Revenue
Walsall Council,http://opendatacommunities.org/id/metropolitan-district-council/walsall,WC90-575,31/03/2018,Adult Social Care,CALDMORE AREA HOUSING ASS LTD,26/03/2018,559.98,73373-RESIDENTIAL & NURSING CARE PLACEMENTS,MENTAL HEALTH PACKAGE/PLACEMENT COSTS,Third Party Payments,Revenue
Walsall Council,http://opendatacommunities.org/id/metropolitan-district-council/walsall,WC90-576,31/03/2018,Adult Social Care,CALDMORE AREA HOUSING ASS LTD,26/03/2018,559.98,73373-RESIDENTIAL & NURSING CARE PLACEMENTS,MENTAL HEALTH PACKAGE/PLACEMENT COSTS,Third Party Payments,Revenue
Walsall Council,http://opendatacommunities.org/id/metropolitan-district-council/walsall,WC90-577,31/03/2018,Adult Social Care,CALDMORE AREA HOUSING ASS LTD,26/03/2018,559.98,73373-RESIDENTIAL & NURSING CARE PLACEMENTS,MENTAL HEALTH PACKAGE/PLACEMENT COSTS,Third Party Payments,Revenue
Walsall Council,http://opendatacommunities.org/id/metropolitan-district-council/walsall,WC90-578,31/03/2018,Adult Social Care,CALDMORE AREA HOUSING ASS LTD,26/03/2018,559.98,73373-RESIDENTIAL & NURSING CARE PLACEMENTS,MENTAL HEALTH PACKAGE/PLACEMENT COSTS,Third Party Payments,Revenue
Walsall Council,http://opendatacommunities.org/id/metropolitan-district-council/walsall,WC90-579,31/03/2018,Adult Social Care,CALDMORE AREA HOUSING ASS LTD,20/03/2018,633.26,73373-RESIDENTIAL & NURSING CARE PLACEMENTS,MENTAL HEALTH PACKAGE/PLACEMENT COSTS,Third Party Payments,Revenue
Walsall Council,http://opendatacommunities.org/id/metropolitan-district-council/walsall,WC90-580,31/03/2018,Adult Social Care,CALDMORE AREA HOUSING ASS LTD,20/03/2018,633.26,73373-RESIDENTIAL & NURSING CARE PLACEMENTS,MENTAL HEALTH PACKAGE/PLACEMENT COSTS,Third Party Payments,Revenue
Walsall Council,http://opendatacommunities.org/id/metropolitan-district-council/walsall,WC90-581,31/03/2018,Adult Social Care,CALDMORE AREA HOUSING ASS LTD,20/03/2018,633.26,73373-RESIDENTIAL & NURSING CARE PLACEMENTS,MENTAL HEALTH PACKAGE/PLACEMENT COSTS,Third Party Payments,Revenue
Walsall Council,http://opendatacommunities.org/id/metropolitan-district-council/walsall,WC90-582,31/03/2018,Adult Social Care,CALDMORE AREA HOUSING ASS LTD,20/03/2018,653.31,73373-RESIDENTIAL & NURSING CARE PLACEMENTS,MENTAL HEALTH PACKAGE/PLACEMENT COSTS,Third Party Payments,Revenue
Walsall Council,http://opendatacommunities.org/id/metropolitan-district-council/walsall,WC90-583,31/03/2018,Adult Social Care,CALDMORE AREA HOUSING ASS LTD,26/03/2018,653.31,73373-RESIDENTIAL & NURSING CARE PLACEMENTS,MENTAL HEALTH PACKAGE/PLACEMENT COSTS,Third Party Payments,Revenue
Walsall Council,http://opendatacommunities.org/id/metropolitan-district-council/walsall,WC90-584,31/03/2018,Adult Social Care,CALDMORE AREA HOUSING ASS LTD,20/03/2018,723.73,73373-RESIDENTIAL & NURSING CARE PLACEMENTS,MENTAL HEALTH PACKAGE/PLACEMENT COSTS,Third Party Payments,Revenue
Walsall Council,http://opendatacommunities.org/id/metropolitan-district-council/walsall,WC90-585,31/03/2018,Adult Social Care,CALDMORE AREA HOUSING ASS LTD,26/03/2018,723.73,73373-RESIDENTIAL & NURSING CARE PLACEMENTS,MENTAL HEALTH PACKAGE/PLACEMENT COSTS,Third Party Payments,Revenue
Walsall Council,http://opendatacommunities.org/id/metropolitan-district-council/walsall,WC90-586,31/03/2018,Adult Social Care,CALDMORE AREA HOUSING ASS LTD,26/03/2018,746.49,73373-RESIDENTIAL & NURSING CARE PLACEMENTS,MENTAL HEALTH PACKAGE/PLACEMENT COSTS,Third Party Payments,Revenue
Walsall Council,http://opendatacommunities.org/id/metropolitan-district-council/walsall,WC90-587,31/03/2018,Adult Social Care,CALDMORE AREA HOUSING ASS LTD,20/03/2018,"2,239.92",73373-RESIDENTIAL & NURSING CARE PLACEMENTS,MENTAL HEALTH PACKAGE/PLACEMENT COSTS,Third Party Payments,Revenue
Walsall Council,http://opendatacommunities.org/id/metropolitan-district-council/walsall,WC90-588,31/03/2018,Adult Social Care,CALDMORE AREA HOUSING ASS LTD,06/03/2018,"2,533.04",73373-RESIDENTIAL & NURSING CARE PLACEMENTS,MENTAL HEALTH PACKAGE/PLACEMENT COSTS,Third Party Payments,Revenue
Walsall Council,http://opendatacommunities.org/id/metropolitan-district-council/walsall,WC90-589,31/03/2018,Adult Social Care,CALDMORE AREA HOUSING ASS LTD,20/03/2018,"2,613.24",73373-RESIDENTIAL & NURSING CARE PLACEMENTS,MENTAL HEALTH PACKAGE/PLACEMENT COSTS,Third Party Payments,Revenue
Walsall Council,http://opendatacommunities.org/id/metropolitan-district-council/walsall,WC90-590,31/03/2018,Adult Social Care,CALDMORE AREA HOUSING ASS LTD,20/03/2018,"2,613.24",73373-RESIDENTIAL & NURSING CARE PLACEMENTS,MENTAL HEALTH PACKAGE/PLACEMENT COSTS,Third Party Payments,Revenue
Walsall Council,http://opendatacommunities.org/id/metropolitan-district-council/walsall,WC90-591,31/03/2018,Adult Social Care,CALDMORE AREA HOUSING ASS LTD,20/03/2018,"2,613.24",73373-RESIDENTIAL & NURSING CARE PLACEMENTS,MENTAL HEALTH PACKAGE/PLACEMENT COSTS,Third Party Payments,Revenue
Walsall Council,http://opendatacommunities.org/id/metropolitan-district-council/walsall,WC90-592,31/03/2018,Adult Social Care,CALDMORE AREA HOUSING ASS LTD,20/03/2018,"2,613.24",73373-RESIDENTIAL & NURSING CARE PLACEMENTS,MENTAL HEALTH PACKAGE/PLACEMENT COSTS,Third Party Payments,Revenue
Walsall Council,http://opendatacommunities.org/id/metropolitan-district-council/walsall,WC90-593,31/03/2018,Adult Social Care,CALDMORE AREA HOUSING ASS LTD,20/03/2018,"2,613.24",73373-RESIDENTIAL & NURSING CARE PLACEMENTS,MENTAL HEALTH PACKAGE/PLACEMENT COSTS,Third Party Payments,Revenue
Walsall Council,http://opendatacommunities.org/id/metropolitan-district-council/walsall,WC90-594,31/03/2018,Adult Social Care,CALDMORE AREA HOUSING ASS LTD,20/03/2018,"2,613.24",73373-RESIDENTIAL & NURSING CARE PLACEMENTS,MENTAL HEALTH PACKAGE/PLACEMENT COSTS,Third Party Payments,Revenue
Walsall Council,http://opendatacommunities.org/id/metropolitan-district-council/walsall,WC90-595,31/03/2018,Adult Social Care,CALDMORE AREA HOUSING ASS LTD,20/03/2018,"2,613.24",73373-RESIDENTIAL & NURSING CARE PLACEMENTS,MENTAL HEALTH PACKAGE/PLACEMENT COSTS,Third Party Payments,Revenue
Walsall Council,http://opendatacommunities.org/id/metropolitan-district-council/walsall,WC90-596,31/03/2018,Adult Social Care,CALDMORE AREA HOUSING ASS LTD,20/03/2018,"2,613.24",73373-RESIDENTIAL & NURSING CARE PLACEMENTS,MENTAL HEALTH PACKAGE/PLACEMENT COSTS,Third Party Payments,Revenue
Walsall Council,http://opendatacommunities.org/id/metropolitan-district-council/walsall,WC90-597,31/03/2018,Adult Social Care,CALDMORE AREA HOUSING ASS LTD,20/03/2018,"2,613.24",73373-RESIDENTIAL & NURSING CARE PLACEMENTS,MENTAL HEALTH PACKAGE/PLACEMENT COSTS,Third Party Payments,Revenue
Walsall Council,http://opendatacommunities.org/id/metropolitan-district-council/walsall,WC90-598,31/03/2018,Adult Social Care,CALDMORE AREA HOUSING ASS LTD,20/03/2018,"2,613.24",73373-RESIDENTIAL & NURSING CARE PLACEMENTS,MENTAL HEALTH PACKAGE/PLACEMENT COSTS,Third Party Payments,Revenue
Walsall Council,http://opendatacommunities.org/id/metropolitan-district-council/walsall,WC90-599,31/03/2018,Adult Social Care,CALDMORE AREA HOUSING ASS LTD,20/03/2018,"2,613.24",73373-RESIDENTIAL & NURSING CARE PLACEMENTS,MENTAL HEALTH PACKAGE/PLACEMENT COSTS,Third Party Payments,Revenue
Walsall Council,http://opendatacommunities.org/id/metropolitan-district-council/walsall,WC90-600,31/03/2018,Adult Social Care,CALDMORE AREA HOUSING ASS LTD,20/03/2018,"2,613.24",73373-RESIDENTIAL & NURSING CARE PLACEMENTS,MENTAL HEALTH PACKAGE/PLACEMENT COSTS,Third Party Payments,Revenue
Walsall Council,http://opendatacommunities.org/id/metropolitan-district-council/walsall,WC90-601,31/03/2018,Adult Social Care,CALDMORE AREA HOUSING ASS LTD,20/03/2018,"2,613.24",73373-RESIDENTIAL & NURSING CARE PLACEMENTS,MENTAL HEALTH PACKAGE/PLACEMENT COSTS,Third Party Payments,Revenue
Walsall Council,http://opendatacommunities.org/id/metropolitan-district-council/walsall,WC90-602,31/03/2018,Adult Social Care,CALDMORE AREA HOUSING ASS LTD,20/03/2018,"2,613.24",73373-RESIDENTIAL & NURSING CARE PLACEMENTS,MENTAL HEALTH PACKAGE/PLACEMENT COSTS,Third Party Payments,Revenue
Walsall Council,http://opendatacommunities.org/id/metropolitan-district-council/walsall,WC90-603,31/03/2018,Adult Social Care,CALDMORE AREA HOUSING ASS LTD,20/03/2018,"2,613.24",73373-RESIDENTIAL & NURSING CARE PLACEMENTS,MENTAL HEALTH PACKAGE/PLACEMENT COSTS,Third Party Payments,Revenue
Walsall Council,http://opendatacommunities.org/id/metropolitan-district-council/walsall,WC90-604,31/03/2018,Adult Social Care,CALDMORE AREA HOUSING ASS LTD,20/03/2018,"2,613.24",73373-RESIDENTIAL & NURSING CARE PLACEMENTS,MENTAL HEALTH PACKAGE/PLACEMENT COSTS,Third Party Payments,Revenue
Walsall Council,http://opendatacommunities.org/id/metropolitan-district-council/walsall,WC90-605,31/03/2018,Adult Social Care,CALDMORE AREA HOUSING ASS LTD,20/03/2018,"2,613.24",73373-RESIDENTIAL & NURSING CARE PLACEMENTS,MENTAL HEALTH PACKAGE/PLACEMENT COSTS,Third Party Payments,Revenue
Walsall Council,http://opendatacommunities.org/id/metropolitan-district-council/walsall,WC90-606,31/03/2018,Adult Social Care,CALDMORE AREA HOUSING ASS LTD,20/03/2018,"2,613.24",73373-RESIDENTIAL & NURSING CARE PLACEMENTS,MENTAL HEALTH PACKAGE/PLACEMENT COSTS,Third Party Payments,Revenue
Walsall Council,http://opendatacommunities.org/id/metropolitan-district-council/walsall,WC90-607,31/03/2018,Adult Social Care,CALDMORE AREA HOUSING ASS LTD,20/03/2018,"2,613.24",73373-RESIDENTIAL & NURSING CARE PLACEMENTS,MENTAL HEALTH PACKAGE/PLACEMENT COSTS,Third Party Payments,Revenue
Walsall Council,http://opendatacommunities.org/id/metropolitan-district-council/walsall,WC90-608,31/03/2018,Adult Social Care,CALDMORE AREA HOUSING ASS LTD,26/03/2018,"2,613.24",73373-RESIDENTIAL & NURSING CARE PLACEMENTS,MENTAL HEALTH PACKAGE/PLACEMENT COSTS,Third Party Payments,Revenue
Walsall Council,http://opendatacommunities.org/id/metropolitan-district-council/walsall,WC90-609,31/03/2018,Adult Social Care,CALDMORE AREA HOUSING ASS LTD,06/03/2018,"3,166.30",73373-RESIDENTIAL & NURSING CARE PLACEMENTS,MENTAL HEALTH PACKAGE/PLACEMENT COSTS,Third Party Payments,Revenue
Walsall Council,http://opendatacommunities.org/id/metropolitan-district-council/walsall,WC90-610,31/03/2018,Childrens,CALDMORE PRIMARY ACADEMY,23/03/2018,615.00,77200-TRANSFER PAYMENTS-OTHER SCHOOLCHILDREN/STUDENT RELATED ITEMS,EARLY YEARS - SOCIAL INCLUSION FUND - 3/4 YR OLD,Transfer Payments,Revenue
Walsall Council,http://opendatacommunities.org/id/metropolitan-district-council/walsall,WC90-611,31/03/2018,Childrens,CALDMORE PRIMARY ACADEMY,01/03/2018,"1,001.70",66505-OTHER-GRANTS TO OTHER ORGS,EARLY YEARS - 3 YR OLDS,Third Party Payments,Revenue
Walsall Council,http://opendatacommunities.org/id/metropolitan-district-council/walsall,WC90-612,31/03/2018,Childrens,CALDMORE PRIMARY ACADEMY,16/03/2018,"1,224.30",66505-OTHER-GRANTS TO OTHER ORGS,EARLY YEARS - 3 YR OLDS,Third Party Payments,Revenue
Walsall Council,http://opendatacommunities.org/id/metropolitan-district-council/walsall,WC90-613,31/03/2018,Childrens,CALDMORE PRIMARY ACADEMY,16/03/2018,"1,980.00",66505-OTHER-GRANTS TO OTHER ORGS,EARLY YEARS - 3 YR OLDS,Third Party Payments,Revenue
Walsall Council,http://opendatacommunities.org/id/metropolitan-district-council/walsall,WC90-614,31/03/2018,Childrens,REDACTED,09/03/2018,375.88,74510-RESIDENTS ORDERS,ADOPTION ALLOWANCES,Third Party Payments,Revenue
Walsall Council,http://opendatacommunities.org/id/metropolitan-district-council/walsall,WC90-615,31/03/2018,Adult Social Care,REDACTED,14/03/2018,"1,462.75",76422-DIRECT PAYMENTS TO SOCIAL SERVICES CLIENTS,LD PACKAGE/PLACEMENT COSTS,Transfer Payments,Revenue
Walsall Council,http://opendatacommunities.org/id/metropolitan-district-council/walsall,WC90-616,31/03/2018,Childrens,REDACTED,19/03/2018,"1,820.00",76422-DIRECT PAYMENTS TO SOCIAL SERVICES CLIENTS,FAMILY SUPPORT - DIRECT PAYMENTS,Transfer Payments,Revenue
Walsall Council,http://opendatacommunities.org/id/metropolitan-district-council/walsall,WC90-617,31/03/2018,Childrens,CAMBIAN CHILDCARE LIMITED,23/03/2018,"4,785.71",74036-EXTERNAL RESIDENTIAL CARE-OTH AGENCY PROVISION,INDEPENDENT RESIDENTIAL HOMES,Third Party Payments,Revenue
Walsall Council,http://opendatacommunities.org/id/metropolitan-district-council/walsall,WC90-618,31/03/2018,Childrens,CAMBIAN CHILDCARE LIMITED,23/03/2018,"8,614.29",74036-EXTERNAL RESIDENTIAL CARE-OTH AGENCY PROVISION,INDEPENDENT RESIDENTIAL HOMES,Third Party Payments,Revenue
Walsall Council,http://opendatacommunities.org/id/metropolitan-district-council/walsall,WC90-619,31/03/2018,Childrens,CAMBIAN CHILDCARE LIMITED,01/03/2018,"9,750.09",76010-ACCOMMODATION AND RELATED COSTS-ASSISTANCE TO S/S CLIENTS,TRANSITION AND LEAVING CARE PLACEMENTS,Transfer Payments,Revenue
Walsall Council,http://opendatacommunities.org/id/metropolitan-district-council/walsall,WC90-620,31/03/2018,Childrens,CAMBIAN WHINFELL SCHOOLS LTD,05/03/2018,"48,853.86",66502-TOP UP FUNDING -GRANTS TO SCHOOLS,INDEPENDENT PROVIDERS - SPECIAL & AP,Third Party Payments,Revenue
Walsall Council,http://opendatacommunities.org/id/metropolitan-district-council/walsall,WC90-621,31/03/2018,Resources and Transformation,CAMERA ONE LIMITED,14/03/2018,"2,925.00","40000-REPAIRS,ALTERATIONS & MAINTENANCE-PREM",RECHARGEABLE - NON SCHOOLS MAINTENANCE,Premises,Revenue
Walsall Council,http://opendatacommunities.org/id/metropolitan-district-council/walsall,WC90-622,31/03/2018,Economy & Environment,CAMERON FORECOURT LTD,07/03/2018,"2,701.00","40000-REPAIRS,ALTERATIONS & MAINTENANCE-PREM",DEPOT,Premises,Revenue
Walsall Council,http://opendatacommunities.org/id/metropolitan-district-council/walsall,WC90-623,31/03/2018,Economy & Environment,CANAL & RIVER TRUST,14/03/2018,281.05,43000-RENTS,ENVIRONMENTAL IMPROVEMENT SERVICE,Premises,Revenue
Walsall Council,http://opendatacommunities.org/id/metropolitan-district-council/walsall,WC90-624,31/03/2018,Economy & Environment,CANAL & RIVER TRUST,05/03/2018,"1,302.75",43000-RENTS,ENVIRONMENTAL IMPROVEMENT SERVICE,Premises,Revenue
Walsall Council,http://opendatacommunities.org/id/metropolitan-district-council/walsall,WC90-625,31/03/2018,Childrens,CANNOCK CHASE HIGH SCHOOL,07/03/2018,250.00,77300-ISB-FORMULA ALLOCATION,OUT OF BOROUGH SCHOOLS,Transfer Payments,Revenue
Walsall Council,http://opendatacommunities.org/id/metropolitan-district-council/walsall,WC90-626,31/03/2018,Childrens,CANNOCK CHASE HIGH SCHOOL,12/03/2018,300.00,77300-ISB-FORMULA ALLOCATION,OUT OF BOROUGH SCHOOLS,Transfer Payments,Revenue
Walsall Council,http://opendatacommunities.org/id/metropolitan-district-council/walsall,WC90-627,31/03/2018,Childrens,CANNOCK CHASE HIGH SCHOOL,12/03/2018,350.00,77300-ISB-FORMULA ALLOCATION,OUT OF BOROUGH SCHOOLS,Transfer Payments,Revenue
Walsall Council,http://opendatacommunities.org/id/metropolitan-district-council/walsall,WC90-628,31/03/2018,Childrens,CAPSTONE FOSTER CARE (SOUTH EAST) LIMITED,23/03/2018,"3,003.12",74037-INDEPENDENT FOSTER CARE-OTH AGENCY PROVISION,EXTERNAL FOSTER CARE PROVISION,Third Party Payments,Revenue
Walsall Council,http://opendatacommunities.org/id/metropolitan-district-council/walsall,WC90-629,31/03/2018,Childrens,CAPSTONE FOSTER CARE (SOUTH EAST) LIMITED,23/03/2018,"3,124.44",74037-INDEPENDENT FOSTER CARE-OTH AGENCY PROVISION,EXTERNAL FOSTER CARE PROVISION,Third Party Payments,Revenue
Walsall Council,http://opendatacommunities.org/id/metropolitan-district-council/walsall,WC90-630,31/03/2018,Childrens,CAPSTONE FOSTER CARE (SOUTH EAST) LIMITED,23/03/2018,"3,194.04",74037-INDEPENDENT FOSTER CARE-OTH AGENCY PROVISION,EXTERNAL FOSTER CARE PROVISION,Third Party Payments,Revenue
Walsall Council,http://opendatacommunities.org/id/metropolitan-district-council/walsall,WC90-631,31/03/2018,Childrens,CAPSTONE FOSTER CARE (SOUTH EAST) LIMITED,23/03/2018,"3,194.04",74037-INDEPENDENT FOSTER CARE-OTH AGENCY PROVISION,EXTERNAL FOSTER CARE PROVISION,Third Party Payments,Revenue
Walsall Council,http://opendatacommunities.org/id/metropolitan-district-council/walsall,WC90-632,31/03/2018,Adult Social Care,CARE 2 U LIMITED,26/03/2018,"29,681.14",73372-DOMICILIARY CARE,OP PACKAGE/PLACEMENT COSTS,Third Party Payments,Revenue
Walsall Council,http://opendatacommunities.org/id/metropolitan-district-council/walsall,WC90-633,31/03/2018,Adult Social Care,CARE 2 U LIMITED,05/03/2018,"31,409.62",73372-DOMICILIARY CARE,OP PACKAGE/PLACEMENT COSTS,Third Party Payments,Revenue
Walsall Council,http://opendatacommunities.org/id/metropolitan-district-council/walsall,WC90-634,31/03/2018,Childrens,CARE 4 CHILDREN RESIDENTIAL SERVICES LTD,23/03/2018,"5,600.00",74037-INDEPENDENT FOSTER CARE-OTH AGENCY PROVISION,EXTERNAL FOSTER CARE PROVISION,Third Party Payments,Revenue
Walsall Council,http://opendatacommunities.org/id/metropolitan-district-council/walsall,WC90-635,31/03/2018,Childrens,CARE AFLOAT LTD,23/03/2018,"19,200.00",74036-EXTERNAL RESIDENTIAL CARE-OTH AGENCY PROVISION,INDEPENDENT RESIDENTIAL HOMES,Third Party Payments,Revenue
Walsall Council,http://opendatacommunities.org/id/metropolitan-district-council/walsall,WC90-636,31/03/2018,Adult Social Care,CARE FIRST MANAGEMENT SERVICES LTD,05/03/2018,780.00,73372-DOMICILIARY CARE,PD PACKAGE/PLACEMENT COSTS,Third Party Payments,Revenue
Walsall Council,http://opendatacommunities.org/id/metropolitan-district-council/walsall,WC90-637,31/03/2018,Childrens,CARE LEAVERS,23/03/2018,407.95,63114-OTHER FEES & LICENCES-SERVICES-FEES,TRANSITION AND LEAVING CARE PLACEMENTS,Supplies & Services,Revenue
Walsall Council,http://opendatacommunities.org/id/metropolitan-district-council/walsall,WC90-638,31/03/2018,Childrens,CARE LEAVERS,23/03/2018,955.63,76010-ACCOMMODATION AND RELATED COSTS-ASSISTANCE TO S/S CLIENTS,TRANSITION AND LEAVING CARE PLACEMENTS,Transfer Payments,Revenue
Walsall Council,http://opendatacommunities.org/id/metropolitan-district-council/walsall,WC90-639,31/03/2018,Childrens,CARE LEAVERS,23/03/2018,"2,566.95",64002-OTHER EXPENSES-EXPENSES,TRANSITION AND LEAVING CARE PLACEMENTS,Supplies & Services,Revenue
Walsall Council,http://opendatacommunities.org/id/metropolitan-district-council/walsall,WC90-640,31/03/2018,Childrens,CARE LEAVERS,23/03/2018,"5,251.01",74500-CARE LEAVERS MTCE PAYMENTS,TRANSITION AND LEAVING CARE PLACEMENTS,Third Party Payments,Revenue
Walsall Council,http://opendatacommunities.org/id/metropolitan-district-council/walsall,WC90-641,31/03/2018,Childrens,CARE LEAVERS,23/03/2018,"7,405.60",76400-RESIDENTS PERSONAL EXPENSES-ALLOWANCES TO S/S CLIENTS,TRANSITION AND LEAVING CARE PLACEMENTS,Transfer Payments,Revenue
Walsall Council,http://opendatacommunities.org/id/metropolitan-district-council/walsall,WC90-642,31/03/2018,Childrens,CARE PERSPECTIVES LTD,23/03/2018,"19,800.00",74036-EXTERNAL RESIDENTIAL CARE-OTH AGENCY PROVISION,INDEPENDENT RESIDENTIAL HOMES,Third Party Payments,Revenue
Walsall Council,http://opendatacommunities.org/id/metropolitan-district-council/walsall,WC90-643,31/03/2018,Childrens,CARE PERSPECTIVES LTD,09/03/2018,"21,921.42",74036-EXTERNAL RESIDENTIAL CARE-OTH AGENCY PROVISION,INDEPENDENT RESIDENTIAL HOMES,Third Party Payments,Revenue
Walsall Council,http://opendatacommunities.org/id/metropolitan-district-council/walsall,WC90-644,31/03/2018,Childrens,CARE TODAY CHILDRENS SERVICES,23/03/2018,"2,064.00",74036-EXTERNAL RESIDENTIAL CARE-OTH AGENCY PROVISION,INDEPENDENT RESIDENTIAL HOMES,Third Party Payments,Revenue
Walsall Council,http://opendatacommunities.org/id/metropolitan-district-council/walsall,WC90-645,31/03/2018,Childrens,CARE TODAY CHILDRENS SERVICES,23/03/2018,"10,380.00",74036-EXTERNAL RESIDENTIAL CARE-OTH AGENCY PROVISION,INDEPENDENT RESIDENTIAL HOMES,Third Party Payments,Revenue
Walsall Council,http://opendatacommunities.org/id/metropolitan-district-council/walsall,WC90-646,31/03/2018,Adult Social Care,CARE XY LIMITED,27/03/2018,288.75,73372-DOMICILIARY CARE,OP PACKAGE/PLACEMENT COSTS,Third Party Payments,Revenue
Walsall Council,http://opendatacommunities.org/id/metropolitan-district-council/walsall,WC90-647,31/03/2018,Adult Social Care,CARE XY LIMITED,09/03/2018,302.50,73372-DOMICILIARY CARE,OP PACKAGE/PLACEMENT COSTS,Third Party Payments,Revenue
Walsall Council,http://opendatacommunities.org/id/metropolitan-district-council/walsall,WC90-648,31/03/2018,Adult Social Care,CARE XY LIMITED,09/03/2018,302.50,73372-DOMICILIARY CARE,OP PACKAGE/PLACEMENT COSTS,Third Party Payments,Revenue
Walsall Council,http://opendatacommunities.org/id/metropolitan-district-council/walsall,WC90-649,31/03/2018,Adult Social Care,CARE XY LIMITED,09/03/2018,330.00,73372-DOMICILIARY CARE,OP PACKAGE/PLACEMENT COSTS,Third Party Payments,Revenue
Walsall Council,http://opendatacommunities.org/id/metropolitan-district-council/walsall,WC90-650,31/03/2018,Adult Social Care,CARE XY LIMITED,20/03/2018,330.00,73025-PROFESSIONAL SERVICES-PRIV CONTRACTOR & OTHER AGENCIES,COMMUNITY INTERMEDIATE CARE,Third Party Payments,Revenue
Walsall Council,http://opendatacommunities.org/id/metropolitan-district-council/walsall,WC90-651,31/03/2018,Childrens,CARE XY LIMITED,13/03/2018,372.00,63000-PROFESSIONAL FEES AND SERVICES,DIRECTLY COMMISSIONED NURSING SERVICES,Supplies & Services,Revenue
Walsall Council,http://opendatacommunities.org/id/metropolitan-district-council/walsall,WC90-652,31/03/2018,Adult Social Care,CARE XY LIMITED,15/03/2018,385.00,73372-DOMICILIARY CARE,OP PACKAGE/PLACEMENT COSTS,Third Party Payments,Revenue
Walsall Council,http://opendatacommunities.org/id/metropolitan-district-council/walsall,WC90-653,31/03/2018,Adult Social Care,CARE XY LIMITED,20/03/2018,415.93,73025-PROFESSIONAL SERVICES-PRIV CONTRACTOR & OTHER AGENCIES,COMMUNITY INTERMEDIATE CARE,Third Party Payments,Revenue
Walsall Council,http://opendatacommunities.org/id/metropolitan-district-council/walsall,WC90-654,31/03/2018,Childrens,CARE XY LIMITED,06/03/2018,434.00,63000-PROFESSIONAL FEES AND SERVICES,DIRECTLY COMMISSIONED NURSING SERVICES,Supplies & Services,Revenue
Walsall Council,http://opendatacommunities.org/id/metropolitan-district-council/walsall,WC90-655,31/03/2018,Adult Social Care,CARE XY LIMITED,20/03/2018,440.00,73025-PROFESSIONAL SERVICES-PRIV CONTRACTOR & OTHER AGENCIES,COMMUNITY INTERMEDIATE CARE,Third Party Payments,Revenue
Walsall Council,http://opendatacommunities.org/id/metropolitan-district-council/walsall,WC90-656,31/03/2018,Childrens,CARE XY LIMITED,06/03/2018,465.00,63000-PROFESSIONAL FEES AND SERVICES,DIRECTLY COMMISSIONED NURSING SERVICES,Supplies & Services,Revenue
Walsall Council,http://opendatacommunities.org/id/metropolitan-district-council/walsall,WC90-657,31/03/2018,Childrens,CARE XY LIMITED,06/03/2018,465.00,63000-PROFESSIONAL FEES AND SERVICES,DIRECTLY COMMISSIONED NURSING SERVICES,Supplies & Services,Revenue
Walsall Council,http://opendatacommunities.org/id/metropolitan-district-council/walsall,WC90-658,31/03/2018,Adult Social Care,CARE XY LIMITED,27/03/2018,495.00,73372-DOMICILIARY CARE,OP PACKAGE/PLACEMENT COSTS,Third Party Payments,Revenue
Walsall Council,http://opendatacommunities.org/id/metropolitan-district-council/walsall,WC90-659,31/03/2018,Adult Social Care,CARE XY LIMITED,19/03/2018,543.12,73025-PROFESSIONAL SERVICES-PRIV CONTRACTOR & OTHER AGENCIES,COMMUNITY INTERMEDIATE CARE,Third Party Payments,Revenue
Walsall Council,http://opendatacommunities.org/id/metropolitan-district-council/walsall,WC90-660,31/03/2018,Adult Social Care,CARE XY LIMITED,27/03/2018,556.87,73372-DOMICILIARY CARE,OP PACKAGE/PLACEMENT COSTS,Third Party Payments,Revenue
Walsall Council,http://opendatacommunities.org/id/metropolitan-district-council/walsall,WC90-661,31/03/2018,Adult Social Care,CARE XY LIMITED,09/03/2018,618.75,73372-DOMICILIARY CARE,OP PACKAGE/PLACEMENT COSTS,Third Party Payments,Revenue
Walsall Council,http://opendatacommunities.org/id/metropolitan-district-council/walsall,WC90-662,31/03/2018,Childrens,CARE XY LIMITED,06/03/2018,620.00,63000-PROFESSIONAL FEES AND SERVICES,DIRECTLY COMMISSIONED NURSING SERVICES,Supplies & Services,Revenue
Walsall Council,http://opendatacommunities.org/id/metropolitan-district-council/walsall,WC90-663,31/03/2018,Adult Social Care,CARE XY LIMITED,09/03/2018,742.50,73372-DOMICILIARY CARE,OP PACKAGE/PLACEMENT COSTS,Third Party Payments,Revenue
Walsall Council,http://opendatacommunities.org/id/metropolitan-district-council/walsall,WC90-664,31/03/2018,Adult Social Care,CARE XY LIMITED,20/03/2018,811.25,73025-PROFESSIONAL SERVICES-PRIV CONTRACTOR & OTHER AGENCIES,COMMUNITY INTERMEDIATE CARE,Third Party Payments,Revenue
Walsall Council,http://opendatacommunities.org/id/metropolitan-district-council/walsall,WC90-665,31/03/2018,Adult Social Care,CARE XY LIMITED,19/03/2018,866.25,73372-DOMICILIARY CARE,OP PACKAGE/PLACEMENT COSTS,Third Party Payments,Revenue
Walsall Council,http://opendatacommunities.org/id/metropolitan-district-council/walsall,WC90-666,31/03/2018,Adult Social Care,CARE XY LIMITED,19/03/2018,866.25,73372-DOMICILIARY CARE,OP PACKAGE/PLACEMENT COSTS,Third Party Payments,Revenue
Walsall Council,http://opendatacommunities.org/id/metropolitan-district-council/walsall,WC90-667,31/03/2018,Adult Social Care,CARE XY LIMITED,19/03/2018,866.25,73372-DOMICILIARY CARE,OP PACKAGE/PLACEMENT COSTS,Third Party Payments,Revenue
Walsall Council,http://opendatacommunities.org/id/metropolitan-district-council/walsall,WC90-668,31/03/2018,Adult Social Care,CARE XY LIMITED,09/03/2018,"1,155.00",73372-DOMICILIARY CARE,OP PACKAGE/PLACEMENT COSTS,Third Party Payments,Revenue
Walsall Council,http://opendatacommunities.org/id/metropolitan-district-council/walsall,WC90-669,31/03/2018,Adult Social Care,CARE XY LIMITED,09/03/2018,"1,347.50",73372-DOMICILIARY CARE,OP PACKAGE/PLACEMENT COSTS,Third Party Payments,Revenue
Walsall Council,http://opendatacommunities.org/id/metropolitan-district-council/walsall,WC90-670,31/03/2018,Adult Social Care,CARE XY LIMITED,09/03/2018,"1,450.62",73372-DOMICILIARY CARE,OP PACKAGE/PLACEMENT COSTS,Third Party Payments,Revenue
Walsall Council,http://opendatacommunities.org/id/metropolitan-district-council/walsall,WC90-671,31/03/2018,Adult Social Care,CARE XY LIMITED,27/03/2018,"1,540.00",73372-DOMICILIARY CARE,OP PACKAGE/PLACEMENT COSTS,Third Party Payments,Revenue
Walsall Council,http://opendatacommunities.org/id/metropolitan-district-council/walsall,WC90-672,31/03/2018,Adult Social Care,CARE XY LIMITED,09/03/2018,"1,732.50",73372-DOMICILIARY CARE,OP PACKAGE/PLACEMENT COSTS,Third Party Payments,Revenue
Walsall Council,http://opendatacommunities.org/id/metropolitan-district-council/walsall,WC90-673,31/03/2018,Adult Social Care,CARE XY LIMITED,19/03/2018,"1,732.50",73372-DOMICILIARY CARE,OP PACKAGE/PLACEMENT COSTS,Third Party Payments,Revenue
Walsall Council,http://opendatacommunities.org/id/metropolitan-district-council/walsall,WC90-674,31/03/2018,Childrens,CARE XY LIMITED,13/03/2018,"3,092.25",63000-PROFESSIONAL FEES AND SERVICES,DIRECTLY COMMISSIONED NURSING SERVICES,Supplies & Services,Revenue
Walsall Council,http://opendatacommunities.org/id/metropolitan-district-council/walsall,WC90-675,31/03/2018,Childrens,CARE XY LIMITED,06/03/2018,"4,557.00",63000-PROFESSIONAL FEES AND SERVICES,DIRECTLY COMMISSIONED NURSING SERVICES,Supplies & Services,Revenue
Walsall Council,http://opendatacommunities.org/id/metropolitan-district-council/walsall,WC90-676,31/03/2018,Childrens,CARE XY LIMITED,15/03/2018,"4,557.00",63000-PROFESSIONAL FEES AND SERVICES,DIRECTLY COMMISSIONED NURSING SERVICES,Supplies & Services,Revenue
Walsall Council,http://opendatacommunities.org/id/metropolitan-district-council/walsall,WC90-677,31/03/2018,Childrens,CARE XY LIMITED,13/03/2018,"6,231.00",63000-PROFESSIONAL FEES AND SERVICES,DIRECTLY COMMISSIONED NURSING SERVICES,Supplies & Services,Revenue
Walsall Council,http://opendatacommunities.org/id/metropolitan-district-council/walsall,WC90-678,31/03/2018,Adult Social Care,CARE XY LIMITED,20/03/2018,"6,916.25",73025-PROFESSIONAL SERVICES-PRIV CONTRACTOR & OTHER AGENCIES,COMMUNITY INTERMEDIATE CARE,Third Party Payments,Revenue
Walsall Council,http://opendatacommunities.org/id/metropolitan-district-council/walsall,WC90-679,31/03/2018,Adult Social Care,CARE XY LIMITED,20/03/2018,"7,036.56",73025-PROFESSIONAL SERVICES-PRIV CONTRACTOR & OTHER AGENCIES,COMMUNITY INTERMEDIATE CARE,Third Party Payments,Revenue
Walsall Council,http://opendatacommunities.org/id/metropolitan-district-council/walsall,WC90-680,31/03/2018,Adult Social Care,CARE XY LIMITED,20/03/2018,"7,397.50",73025-PROFESSIONAL SERVICES-PRIV CONTRACTOR & OTHER AGENCIES,COMMUNITY INTERMEDIATE CARE,Third Party Payments,Revenue
Walsall Council,http://opendatacommunities.org/id/metropolitan-district-council/walsall,WC90-681,31/03/2018,Adult Social Care,CARE XY LIMITED,20/03/2018,"7,937.18",73025-PROFESSIONAL SERVICES-PRIV CONTRACTOR & OTHER AGENCIES,COMMUNITY INTERMEDIATE CARE,Third Party Payments,Revenue
Walsall Council,http://opendatacommunities.org/id/metropolitan-district-council/walsall,WC90-682,31/03/2018,Adult Social Care,CARE XY LIMITED,27/03/2018,"9,061.25",73025-PROFESSIONAL SERVICES-PRIV CONTRACTOR & OTHER AGENCIES,COMMUNITY INTERMEDIATE CARE,Third Party Payments,Revenue
Walsall Council,http://opendatacommunities.org/id/metropolitan-district-council/walsall,WC90-683,31/03/2018,Childrens,CAREFIRST SERVICES LIMITED,09/03/2018,-455.08,76010-ACCOMMODATION AND RELATED COSTS-ASSISTANCE TO S/S CLIENTS,TRANSITION AND LEAVING CARE PLACEMENTS,Transfer Payments,Revenue
Walsall Council,http://opendatacommunities.org/id/metropolitan-district-council/walsall,WC90-684,31/03/2018,Childrens,CAREFIRST SERVICES LIMITED,12/03/2018,"1,633.69",76010-ACCOMMODATION AND RELATED COSTS-ASSISTANCE TO S/S CLIENTS,TRANSITION AND LEAVING CARE PLACEMENTS,Transfer Payments,Revenue
Walsall Council,http://opendatacommunities.org/id/metropolitan-district-council/walsall,WC90-685,31/03/2018,Childrens,CAREFIRST SERVICES LIMITED,09/03/2018,"1,846.78",76010-ACCOMMODATION AND RELATED COSTS-ASSISTANCE TO S/S CLIENTS,TRANSITION AND LEAVING CARE PLACEMENTS,Transfer Payments,Revenue
Walsall Council,http://opendatacommunities.org/id/metropolitan-district-council/walsall,WC90-686,31/03/2018,Childrens,CAREFIRST SERVICES LIMITED,09/03/2018,"2,201.93",76010-ACCOMMODATION AND RELATED COSTS-ASSISTANCE TO S/S CLIENTS,TRANSITION AND LEAVING CARE PLACEMENTS,Transfer Payments,Revenue
Walsall Council,http://opendatacommunities.org/id/metropolitan-district-council/walsall,WC90-687,31/03/2018,Childrens,CAREFIRST SERVICES LIMITED,07/03/2018,"2,657.01",76010-ACCOMMODATION AND RELATED COSTS-ASSISTANCE TO S/S CLIENTS,TRANSITION AND LEAVING CARE PLACEMENTS,Transfer Payments,Revenue
Walsall Council,http://opendatacommunities.org/id/metropolitan-district-council/walsall,WC90-688,31/03/2018,Adult Social Care,CARETECH COMMUNITY SERVICE,27/03/2018,"4,436.63",73372-DOMICILIARY CARE,LD PACKAGE/PLACEMENT COSTS,Third Party Payments,Revenue
Walsall Council,http://opendatacommunities.org/id/metropolitan-district-council/walsall,WC90-689,31/03/2018,Adult Social Care,CAREVIEW SERVICES LTD,13/03/2018,"6,802.82",73373-RESIDENTIAL & NURSING CARE PLACEMENTS,LD PACKAGE/PLACEMENT COSTS,Third Party Payments,Revenue
Walsall Council,http://opendatacommunities.org/id/metropolitan-district-council/walsall,WC90-690,31/03/2018,Adult Social Care,CARING CARE LIMITED,09/03/2018,467.50,73025-PROFESSIONAL SERVICES-PRIV CONTRACTOR & OTHER AGENCIES,ACM MANAGEMENT TEAM,Third Party Payments,Revenue
Walsall Council,http://opendatacommunities.org/id/metropolitan-district-council/walsall,WC90-691,31/03/2018,Adult Social Care,CARING CARE LIMITED,07/03/2018,495.00,73025-PROFESSIONAL SERVICES-PRIV CONTRACTOR & OTHER AGENCIES,ACM MANAGEMENT TEAM,Third Party Payments,Revenue
Walsall Council,http://opendatacommunities.org/id/metropolitan-district-council/walsall,WC90-692,31/03/2018,Adult Social Care,CARING CARE LIMITED,09/03/2018,495.00,73025-PROFESSIONAL SERVICES-PRIV CONTRACTOR & OTHER AGENCIES,ACM MANAGEMENT TEAM,Third Party Payments,Revenue
Walsall Council,http://opendatacommunities.org/id/metropolitan-district-council/walsall,WC90-693,31/03/2018,Adult Social Care,CARING CARE LIMITED,07/03/2018,756.25,73025-PROFESSIONAL SERVICES-PRIV CONTRACTOR & OTHER AGENCIES,ACM MANAGEMENT TEAM,Third Party Payments,Revenue
Walsall Council,http://opendatacommunities.org/id/metropolitan-district-council/walsall,WC90-694,31/03/2018,Adult Social Care,CARING CARE LIMITED,07/03/2018,770.00,73025-PROFESSIONAL SERVICES-PRIV CONTRACTOR & OTHER AGENCIES,ACM MANAGEMENT TEAM,Third Party Payments,Revenue
Walsall Council,http://opendatacommunities.org/id/metropolitan-district-council/walsall,WC90-695,31/03/2018,Adult Social Care,CARING CARE LIMITED,20/03/2018,825.00,73025-PROFESSIONAL SERVICES-PRIV CONTRACTOR & OTHER AGENCIES,COMMUNITY INTERMEDIATE CARE,Third Party Payments,Revenue
Walsall Council,http://opendatacommunities.org/id/metropolitan-district-council/walsall,WC90-696,31/03/2018,Adult Social Care,CARING CARE LIMITED,08/03/2018,893.75,73025-PROFESSIONAL SERVICES-PRIV CONTRACTOR & OTHER AGENCIES,ACM MANAGEMENT TEAM,Third Party Payments,Revenue
Walsall Council,http://opendatacommunities.org/id/metropolitan-district-council/walsall,WC90-697,31/03/2018,Adult Social Care,CARING CARE LIMITED,07/03/2018,907.50,73025-PROFESSIONAL SERVICES-PRIV CONTRACTOR & OTHER AGENCIES,ACM MANAGEMENT TEAM,Third Party Payments,Revenue
Walsall Council,http://opendatacommunities.org/id/metropolitan-district-council/walsall,WC90-698,31/03/2018,Adult Social Care,CARING CARE LIMITED,20/03/2018,928.13,73025-PROFESSIONAL SERVICES-PRIV CONTRACTOR & OTHER AGENCIES,COMMUNITY INTERMEDIATE CARE,Third Party Payments,Revenue
Walsall Council,http://opendatacommunities.org/id/metropolitan-district-council/walsall,WC90-699,31/03/2018,Adult Social Care,CARING CARE LIMITED,06/03/2018,990.00,73025-PROFESSIONAL SERVICES-PRIV CONTRACTOR & OTHER AGENCIES,ACM MANAGEMENT TEAM,Third Party Payments,Revenue
Walsall Council,http://opendatacommunities.org/id/metropolitan-district-council/walsall,WC90-700,31/03/2018,Adult Social Care,CARING CARE LIMITED,06/03/2018,990.00,73025-PROFESSIONAL SERVICES-PRIV CONTRACTOR & OTHER AGENCIES,ACM MANAGEMENT TEAM,Third Party Payments,Revenue
Walsall Council,http://opendatacommunities.org/id/metropolitan-district-council/walsall,WC90-701,31/03/2018,Adult Social Care,CARING CARE LIMITED,07/03/2018,990.00,73025-PROFESSIONAL SERVICES-PRIV CONTRACTOR & OTHER AGENCIES,ACM MANAGEMENT TEAM,Third Party Payments,Revenue
Walsall Council,http://opendatacommunities.org/id/metropolitan-district-council/walsall,WC90-702,31/03/2018,Adult Social Care,CARING CARE LIMITED,08/03/2018,990.00,73025-PROFESSIONAL SERVICES-PRIV CONTRACTOR & OTHER AGENCIES,ACM MANAGEMENT TEAM,Third Party Payments,Revenue
Walsall Council,http://opendatacommunities.org/id/metropolitan-district-council/walsall,WC90-703,31/03/2018,Adult Social Care,CARING CARE LIMITED,08/03/2018,990.00,73025-PROFESSIONAL SERVICES-PRIV CONTRACTOR & OTHER AGENCIES,ACM MANAGEMENT TEAM,Third Party Payments,Revenue
Walsall Council,http://opendatacommunities.org/id/metropolitan-district-council/walsall,WC90-704,31/03/2018,Adult Social Care,CARING CARE LIMITED,09/03/2018,990.00,73025-PROFESSIONAL SERVICES-PRIV CONTRACTOR & OTHER AGENCIES,ACM MANAGEMENT TEAM,Third Party Payments,Revenue
Walsall Council,http://opendatacommunities.org/id/metropolitan-district-council/walsall,WC90-705,31/03/2018,Adult Social Care,CARING CARE LIMITED,09/03/2018,"1,650.00",73025-PROFESSIONAL SERVICES-PRIV CONTRACTOR & OTHER AGENCIES,ACM MANAGEMENT TEAM,Third Party Payments,Revenue
Walsall Council,http://opendatacommunities.org/id/metropolitan-district-council/walsall,WC90-706,31/03/2018,Adult Social Care,CARING CARE LIMITED,20/03/2018,"1,650.00",73025-PROFESSIONAL SERVICES-PRIV CONTRACTOR & OTHER AGENCIES,COMMUNITY INTERMEDIATE CARE,Third Party Payments,Revenue
Walsall Council,http://opendatacommunities.org/id/metropolitan-district-council/walsall,WC90-707,31/03/2018,Adult Social Care,CARING CARE LIMITED,06/03/2018,"1,677.50",73025-PROFESSIONAL SERVICES-PRIV CONTRACTOR & OTHER AGENCIES,ACM MANAGEMENT TEAM,Third Party Payments,Revenue
Walsall Council,http://opendatacommunities.org/id/metropolitan-district-council/walsall,WC90-708,31/03/2018,Adult Social Care,CARING CARE LIMITED,07/03/2018,"1,677.50",73025-PROFESSIONAL SERVICES-PRIV CONTRACTOR & OTHER AGENCIES,ACM MANAGEMENT TEAM,Third Party Payments,Revenue
Walsall Council,http://opendatacommunities.org/id/metropolitan-district-council/walsall,WC90-709,31/03/2018,Adult Social Care,CARING CARE LIMITED,20/03/2018,"1,856.25",73025-PROFESSIONAL SERVICES-PRIV CONTRACTOR & OTHER AGENCIES,COMMUNITY INTERMEDIATE CARE,Third Party Payments,Revenue
Walsall Council,http://opendatacommunities.org/id/metropolitan-district-council/walsall,WC90-710,31/03/2018,Adult Social Care,CARING CARE LIMITED,09/03/2018,"1,925.00",73025-PROFESSIONAL SERVICES-PRIV CONTRACTOR & OTHER AGENCIES,ACM MANAGEMENT TEAM,Third Party Payments,Revenue
Walsall Council,http://opendatacommunities.org/id/metropolitan-district-council/walsall,WC90-711,31/03/2018,Adult Social Care,CARING CARE LIMITED,09/03/2018,"2,021.25",73025-PROFESSIONAL SERVICES-PRIV CONTRACTOR & OTHER AGENCIES,ACM MANAGEMENT TEAM,Third Party Payments,Revenue
Walsall Council,http://opendatacommunities.org/id/metropolitan-district-council/walsall,WC90-712,31/03/2018,Adult Social Care,CARING CARE LIMITED,09/03/2018,"2,234.38",73025-PROFESSIONAL SERVICES-PRIV CONTRACTOR & OTHER AGENCIES,ACM MANAGEMENT TEAM,Third Party Payments,Revenue
Walsall Council,http://opendatacommunities.org/id/metropolitan-district-council/walsall,WC90-713,31/03/2018,Adult Social Care,CARING CARE LIMITED,09/03/2018,"2,310.00",73025-PROFESSIONAL SERVICES-PRIV CONTRACTOR & OTHER AGENCIES,ACM MANAGEMENT TEAM,Third Party Payments,Revenue
Walsall Council,http://opendatacommunities.org/id/metropolitan-district-council/walsall,WC90-714,31/03/2018,Adult Social Care,CARING CARE LIMITED,06/03/2018,"3,176.25",73025-PROFESSIONAL SERVICES-PRIV CONTRACTOR & OTHER AGENCIES,ACM MANAGEMENT TEAM,Third Party Payments,Revenue
Walsall Council,http://opendatacommunities.org/id/metropolitan-district-council/walsall,WC90-715,31/03/2018,Adult Social Care,CARING CARE LIMITED,09/03/2018,"4,128.44",73025-PROFESSIONAL SERVICES-PRIV CONTRACTOR & OTHER AGENCIES,ACM MANAGEMENT TEAM,Third Party Payments,Revenue
Walsall Council,http://opendatacommunities.org/id/metropolitan-district-council/walsall,WC90-716,31/03/2018,Adult Social Care,CARING CARE LIMITED,09/03/2018,"8,112.50",73025-PROFESSIONAL SERVICES-PRIV CONTRACTOR & OTHER AGENCIES,ACM MANAGEMENT TEAM,Third Party Payments,Revenue
Walsall Council,http://opendatacommunities.org/id/metropolitan-district-council/walsall,WC90-717,31/03/2018,Adult Social Care,CARING CARE LIMITED,05/03/2018,"58,830.58",73372-DOMICILIARY CARE,OP PACKAGE/PLACEMENT COSTS,Third Party Payments,Revenue
Walsall Council,http://opendatacommunities.org/id/metropolitan-district-council/walsall,WC90-718,31/03/2018,Adult Social Care,CARING CARE LIMITED,26/03/2018,"65,479.31",73372-DOMICILIARY CARE,OP PACKAGE/PLACEMENT COSTS,Third Party Payments,Revenue
Walsall Council,http://opendatacommunities.org/id/metropolitan-district-council/walsall,WC90-719,31/03/2018,Adult Social Care,CARING HANDS LIMITED,26/03/2018,"24,059.80",73372-DOMICILIARY CARE,OP PACKAGE/PLACEMENT COSTS,Third Party Payments,Revenue
Walsall Council,http://opendatacommunities.org/id/metropolitan-district-council/walsall,WC90-720,31/03/2018,Adult Social Care,CARING HANDS LIMITED,05/03/2018,"28,222.86",73372-DOMICILIARY CARE,OP PACKAGE/PLACEMENT COSTS,Third Party Payments,Revenue
Walsall Council,http://opendatacommunities.org/id/metropolitan-district-council/walsall,WC90-721,31/03/2018,Childrens,REDACTED,01/03/2018,528.00,66505-OTHER-GRANTS TO OTHER ORGS,EARLY YEARS - 3 YR OLDS,Third Party Payments,Revenue
Walsall Council,http://opendatacommunities.org/id/metropolitan-district-council/walsall,WC90-722,31/03/2018,Adult Social Care,REDACTED,14/03/2018,"1,658.80",76422-DIRECT PAYMENTS TO SOCIAL SERVICES CLIENTS,PD PACKAGE/PLACEMENT COSTS,Transfer Payments,Revenue
Walsall Council,http://opendatacommunities.org/id/metropolitan-district-council/walsall,WC90-723,31/03/2018,Adult Social Care,REDACTED,06/03/2018,"1,637.40",73372-DOMICILIARY CARE,LD PACKAGE/PLACEMENT COSTS,Third Party Payments,Revenue
Walsall Council,http://opendatacommunities.org/id/metropolitan-district-council/walsall,WC90-724,31/03/2018,Adult Social Care,REDACTED,06/03/2018,"1,637.40",73372-DOMICILIARY CARE,LD PACKAGE/PLACEMENT COSTS,Third Party Payments,Revenue
Walsall Council,http://opendatacommunities.org/id/metropolitan-district-council/walsall,WC90-725,31/03/2018,Childrens,REDACTED,23/03/2018,9.24,60006-NEW-FURNITURE & EQUIPMENT,INTERNAL FOSTER CARE PROVISION,Supplies & Services,Revenue
Walsall Council,http://opendatacommunities.org/id/metropolitan-district-council/walsall,WC90-726,31/03/2018,Childrens,REDACTED,23/03/2018,473.00,74510-RESIDENTS ORDERS,ADOPTION ALLOWANCES,Third Party Payments,Revenue
Walsall Council,http://opendatacommunities.org/id/metropolitan-district-council/walsall,WC90-727,31/03/2018,Childrens,REDACTED,23/03/2018,530.96,74508-INTERNAL FOSTER CARERS-CARER FEES,INTERNAL FOSTER CARE PROVISION,Transfer Payments,Revenue
Walsall Council,http://opendatacommunities.org/id/metropolitan-district-council/walsall,WC90-728,31/03/2018,Childrens,CAROLE BROOKS ASSOCIATES LIMITED,26/03/2018,"5,077.36",63000-PROFESSIONAL FEES AND SERVICES,PERFORMANCE & OUTCOMES TEAM (C&YP),Supplies & Services,Revenue
Walsall Council,http://opendatacommunities.org/id/metropolitan-district-council/walsall,WC90-729,31/03/2018,Childrens,CAROLE BROOKS ASSOCIATES LIMITED,07/03/2018,"5,530.98",63000-PROFESSIONAL FEES AND SERVICES,PERFORMANCE & OUTCOMES TEAM (C&YP),Supplies & Services,Revenue
Walsall Council,http://opendatacommunities.org/id/metropolitan-district-council/walsall,WC90-730,31/03/2018,Childrens,REDACTED,09/03/2018,361.12,74509-SPECIAL GUARDIANSHIP ORDERS,ADOPTION ALLOWANCES,Transfer Payments,Revenue
Walsall Council,http://opendatacommunities.org/id/metropolitan-district-council/walsall,WC90-731,31/03/2018,Adult Social Care,REDACTED,14/03/2018,765.90,76422-DIRECT PAYMENTS TO SOCIAL SERVICES CLIENTS,MENTAL HEALTH PACKAGE/PLACEMENT COSTS,Transfer Payments,Revenue
Walsall Council,http://opendatacommunities.org/id/metropolitan-district-council/walsall,WC90-732,31/03/2018,Economy & Environment,CARTER SYNERGY LTD,28/03/2018,314.86,40216-OTHER-PLAN MTCE,NAG - MAINTENANCE,Premises,Revenue
Walsall Council,http://opendatacommunities.org/id/metropolitan-district-council/walsall,WC90-733,31/03/2018,Economy & Environment,CARTER SYNERGY LTD,28/03/2018,372.90,40216-OTHER-PLAN MTCE,NAG - MAINTENANCE,Premises,Revenue
Walsall Council,http://opendatacommunities.org/id/metropolitan-district-council/walsall,WC90-734,31/03/2018,Economy & Environment,CARTER SYNERGY LTD,07/03/2018,409.20,"40000-REPAIRS,ALTERATIONS & MAINTENANCE-PREM",NAG - MAINTENANCE,Premises,Revenue
Walsall Council,http://opendatacommunities.org/id/metropolitan-district-council/walsall,WC90-735,31/03/2018,Economy & Environment,CARTER SYNERGY LTD,28/03/2018,436.80,40216-OTHER-PLAN MTCE,NAG - MAINTENANCE,Premises,Revenue
Walsall Council,http://opendatacommunities.org/id/metropolitan-district-council/walsall,WC90-736,31/03/2018,Economy & Environment,CARTER SYNERGY LTD,28/03/2018,447.00,40216-OTHER-PLAN MTCE,NAG - MAINTENANCE,Premises,Revenue
Walsall Council,http://opendatacommunities.org/id/metropolitan-district-council/walsall,WC90-737,31/03/2018,Economy & Environment,CARTER SYNERGY LTD,28/03/2018,485.10,40216-OTHER-PLAN MTCE,NAG - MAINTENANCE,Premises,Revenue
Walsall Council,http://opendatacommunities.org/id/metropolitan-district-council/walsall,WC90-738,31/03/2018,Economy & Environment,CARTER SYNERGY LTD,28/03/2018,654.00,"40000-REPAIRS,ALTERATIONS & MAINTENANCE-PREM",NAG - MAINTENANCE,Premises,Revenue
Walsall Council,http://opendatacommunities.org/id/metropolitan-district-council/walsall,WC90-739,31/03/2018,Economy & Environment,CARTER SYNERGY LTD,28/03/2018,804.22,40216-OTHER-PLAN MTCE,NAG - MAINTENANCE,Premises,Revenue
Walsall Council,http://opendatacommunities.org/id/metropolitan-district-council/walsall,WC90-740,31/03/2018,Economy & Environment,CARTER SYNERGY LTD,28/03/2018,810.77,40216-OTHER-PLAN MTCE,NAG - MAINTENANCE,Premises,Revenue
Walsall Council,http://opendatacommunities.org/id/metropolitan-district-council/walsall,WC90-741,31/03/2018,Economy & Environment,CARTER SYNERGY LTD,28/03/2018,"1,100.00","40000-REPAIRS,ALTERATIONS & MAINTENANCE-PREM",NAG - MAINTENANCE,Premises,Revenue
Walsall Council,http://opendatacommunities.org/id/metropolitan-district-council/walsall,WC90-742,31/03/2018,Economy & Environment,CARTER SYNERGY LTD,07/03/2018,"1,303.50",60000-FURNITURE & EQUIPMENT,NAG - MAINTENANCE,Supplies & Services,Revenue
Walsall Council,http://opendatacommunities.org/id/metropolitan-district-council/walsall,WC90-743,31/03/2018,Economy & Environment,CARTER SYNERGY LTD,28/03/2018,"2,887.50",40216-OTHER-PLAN MTCE,NAG - MAINTENANCE,Premises,Revenue
Walsall Council,http://opendatacommunities.org/id/metropolitan-district-council/walsall,WC90-744,31/03/2018,Childrens,CASTLE BUSINESS AND ENTERPRISE COLLEGE,12/03/2018,"7,470.01",66502-TOP UP FUNDING -GRANTS TO SCHOOLS,MAINTAINED PROVIDERS,Third Party Payments,Revenue
Walsall Council,http://opendatacommunities.org/id/metropolitan-district-council/walsall,WC90-745,31/03/2018,Childrens,CASTLEFORT JMI SCHOOL,09/03/2018,500.00,63000-PROFESSIONAL FEES AND SERVICES,ADMISSIONS & PUPIL PLACE PLANNING,Supplies & Services,Revenue
Walsall Council,http://opendatacommunities.org/id/metropolitan-district-council/walsall,WC90-746,31/03/2018,Childrens,REDACTED,19/03/2018,"2,330.00",73014-LEGAL FEES-PRIV CONTRACTOR FEES,GENERAL MANAGEMENT SUPPORT (INC LEGAL),Third Party Payments,Revenue
Walsall Council,http://opendatacommunities.org/id/metropolitan-district-council/walsall,WC90-747,31/03/2018,Adult Social Care,REDACTED,14/03/2018,816.75,76422-DIRECT PAYMENTS TO SOCIAL SERVICES CLIENTS,LD PACKAGE/PLACEMENT COSTS,Transfer Payments,Revenue
Walsall Council,http://opendatacommunities.org/id/metropolitan-district-council/walsall,WC90-748,31/03/2018,Adult Social Care,REDACTED,14/03/2018,"1,350.00",76422-DIRECT PAYMENTS TO SOCIAL SERVICES CLIENTS,MENTAL HEALTH PACKAGE/PLACEMENT COSTS,Transfer Payments,Revenue
Walsall Council,http://opendatacommunities.org/id/metropolitan-district-council/walsall,WC90-749,31/03/2018,Childrens,REDACTED,09/03/2018,425.08,74009-ADOPTION ALLOWANCE,ADOPTION ALLOWANCES,Transfer Payments,Revenue
Walsall Council,http://opendatacommunities.org/id/metropolitan-district-council/walsall,WC90-750,31/03/2018,Adult Social Care,REDACTED,14/03/2018,405.00,76422-DIRECT PAYMENTS TO SOCIAL SERVICES CLIENTS,LD PACKAGE/PLACEMENT COSTS,Transfer Payments,Revenue
Walsall Council,http://opendatacommunities.org/id/metropolitan-district-council/walsall,WC90-751,31/03/2018,Adult Social Care,REDACTED,19/03/2018,572.00,76422-DIRECT PAYMENTS TO SOCIAL SERVICES CLIENTS,LD PACKAGE/PLACEMENT COSTS,Transfer Payments,Revenue
Walsall Council,http://opendatacommunities.org/id/metropolitan-district-council/walsall,WC90-752,31/03/2018,Childrens,REDACTED,14/03/2018,"1,267.83",76422-DIRECT PAYMENTS TO SOCIAL SERVICES CLIENTS,FAMILY SUPPORT - DIRECT PAYMENTS,Transfer Payments,Revenue
Walsall Council,http://opendatacommunities.org/id/metropolitan-district-council/walsall,WC90-753,31/03/2018,Childrens,REDACTED,09/03/2018,425.08,74510-RESIDENTS ORDERS,ADOPTION ALLOWANCES,Third Party Payments,Revenue
Walsall Council,http://opendatacommunities.org/id/metropolitan-district-council/walsall,WC90-754,31/03/2018,Childrens,REDACTED,01/03/2018,864.60,66505-OTHER-GRANTS TO OTHER ORGS,EARLY YEARS - 2 YR OLDS,Third Party Payments,Revenue
Walsall Council,http://opendatacommunities.org/id/metropolitan-district-council/walsall,WC90-755,31/03/2018,Childrens,CBTC MILLICHIPS,26/03/2018,500.00,73014-LEGAL FEES-PRIV CONTRACTOR FEES,GENERAL MANAGEMENT SUPPORT (INC LEGAL),Third Party Payments,Revenue
Walsall Council,http://opendatacommunities.org/id/metropolitan-district-council/walsall,WC90-756,31/03/2018,Adult Social Care,REDACTED,14/03/2018,758.10,76422-DIRECT PAYMENTS TO SOCIAL SERVICES CLIENTS,OP PACKAGE/PLACEMENT COSTS,Transfer Payments,Revenue
Walsall Council,http://opendatacommunities.org/id/metropolitan-district-council/walsall,WC90-757,31/03/2018,Adult Social Care,CEDER LODGE NURSING HOME,20/03/2018,"3,663.67",73373-RESIDENTIAL & NURSING CARE PLACEMENTS,OP PACKAGE/PLACEMENT COSTS,Third Party Payments,Revenue
Walsall Council,http://opendatacommunities.org/id/metropolitan-district-council/walsall,WC90-758,31/03/2018,Childrens,REDACTED,23/03/2018,9.24,60006-NEW-FURNITURE & EQUIPMENT,INTERNAL FOSTER CARE PROVISION,Supplies & Services,Revenue
Walsall Council,http://opendatacommunities.org/id/metropolitan-district-council/walsall,WC90-759,31/03/2018,Childrens,REDACTED,23/03/2018,345.24,74508-INTERNAL FOSTER CARERS-CARER FEES,INTERNAL FOSTER CARE PROVISION,Transfer Payments,Revenue
Walsall Council,http://opendatacommunities.org/id/metropolitan-district-council/walsall,WC90-760,31/03/2018,Childrens,REDACTED,23/03/2018,571.44,74501-MAINTENANCE ALLOWANCE-FOSTER CARERS,INTERNAL FOSTER CARE PROVISION,Transfer Payments,Revenue
Walsall Council,http://opendatacommunities.org/id/metropolitan-district-council/walsall,WC90-761,31/03/2018,Economy & Environment,CERTAS ENERGY UK LIMITED,15/03/2018,371.18,50301-FUEL-TRANSPORT RUN COSTS,TARMAC,Transport,Revenue
Walsall Council,http://opendatacommunities.org/id/metropolitan-district-council/walsall,WC90-762,31/03/2018,Economy & Environment,CERTAS ENERGY UK LIMITED,09/03/2018,"16,038.74",50301-FUEL-TRANSPORT RUN COSTS,FUEL STOCK ACCOUNT,Transport,Revenue
Walsall Council,http://opendatacommunities.org/id/metropolitan-district-council/walsall,WC90-763,31/03/2018,Adult Social Care,REDACTED,14/03/2018,405.00,76422-DIRECT PAYMENTS TO SOCIAL SERVICES CLIENTS,LD PACKAGE/PLACEMENT COSTS,Transfer Payments,Revenue
